Workbook

Sheet Menu
A1: Main Menu
B3: Total Cost Estimates - Projects in Initiation or Options Analysis
C4: Total Cost Projection worksheet | E4: These worksheets are used to develop very early cost estimates for one or multiple options.
B5: Go | C5: Inflated Cash Flow Distribution Tool
B7: Construction Contract Amount Estimates - Projects in Options Analysis, Design, or Construction
C8: Construction Contract Amount Worksheet
D9: APWA Bid Item List | E9: These worksheets are for developing the Construction Contract Amount estimates for projects at or after Stage Gate 2 approval
D10: CSI Bid Item List
B13: Last Revised: 8/7/2017

Sheet Construction Contract Amount
A1: Construction Contract Amount Spreadsheet
A2: Project Name: | C2: <<Enter project name from EPMS>>
A3: Project ID: | C3: <<Enter project ID from EPMS>>
A4: Project Phase: | C4: <<Enter Project Phase>>
A5: Cost Estimator(s): | C5: <<Enter names of cost estimators>>
A6: Est. Reviewer(s) | C6: <<Enter names of cost estimator reviewers>>
A7: Date: | C7: <<Enter date estimate was prepared>>
A9: Item | B9: Bid Item | C9: Bid Item Description | D9: Quantity | E9: Unit | F9: Unit Price | G9: Unit Price Extension
A10: 1 | G10: =F10*D10 -> 0
A11: 2 | G11: 0
A12: 3 | G12: 0
A13: 4 | G13: 0
A14: 5 | G14: 0
A15: 6 | G15: 0
A16: 7 | G16: 0
A17: 8 | G17: 0
A18: 9 | G18: 0
A19: 10 | G19: 0
A20: 11 | G20: 0
A21: 12 | G21: 0
A22: 13 | G22: 0
A23: 14 | G23: 0
A24: 15 | G24: 0
A25: 16 | G25: 0
A26: 17 | G26: 0
A27: 18 | G27: 0
A28: 19 | G28: 0
A29: 20 | G29: 0
A30: 21 | G30: 0
A31: 22 | G31: 0
A32: 23 | G32: 0
A33: 24 | G33: 0
A34: 25 | G34: 0
A35: 26 | G35: 0
A36: 27 | G36: 0
A37: 28 | G37: 0
A38: 29 | G38: 0
F39: Construction Line Item Pricing | G39: =SUM(G10:G38) -> 0
F40: Allowance for Indeterminates | G40: 0.00% | I40: See Section 3.1.2.E
F41: Construction Bid Amount | G41: =G39*(1+G40) -> 0
F42: Sales Tax % | G42: 0.00% | I42: See Appendix B
F43: Construction Contract Amount | G43: =G41*(1+G42) -> 0
C44: Last Revised: 7/12/16

Sheet Total Cost Projection
A1: Total Cost Projection Estimates - Projects in Initiation or Options Analysis
A2: Project Name: | B2: <<Enter project name from EPMS>>
A3: Project ID: | B3: <<Enter project ID from EPMS>>
A4: Project Phase: | B4: <<Enter project phase>>
A5: Cost Estimator(s): | B5: <<Enter names of cost estimators>> | E5: Assumptions for all options and each major item are documented in the Basis of Estimate document
A6: Estimate Reviewer(s) | B6: <<Enter names of cost estimator reviewers>>
A7: Date: | B7: <<Enter date estimate was prepared>>
E8: Option 1 | F8: Option 2 | G8: Option 3 | H8: Option 4 | I8: Option 1 | J8: Option 2 | K8: Option 3 | L8: Option 4
A9: # | B9: Summary Cost Item Description | C9: Unit | D9: Unit Price | E9: Quantity | F9: Quantity | G9: Quantity | H9: Quantity | I9: Estimated Cost | J9: Estimated Cost | K9: Estimated Cost | L9: Estimated Cost
A10: 1 | B10: Enter Summary Item Description | C10: Unit | D10: $100,000 | E10: 1 | F10: 2 | G10: 3 | H10: 4 | I10: =$D10*E10 -> $100,000 | J10: =$D10*F10 -> $200,000 | K10: $300,000 | L10: $400,000
A11: 2 | B11: Enter Summary Item Description | C11: Unit | D11: $100,000 | E11: 1 | F11: 2 | G11: 3 | H11: 4 | I11: =$D11*E11 -> $100,000 | J11: $200,000 | K11: $300,000 | L11: $400,000
A12: 3 | B12: Enter Summary Item Description | C12: Unit | D12: $100,000 | E12: 1 | F12: 2 | G12: 3 | H12: 4 | I12: $100,000 | J12: $200,000 | K12: $300,000 | L12: $400,000
A13: 4 | B13: Enter Summary Item Description | C13: Unit | D13: $100,000 | E13: 1 | F13: 2 | G13: 3 | H13: 4 | I13: $100,000 | J13: $200,000 | K13: $300,000 | L13: $400,000
A14: 5 | B14: Enter Summary Item Description | C14: Unit | D14: $100,000 | E14: 1 | F14: 2 | G14: 3 | H14: 4 | I14: $100,000 | J14: $200,000 | K14: $300,000 | L14: $400,000 | M14: Browse related CEG sections
H15: Construction Bid Amount | I15: =SUM(I10:I14) -> $500,000 | J15: =SUM(J10:J14) -> $1,000,000 | K15: =SUM(K10:K14) -> $1,500,000 | L15: =SUM(L10:L14) -> $2,000,000
H16: Sales Tax % | I16: 10.10% | J16: 10.10% | K16: 10.10% | L16: 10.10% | M16: See Appendix B
H17: Construction Contract Amount | I17: =I15*(1+I16) -> $550,500 | J17: =J15*(1+J16) -> $1,101,000 | K17: =K15*(1+K16) -> $1,651,500 | L17: =L15*(1+L16) -> $2,202,000
H18: Crew Construction Costs | I18: $100 | J18: $100 | K18: $100 | L18: $100
H19: Miscellaneous Hard Costs | I19: $100 | J19: $100 | K19: $100 | L19: $100 | M19: See Appendix A
H20: Construction Cost Total | I20: =SUM(I17:I19) -> $550,700 | J20: =SUM(J17:J19) -> $1,101,200 | K20: =SUM(K17:K19) -> $1,651,700 | L20: =SUM(L17:L19) -> $2,202,200
H21: Soft Cost % | I21: 30% | J21: 30% | K21: 30% | L21: 30% | M21: See Section 4.1.1
H22: Soft Cost | I22: =I20*I21 -> $165,210 | J22: =J20*J21 -> $330,360 | K22: =K20*K21 -> $495,510 | L22: =L20*L21 -> $660,660
H23: Property Acquisition Costs | I23: $1,000 | J23: $1,000 | K23: $1,000 | L23: $1,000 | M23: Do not include Labor
H24: Base Cost Total | I24: =I23+I22+I20 -> $716,910 | J24: =J23+J22+J20 -> $1,432,560 | K24: =K23+K22+K20 -> $2,148,210 | L24: =L23+L22+L20 -> $2,863,860
H25: Contingency Reserve % | I25: 10% | J25: 10% | K25: 10% | L25: 10% | M25: See Section 4.1
H26: Contingency Reserve | I26: =I25*I24 -> $71,691 | J26: =J25*J24 -> $143,256 | K26: =K25*K24 -> $214,821 | L26: =L25*L24 -> $286,386
H27: Management Reserve % | I27: 10% | J27: 10% | K27: 10% | L27: 10% | M27: See Section 4.2
H28: Management Reserve | I28: =I27*I24 -> $71,691 | J28: =J27*J24 -> $143,256 | K28: =K27*K24 -> $214,821 | L28: =L27*L24 -> $286,386
H29: Project Reserves | I29: =I28+I26 -> $143,382 | J29: =J28+J26 -> $286,512 | K29: =K28+K26 -> $429,642 | L29: =L28+L26 -> $572,772
H30: Total Cost | I30: =I29+I24 -> $860,292 | J30: =J29+J24 -> $1,719,072 | K30: =K29+K24 -> $2,577,852 | L30: =L29+L24 -> $3,436,632
H31: Inflation Cost Projection | I31: ='Cash Flow for Early Estimates'!M21 -> $13,803 | J31: ='Cash Flow for Early Estimates'!M28 -> $27,743 | K31: ='Cash Flow for Early Estimates'!M35 -> $41,684 | L31: ='Cash Flow for Early Estimates'!M42 -> $55,624 | M31: Calculated using Cash Flow Tab
H32: Escalation Adjustment Cost Projection | I32: ='Cash Flow for Early Estimates'!M22 -> $3,867 | J32: ='Cash Flow for Early Estimates'!M29 -> $7,735 | K32: ='Cash Flow for Early Estimates'!M36 -> $11,602 | L32: ='Cash Flow for Early Estimates'!M43 -> $15,469 | M32: Calculated using Cash Flow Tab
H33: Total Cost Projection | I33: =SUM(I30,I31,I32) -> $877,962 | J33: =SUM(J30,J31,J32) -> $1,754,550 | K33: $2,631,137 | L33: $3,507,725 | M33: Sumation of Total Cost, Inflation & Escalation Adjustment = Total Cost Projection
B34: Last Revised: 9/19/16

Sheet Cash Flow for Early Estimates
A1: Complete this worksheet to generate Cost Projections that include inflation and escalation (fill out Yellow shaded areas only)
A2: Current Year | B2: 2017 | C2: Enter Current Year
A3: Inflation Assumption | B3: 2.3% | C3: See Guidance on Inflation and Escalation Adjustment Rates
A4: Escalation Adjustment Assumption | B4: 1.0% | C4: See Guidance on Inflation and Escalation Adjustment Rates
A5: Actual Costs to Date | B5: $10,000 | C5: Enter Actual Costs to Date
A6: Total Cost - Option 1 | B6: ='Total Cost Projection'!I30 -> $860,292 | C6: from Total Cost on previous tab
A7: Construction Contract Amount | B7: ='Total Cost Projection'!I17 -> $550,500 | C7: from Construction Contract Amount on previous tab
A8: Total Cost - Option 2 | B8: ='Total Cost Projection'!J30 -> $1,719,072 | C8: from Total Cost on previous tab
A9: Construction Contract Amount | B9: ='Total Cost Projection'!J17 -> $1,101,000 | C9: from Construction Contract Amount on previous tab
A10: Total Cost - Option 3 | B10: ='Total Cost Projection'!K30 -> $2,577,852 | C10: from Total Cost on previous tab
A11: Construction Contract Amount | B11: ='Total Cost Projection'!K17 -> $1,651,500 | C11: from Construction Contract Amount on previous tab
A12: Total Cost - Option 4 | B12: ='Total Cost Projection'!L30 -> $3,436,632 | C12: from Total Cost on previous tab
A13: Construction Contract Amount | B13: ='Total Cost Projection'!L17 -> $2,202,000 | C13: from Construction Contract Amount on previous tab
B16: Life to Date Actuals | C16: =B2 -> 2017 | D16: =B2+1 -> 2018 | E16: =D16+1 -> 2019 | F16: 2020 | G16: 2021 | H16: 2022 | I16: 2023 | J16: 2024 | K16: 2025 | L16: 2026
A17: Option 1 | M17: Totals
A18: % costs to be spent by year | B18: NA | C18: 50.0% | D18: 35.0% | E18: 10.0% | F18: 5.0% | M18: =SUM(C18:L18) -> 100%
A19: Percent of Total Cost | B19: =B5 -> $10,000 | C19: =C18*($B$6-$B$19) -> $425,146 | D19: $297,602 | E19: $85,029 | F19: $42,515 | G19: 0 | H19: 0 | I19: 0 | J19: 0 | K19: 0 | L19: 0
A20: Construction Contract Amount | C20: =C18*($B$7-$B$20) -> $275,250 | D20: =D18*($B$7-$B$20) -> $192,675 | E20: $55,050 | F20: $27,525 | G20: 0 | H20: 0 | I20: 0 | J20: 0 | K20: 0 | L20: 0
A21: Cost of Inflation | B21: =B19 -B19 -> 0 | C21: =C19-C19 -> 0 | D21: =(D19*(1+$B$3)^(D$16-$B$2))-D19 -> $6,844.85 | E21: =(E19*(1+$B$3)^(E$16-$B$2))-E19 -> $3,956.32 | F21: =(F19*(1+$B$3)^(F$16-$B$2))-F19 -> $3,001.50 | G21: 0 | H21: 0 | I21: 0 | J21: 0 | K21: 0 | L21: 0 | M21: =SUM(D21:L21) -> $13,803
A22: Cost of Escalation Adjustment | B22: =B20 -B20 -> 0 | C22: =C20 -C20 -> 0 | D22: =(D20*(1+$B$4)^(D$16-$B$2))-D20 -> $1,926.75 | E22: =(E20*(1+$B$4)^(E$16-$B$2))-E20 -> $1,106.51 | F22: $834.04 | G22: 0 | H22: 0 | I22: 0 | J22: 0 | K22: 0 | L22: 0 | M22: =SUM(D22:L22) -> $3,867
A23: Cost Projection | B23: =B19 -> $10,000 | C23: =C19 -> $425,146 | D23: =SUM(D19,D21,D22) -> $306,373.80 | E23: =SUM(E19,E21,E22) -> $90,092.03 | F23: $46,350.13 | G23: 0 | H23: 0 | I23: 0 | J23: 0 | K23: 0 | L23: 0 | M23: =SUM(B23:L23) -> $877,962 | N23: Cost Projection with Inflation and Escalation Adjustment
A24: Option 2
A25: % costs to be spent by year | B25: NA | C25: 50.0% | D25: 35.0% | E25: 10.0% | F25: 5.0% | M25: =SUM(C25:L25) -> 100%
A26: Percent of Total Cost | B26: =B5 -> $10,000 | C26: =C25*($B$8-$B$26) -> $854,536 | D26: $598,175 | E26: $170,907 | F26: $85,454 | G26: 0 | H26: 0 | I26: 0 | J26: 0 | K26: 0 | L26: 0
A27: Construction Contract Amount | C27: =C25*($B$9-$B$27) -> $550,500 | D27: =D25*($B$9-$B$27) -> $385,350 | E27: $110,100 | F27: $55,050 | G27: 0 | H27: 0 | I27: 0 | J27: 0 | K27: 0 | L27: 0
A28: Cost of Inflation | B28: =B26 -B26 -> 0 | C28: =C26-C26 -> 0 | D28: =(D26*(1+$B$3)^(D$16-$B$2))-D26 -> $13,758.03 | E28: $7,952.14 | F28: $6,032.95 | G28: 0 | H28: 0 | I28: 0 | J28: 0 | K28: 0 | L28: 0 | M28: =SUM(D28:L28) -> $27,743
A29: Cost of Escalation Adjustment | B29: =B27 -B27 -> 0 | C29: =C27 -C27 -> 0 | D29: =(D27*(1+$B$4)^(D$16-$B$2))-D27 -> $3,853.50 | E29: =(E27*(1+$B$4)^(E$16-$B$2))-E27 -> $2,213.01 | F29: $1,668.07 | G29: 0 | H29: 0 | I29: 0 | J29: 0 | K29: 0 | L29: 0 | M29: =SUM(D29:L29) -> $7,735
A30: Cost Projection | B30: =B26 -> $10,000 | C30: =C26 -> $854,536 | D30: =SUM(D26,D28,D29) -> $615,786.73 | E30: =SUM(E26,E28,E29) -> $181,072.35 | F30: $93,154.62 | G30: 0 | H30: 0 | I30: 0 | J30: 0 | K30: 0 | L30: 0 | M30: =SUM(B30:L30) -> $1,754,550 | N30: Cost Projection with Inflation and Escalation Adjustment
A31: Option 3
A32: % costs to be spent by year | B32: NA | C32: 50.0% | D32: 35.0% | E32: 10.0% | F32: 5.0% | M32: =SUM(C32:L32) -> 100%
A33: Percent of Total Cost | B33: =B5 -> $10,000 | C33: =C32*($B$10-$B$33) -> $1,283,926 | D33: $898,748 | E33: $256,785 | F33: $128,393 | G33: 0 | H33: 0 | I33: 0 | J33: 0 | K33: 0 | L33: 0
A34: Construction Contract Amount | C34: =C32*($B$11-$B$34) -> $825,750 | D34: =D32*($B$11-$B$34) -> $578,025 | E34: $165,150 | F34: $82,575 | G34: 0 | H34: 0 | I34: 0 | J34: 0 | K34: 0 | L34: 0
A35: Cost of Inflation | B35: =B33 -B33 -> 0 | C35: =C33-C33 -> 0 | D35: =(D33*(1+$B$3)^(D$16-$B$2))-D33 -> $20,671.21 | E35: $11,947.96 | F35: $9,064.41 | G35: 0 | H35: 0 | I35: 0 | J35: 0 | K35: 0 | L35: 0 | M35: =SUM(D35:L35) -> $41,684
A36: Cost of Escalation Adjustment | B36: =B34 -B34 -> 0 | C36: =C34-C34 -> 0 | D36: =(D34*(1+$B$4)^(D$16-$B$2))-D34 -> $5,780.25 | E36: =(E34*(1+$B$4)^(E$16-$B$2))-E34 -> $3,319.52 | F36: $2,502.11 | G36: 0 | H36: 0 | I36: 0 | J36: 0 | K36: 0 | L36: 0 | M36: =SUM(D36:L36) -> $11,602
A37: Cost Projection | B37: =B33 -> $10,000 | C37: =C33 -> $1,283,926 | D37: =SUM(D33,D35,D36) -> $925,199.66 | E37: =SUM(E33,E35,E36) -> $272,052.67 | F37: $139,959.12 | G37: 0 | H37: 0 | I37: 0 | J37: 0 | K37: 0 | L37: 0 | M37: =SUM(B37:L37) -> $2,631,137 | N37: Cost Projection with Inflation and Escalation Adjustment
A38: Option 4
A39: % costs to be spent by year | B39: NA | C39: 50.0% | D39: 35.0% | E39: 10.0% | F39: 5.0% | M39: =SUM(C39:L39) -> 100%
A40: Percent of Total Cost | B40: =B5 -> $10,000 | C40: =C39*($B$12-$B$40) -> $1,713,316 | D40: $1,199,321 | E40: $342,663 | F40: $171,332 | G40: 0 | H40: 0 | I40: 0 | J40: 0 | K40: 0 | L40: 0
A41: Construction Contract Amount | C41: =C39*($B$13-$B$41) -> $1,101,000 | D41: =D39*($B$13-$B$41) -> $770,700 | E41: $220,200 | F41: $110,100 | G41: 0 | H41: 0 | I41: 0 | J41: 0 | K41: 0 | L41: 0
A42: Cost of Inflation | B42: =B40 -B40 -> 0 | C42: =C40-C40 -> 0 | D42: =(D40*(1+$B$3)^(D$16-$B$2))-D40 -> $27,584.39 | E42: $15,943.78 | F42: $12,095.87 | G42: 0 | H42: 0 | I42: 0 | J42: 0 | K42: 0 | L42: 0 | M42: =SUM(D42:L42) -> $55,624
A43: Cost of Escalation Adjustment | B43: =B41 -B41 -> 0 | C43: =C41 -C41 -> 0 | D43: =(D41*(1+$B$4)^(D$16-$B$2))-D41 -> $7,707.00 | E43: =(E41*(1+$B$4)^(E$16-$B$2))-E41 -> $4,426.02 | F43: $3,336.14 | G43: 0 | H43: 0 | I43: 0 | J43: 0 | K43: 0 | L43: 0 | M43: =SUM(D43:L43) -> $15,469
A44: Cost Projection | B44: =B40 -> $10,000 | C44: =C40 -> $1,713,316 | D44: =SUM(D40,D42,D43) -> $1,234,612.59 | E44: =SUM(E40,E42,E43) -> $363,033.00 | F44: $186,763.61 | G44: 0 | H44: 0 | I44: 0 | J44: 0 | K44: 0 | L44: 0 | M44: =SUM(B44:L44) -> $3,507,725 | N44: Cost Projection with Inflation and Escalation Adjustment

Sheet Sheet1 (hidden)

Sheet 2017 APWA
A1: APWA 2017
A2: Bid item | B2: Item/Description | C2: Take-Off QTY | D2: Unit | E2: Labor Amount 2016 | F2: Labor Amount 2017 | G2: % of Total 2016 | H2: % of Total 2017 | I2: Materials Amount 2016 | J2: Materials Amount 2017 | K2: % of Total 2016 | L2: % of Total 2017 | M2: Equipment Amount 2016 | N2: Equipment Amount 2017 | O2: % of Total 2016 | P2: % of Total 2017 | Q2: Sub Amount 2016 | R2: Sub Amount 2017 | S2: % of Total 2016 | T2: % of Total 2017 | U2: Sub Total Unit Cost 2016 | V2: Sub Total Unit Cost 2017 | W2: OH& Profit % | X2: Total Cost Unit 2016 | Y2: Total Cost Unit 2017 - not rounded | Z2: Total Cost Unit 2017 | AA2: Estimate Total | AB2: 2017 Increases: Labor (2.35%), Material (1.75%), Equipment (2.45%), Sub (1.15%)
A3: Sect 1-07 | B3: Legal Relations & Responsibilities
A4: 107005 | B4: SAFETY AND HEALTH PROGRAM-CSI (REF) | D4: LS | E4: =U4*G4 -> $180.48 | F4: =V4*H4 -> $183.81 | G4: 12.0% | H4: =G4 -> 12.0% | I4: =U4*K4 -> $1,278.40 | J4: =V4*L4 -> $1,301.96 | K4: 85.0% | L4: =K4 -> 85.0% | M4: =U4*O4 -> $45.12 | N4: =P4*V4 -> $45.95 | O4: 3.0% | P4: =O4 -> 3.0% | Q4: =U4*S4 -> $0.00 | R4: =T4*V4 -> $0.00 | T4: =S4 -> 0.0% | U4: $1,504 | V4: =SUM(E4*1.0235,I4*1.0175,M4*1.0245,Q4*1.0115) -> $1,531.72 | W4: 12.0% | X4: $0 | Y4: $0.00 | Z4: =IF(Y4=0, 0, IF(Y4<10, _xlfn.CEILING.MATH(Y4,1), IF(Y4<100, _xlfn.CEILING.MATH(Y4,1),IF(Y4<1000, _xlfn.CEILING.MATH(Y4,5), IF(Y4<10000, _xlfn.CEILING.MATH(Y4, 25), IF(Y4<100000, _xlfn.CEILING.MATH(Y4,250), IF(Y4<1000000, _xlfn.CEILING.MATH(Y4,500), 0))))))) -> $0.00 | AA4: =C4*Z4 -> $0
A5: Sect 1-09 | B5: Measurement & Payment
A6: 109005 | B6: MOBILIZATION-CSI (REF) | D6: LS | E6: =U6*G6 -> $64,545.39 | F6: =V6*H6 -> $65,971.20 | G6: 71.0% | H6: =G6 -> 71.0% | I6: =U6*K6 -> $1,818.18 | J6: =V6*L6 -> $1,858.34 | K6: 2.0% | L6: =K6 -> 2.0% | M6: =U6*O6 -> $13,636.35 | N6: =P6*V6 -> $13,937.58 | O6: 15.0% | P6: =O6 -> 15.0% | Q6: =U6*S6 -> $10,909.08 | R6: =T6*V6 -> $11,150.06 | S6: 12.0% | T6: =S6 -> 12.0% | U6: $90,909 | V6: =SUM(E6*1.0235,I6*1.0175,M6*1.0245,Q6*1.0115) -> $92,917.18 | W6: 10.0% | X6: $0 | Y6: $0.00 | Z6: =IF(Y6=0, 0, IF(Y6<10, _xlfn.CEILING.MATH(Y6,1), IF(Y6<100, _xlfn.CEILING.MATH(Y6,1),IF(Y6<1000, _xlfn.CEILING.MATH(Y6,5), IF(Y6<10000, _xlfn.CEILING.MATH(Y6, 25), IF(Y6<100000, _xlfn.CEILING.MATH(Y6,250), IF(Y6<1000000, _xlfn.CEILING.MATH(Y6,500), 0))))))) -> $0.00 | AA6: =C6*Z6 -> $0
A7: Sect 1-10 | B7: Temporary Traffic Control
A8: 110005 | B8: MAINTENANCE & PROTECTION OF TRAFFIC CONTROL INCLUDING FLAGGING-CSI (REF) | D8: LS | E8: =U8*G8 -> $582.75 | F8: =V8*H8 -> $596.39 | G8: 75.0% | H8: =G8 -> 75.0% | I8: =U8*K8 -> $38.85 | J8: =V8*L8 -> $39.76 | K8: 5.0% | L8: =K8 -> 5.0% | M8: =U8*O8 -> $155.40 | N8: =P8*V8 -> $159.04 | O8: 20.0% | P8: =O8 -> 20.0% | Q8: =U8*S8 -> $0.00 | R8: =T8*V8 -> $0.00 | T8: =S8 -> 0.0% | U8: $777.00 | V8: =SUM(E8*1.0235,I8*1.0175,M8*1.0245,Q8*1.0115) -> $795.18 | W8: 12.0% | X8: $0 | Y8: $0.00 | Z8: =IF(Y8=0, 0, IF(Y8<10, _xlfn.CEILING.MATH(Y8,1), IF(Y8<100, _xlfn.CEILING.MATH(Y8,1),IF(Y8<1000, _xlfn.CEILING.MATH(Y8,5), IF(Y8<10000, _xlfn.CEILING.MATH(Y8, 25), IF(Y8<100000, _xlfn.CEILING.MATH(Y8,250), IF(Y8<1000000, _xlfn.CEILING.MATH(Y8,500), 0))))))) -> $0.00 | AA8: =C8*Z8 -> $0
A9: 110020 | B9: TRAFFIC CONTROL PEACE OFFICERS | D9: HR | E9: =U9*G9 -> $0.00 | F9: =V9*H9 -> $0.00 | H9: =G9 -> 0.0% | I9: =U9*K9 -> $0.00 | J9: =V9*L9 -> $0.00 | L9: =K9 -> 0.0% | M9: =U9*O9 -> $9.50 | N9: =P9*V9 -> $9.62 | O9: 11.0% | P9: =O9 -> 11.0% | Q9: =U9*S9 -> $76.86 | R9: =T9*V9 -> $77.86 | S9: 89.0% | T9: =S9 -> 89.0% | U9: $86.36 | V9: =SUM(E9*1.0235,I9*1.0175,M9*1.0245,Q9*1.0115) -> $87.48 | W9: 10.0% | X9: =U9+U9*W9 -> $95.00 | Y9: =IF(V9*(W9+1)=0,X9,V9*(W9+1)) -> $96.23 | Z9: =IF(Y9=0, 0, IF(Y9<10, _xlfn.CEILING.MATH(Y9,1), IF(Y9<100, _xlfn.CEILING.MATH(Y9,1),IF(Y9<1000, _xlfn.CEILING.MATH(Y9,5), IF(Y9<10000, _xlfn.CEILING.MATH(Y9, 25), IF(Y9<100000, _xlfn.CEILING.MATH(Y9,250), IF(Y9<1000000, _xlfn.CEILING.MATH(Y9,500), 0))))))) -> $97.00 | AA9: =C9*Z9 -> $0
A10: Sec 2-01 | B10: Clearing, Grubbing, and Roadside Cleanup
A11: 201005 | B11: CLEARING & GRUBBING {QTY<=5,000} | D11: SF | E11: =U11*G11 -> $0.58 | F11: $0.59 | G11: 23.0% | H11: =G11 -> 23.0% | I11: =U11*K11 -> $0.00 | J11: $0.00 | L11: =K11 -> 0.0% | M11: =U11*O11 -> $1.83 | N11: =P11*V11 -> $1.87 | O11: 73.0% | P11: =O11 -> 73.0% | Q11: =U11*S11 -> $0.10 | R11: =T11*V11 -> $0.10 | S11: 4.0% | T11: =S11 -> 4.0% | U11: $2.50 | V11: =SUM(E11*1.0235,I11*1.0175,M11*1.0245,Q11*1.0115) -> $2.56 | W11: 20.0% | X11: =U11+U11*W11 -> $3.00 | Y11: =IF(V11*(W11+1)=0,X11,V11*(W11+1)) -> $3.07 | Z11: =IF(Y11=0, 0, IF(Y11<10, _xlfn.CEILING.MATH(Y11,0.05), IF(Y11<100, _xlfn.CEILING.MATH(Y11,1),IF(Y11<1000, _xlfn.CEILING.MATH(Y11,5), IF(Y11<10000, _xlfn.CEILING.MATH(Y11, 25), IF(Y11<100000, _xlfn.CEILING.MATH(Y11,250), IF(Y11<1000000, _xlfn.CEILING.MATH(Y11,500), 0))))))) -> $3.10 | AA11: =C11*Z11 -> $0
A12: 201005 | B12: CLEARING & GRUBBING {QTY 5,000-7,500} | D12: SF | E12: $0.55 | F12: $0.56 | G12: 23.0% | H12: 23.0% | I12: $0.00 | J12: $0.00 | L12: 0.0% | M12: $1.73 | N12: $1.77 | O12: 73.0% | P12: 73.0% | Q12: $0.10 | R12: $0.10 | S12: 4.0% | T12: 4.0% | U12: $2.38 | V12: $2.43 | W12: 20.0% | X12: $2.85 | Y12: $2.92 | Z12: $2.95 | AA12: $0
A13: 201005 | B13: CLEARING & GRUBBING {QTY 7,500-10,000} | D13: SF | E13: $0.24 | F13: $0.25 | G13: 23.0% | H13: 23.0% | I13: $0.00 | J13: $0.00 | L13: 0.0% | M13: $0.76 | N13: $0.78 | O13: 73.0% | P13: 73.0% | Q13: $0.04 | R13: $0.04 | S13: 4.0% | T13: 4.0% | U13: $1.04 | V13: $1.07 | W13: 20.0% | X13: $1.25 | Y13: $1.28 | Z13: $1.30 | AA13: $0
A14: 201005 | B14: CLEARING & GRUBBING {QTY10,000-20,000 SF} | D14: SF | E14: $0.20 | F14: $0.20 | G14: 24.0% | H14: 24.0% | I14: $0.00 | J14: $0.00 | L14: 0.0% | M14: $0.62 | N14: $0.63 | O14: 74.0% | P14: 74.0% | Q14: $0.02 | R14: $0.02 | S14: 2.0% | T14: 2.0% | U14: $0.83 | V14: $0.85 | W14: 20.0% | X14: $1.00 | Y14: $1.02 | Z14: $1.05 | AA14: $0
A15: 201005 | B15: CLEARING & GRUBBING {QTY 20,000-25,000 SF} | D15: SF | E15: $0.19 | F15: $0.19 | G15: 24.0% | H15: 24.0% | I15: $0.00 | J15: $0.00 | L15: 0.0% | M15: $0.59 | N15: $0.60 | O15: 74.0% | P15: 74.0% | Q15: $0.02 | R15: $0.02 | S15: 2.0% | T15: 2.0% | U15: $0.79 | V15: $0.81 | W15: 20.0% | X15: $0.95 | Y15: $0.97 | Z15: $1.00 | AA15: $0
A16: 201005 | B16: CLEARING & GRUBBING {QTY 25,000-50,000SF} | D16: SF | E16: $0.17 | F16: $0.17 | G16: 24.0% | H16: 24.0% | I16: $0.00 | J16: $0.00 | L16: 0.0% | M16: $0.52 | N16: $0.54 | O16: 74.0% | P16: 74.0% | Q16: $0.01 | R16: $0.01 | S16: 2.0% | T16: 2.0% | U16: $0.71 | V16: $0.73 | W16: 20.0% | X16: $0.85 | Y16: $0.87 | Z16: $0.90 | AA16: $0
A17: 201020 | B17: CLEARING {QTY<=3,000 SF} | D17: SF | E17: $0.37 | F17: $0.38 | G17: 89.0% | H17: 89.0% | I17: $0.00 | J17: $0.00 | L17: 0.0% | M17: $0.05 | N17: $0.05 | O17: 11.0% | P17: 11.0% | Q17: $0.00 | R17: $0.00 | T17: 0.0% | U17: $0.42 | V17: $0.43 | W17: 20.0% | X17: $0.50 | Y17: $0.52 | Z17: $0.55 | AA17: $0
A18: 201020 | B18: CLEARING {QTY 3,000-5,000 SF} | D18: SF | E18: $0.30 | F18: $0.30 | G18: 89.0% | H18: 89.0% | I18: $0.00 | J18: $0.00 | L18: 0.0% | M18: $0.04 | N18: $0.04 | O18: 11.0% | P18: 11.0% | Q18: $0.00 | R18: $0.00 | T18: 0.0% | U18: $0.33 | V18: $0.34 | W18: 20.0% | X18: $0.40 | Y18: $0.41 | Z18: $0.45 | AA18: $0
A19: 201020 | B19: CLEARING {QTY >5,000 SF} | D19: SF | E19: $0.26 | F19: $0.27 | G19: 89.0% | H19: 89.0% | I19: $0.00 | J19: $0.00 | L19: 0.0% | M19: $0.03 | N19: $0.03 | O19: 11.0% | P19: 11.0% | Q19: $0.00 | R19: $0.00 | T19: 0.0% | U19: $0.29 | V19: $0.30 | W19: 20.0% | X19: $0.35 | Y19: $0.36 | Z19: $0.40 | AA19: $0
A20: 201025 | B20: CLEARING | D20: LS | E20: $9,975.00 | F20: $9,701.44 | G20: 70.0% | H20: 70.0% | I20: $0.00 | J20: $0.00 | L20: 0.0% | M20: $3,562.50 | N20: $3,464.80 | O20: 25.0% | P20: 25.0% | Q20: $0.00 | R20: $0.00 | T20: 0.0% | U20: $14,250.00 | V20: $13,859.19 | W20: 10.0% | X20: $0.00 | Y20: $0.00 | Z20: =IF(Y20=0, 0, IF(Y20<10, _xlfn.CEILING.MATH(Y20,1), IF(Y20<100, _xlfn.CEILING.MATH(Y20,1),IF(Y20<1000, _xlfn.CEILING.MATH(Y20,5), IF(Y20<10000, _xlfn.CEILING.MATH(Y20, 25), IF(Y20<100000, _xlfn.CEILING.MATH(Y20,250), IF(Y20<1000000, _xlfn.CEILING.MATH(Y20,500), 0))))))) -> $0.00 | AA20: $0
A21: 201030 | B21: GRUBBING {QTY<=3,000 SF} | D21: SF | E21: $0.29 | F21: $0.30 | G21: 70.0% | H21: 70.0% | I21: $0.00 | J21: $0.00 | L21: 0.0% | M21: $0.12 | N21: $0.12 | O21: 28.0% | P21: 28.0% | Q21: $0.01 | R21: $0.01 | S21: 2.0% | T21: 2.0% | U21: $0.42 | V21: $0.43 | W21: 20.0% | X21: =U21+U21*W21 -> $0.50 | Y21: =IF(V21*(W21+1)=0,X21,V21*(W21+1)) -> $0.52 | Z21: =IF(Y21=0, 0, IF(Y21<10, _xlfn.CEILING.MATH(Y21,0.05), IF(Y21<100, _xlfn.CEILING.MATH(Y21,1),IF(Y21<1000, _xlfn.CEILING.MATH(Y21,5), IF(Y21<10000, _xlfn.CEILING.MATH(Y21, 25), IF(Y21<100000, _xlfn.CEILING.MATH(Y21,250), IF(Y21<1000000, _xlfn.CEILING.MATH(Y21,500), 0))))))) -> $0.55 | AA21: $0
A22: 201030 | B22: GRUBBING {QTY> 3,000 SF} | D22: SF | E22: $0.20 | F22: $0.21 | G22: 70.0% | H22: 70.0% | I22: $0.00 | J22: $0.00 | L22: 0.0% | M22: $0.08 | N22: $0.08 | O22: 28.0% | P22: 28.0% | Q22: $0.01 | R22: $0.01 | S22: 2.0% | T22: 2.0% | U22: $0.29 | V22: $0.30 | W22: 20.0% | X22: =U22+U22*W22 -> $0.35 | Y22: =IF(V22*(W22+1)=0,X22,V22*(W22+1)) -> $0.36 | Z22: =IF(Y22=0, 0, IF(Y22<10, _xlfn.CEILING.MATH(Y22,0.05), IF(Y22<100, _xlfn.CEILING.MATH(Y22,1),IF(Y22<1000, _xlfn.CEILING.MATH(Y22,5), IF(Y22<10000, _xlfn.CEILING.MATH(Y22, 25), IF(Y22<100000, _xlfn.CEILING.MATH(Y22,250), IF(Y22<1000000, _xlfn.CEILING.MATH(Y22,500), 0))))))) -> $0.40 | AA22: $0
A23: Sec 2-02 | B23: Remove, Abandon, Or Relocate Structures and Obstructions
A24: 202015 | B24: REMOVE ROCK FACING {QTY <=10 SF} | D24: SF | E24: =U24*G24 -> $7.99 | F24: $8.18 | G24: 75.0% | H24: =G24 -> 75.0% | I24: =U24*K24 -> $0.00 | J24: $0.00 | L24: =K24 -> 0.0% | M24: =U24*O24 -> $2.66 | N24: =P24*V24 -> $2.73 | O24: 25.0% | P24: =O24 -> 25.0% | Q24: =U24*S24 -> $0.00 | R24: =T24*V24 -> $0.00 | T24: =S24 -> 0.0% | U24: $10.66 | V24: =SUM(E24*1.0235,I24*1.0175,M24*1.0245,Q24*1.0115) -> $10.91 | W24: 22.0% | X24: =U24+U24*W24 -> $13.00 | Y24: =IF(V24*(W24+1)=0,X24,V24*(W24+1)) -> $13.31 | Z24: =IF(Y24=0, 0, IF(Y24<10, _xlfn.CEILING.MATH(Y24,1), IF(Y24<100, _xlfn.CEILING.MATH(Y24,1),IF(Y24<1000, _xlfn.CEILING.MATH(Y24,5), IF(Y24<10000, _xlfn.CEILING.MATH(Y24, 25), IF(Y24<100000, _xlfn.CEILING.MATH(Y24,250), IF(Y24<1000000, _xlfn.CEILING.MATH(Y24,500), 0))))))) -> $14.00 | AA24: =C24*Z24 -> $0
A25: 202015 | B25: REMOVE ROCK FACING {QTY >10 SF} | D25: SF | E25: $6.15 | F25: $6.29 | G25: 75.0% | H25: 75.0% | I25: $0.00 | J25: $0.00 | L25: 0.0% | M25: $2.05 | N25: $2.10 | O25: 25.0% | P25: 25.0% | Q25: $0.00 | R25: $0.00 | T25: 0.0% | U25: $8.20 | V25: =SUM(E25*1.0235,I25*1.0175,M25*1.0245,Q25*1.0115) -> $8.39 | W25: 22.0% | X25: $10.00 | Y25: $10.24 | Z25: $11.00 | AA25: $0
A26: 202025 | B26: REMOVE ASPHALT OVERLAY | D26: SY | E26: $5.72 | F26: $5.86 | G26: 55.0% | H26: 55.0% | I26: $0.00 | J26: $0.00 | L26: 0.0% | M26: $4.68 | N26: $4.79 | O26: 45.0% | P26: 45.0% | Q26: $0.00 | R26: $0.00 | T26: 0.0% | U26: $10.40 | V26: =SUM(E26*1.0235,I26*1.0175,M26*1.0245,Q26*1.0115) -> $10.65 | W26: 25.0% | X26: $13.00 | Y26: $13.31 | Z26: $14.00 | AA26: $0
A27: 202030 | B27: REMOVE ASPHALT PAVEMENT {QTY <=50 SY} | D27: SY | E27: $10.19 | F27: $10.43 | G27: 55.0% | H27: 55.0% | I27: $0.00 | J27: $0.00 | L27: 0.0% | M27: $8.33 | N27: $8.53 | O27: 45.0% | P27: 45.0% | Q27: $0.00 | R27: $0.00 | T27: 0.0% | U27: $18.52 | V27: =SUM(E27*1.0235,I27*1.0175,M27*1.0245,Q27*1.0115) -> $18.96 | W27: 35.0% | X27: $25.00 | Y27: $25.60 | Z27: $26.00 | AA27: $0
A28: 202030 | B28: REMOVE ASPHALT PAVEMENT {QTY >50 SY} | D28: SY | E28: $8.15 | F28: $6.52 | G28: 55.0% | H28: 55.0% | I28: $0.00 | J28: $0.00 | L28: 0.0% | M28: $6.66 | N28: $5.33 | O28: 45.0% | P28: 45.0% | Q28: $0.00 | R28: $0.00 | T28: 0.0% | U28: $14.81 | V28: =16/1.35 -> $11.85 | W28: 35.0% | X28: $19.99 | Y28: $16.00 | Z28: $16.00 | AA28: $0
A29: 202035 | B29: REMOVE CEMT. CONCR. SIDEWALK {QTY <=50} | D29: SY | E29: $12.04 | F29: $14.44 | G29: 65.0% | H29: 65.0% | I29: $0.00 | J29: $0.00 | L29: 0.0% | M29: $6.48 | N29: $7.78 | O29: 35.0% | P29: 35.0% | Q29: $0.00 | R29: $0.00 | T29: 0.0% | U29: $18.52 | V29: =30/1.35 -> $22.22 | W29: 35.0% | X29: $25.00 | Y29: $30.00 | Z29: $30.00 | AA29: $0
A30: 202035 | B30: REMOVE CEMT. CONCR. SIDEWALK {QTY >50} | D30: SY | E30: $11.11 | F30: $9.44 | G30: 75.0% | H30: 75.0% | I30: $0.00 | J30: $0.00 | L30: 0.0% | M30: $3.70 | N30: $3.15 | O30: 25.0% | P30: 25.0% | Q30: $0.00 | R30: $0.00 | T30: 0.0% | U30: $14.81 | V30: =17/1.35 -> $12.59 | W30: 35.0% | X30: $19.99 | Y30: $17.00 | Z30: $17.00 | AA30: $0
A31: 202045 | B31: REMOVE PAVEMENT {QTY <=100} | D31: SY | E31: $20.00 | F31: $20.45 | G31: 60.0% | H31: 60.0% | I31: $0.00 | J31: $0.00 | L31: 0.0% | M31: $10.00 | N31: $10.22 | O31: 30.0% | P31: 30.0% | Q31: $3.33 | R31: $3.41 | S31: 10.0% | T31: 10.0% | U31: $33.33 | V31: =SUM(E31*1.0235,I31*1.0175,M31*1.0245,Q31*1.0115) -> $34.08 | W31: 20.0% | X31: $40.00 | Y31: $40.90 | Z31: $41.00 | AA31: $0
A32: 202045 | B32: REMOVE PAVEMENT {QTY 100-400} | D32: SY | E32: $12.50 | F32: $19.00 | G32: 60.0% | H32: 60.0% | I32: $0.00 | J32: $0.00 | L32: 0.0% | M32: $6.25 | N32: $9.50 | O32: 30.0% | P32: 30.0% | Q32: $2.08 | R32: $3.17 | S32: 10.0% | T32: 10.0% | U32: $20.83 | V32: =38/1.2 -> $31.67 | W32: 20.0% | X32: $25.00 | Y32: $38.00 | Z32: $38.00 | AA32: $0
A33: 202045 | B33: REMOVE PAVEMENT {QTY>400} | D33: SY | E33: $10.00 | F33: $10.23 | G33: 60.0% | H33: 60.0% | I33: $0.00 | J33: $0.00 | L33: 0.0% | M33: $5.00 | N33: $5.11 | O33: 30.0% | P33: 30.0% | Q33: $1.67 | R33: $1.70 | S33: 10.0% | T33: 10.0% | U33: $16.67 | V33: =SUM(E33*1.0235,I33*1.0175,M33*1.0245,Q33*1.0115) -> $17.04 | W33: 20.0% | X33: $20.00 | Y33: $20.45 | Z33: $21.00 | AA33: $0
A34: 202062 | B34: REMOVE PAVEMENT, 14" IN DEPTH (INCLUDING RAILS &TIES) - {QTY<=100 SY} | D34: SY | E34: $55.00 | F34: $56.28 | G34: 55.0% | H34: 55.0% | I34: $0.00 | J34: $0.00 | L34: 0.0% | M34: $40.00 | N34: $40.93 | O34: 40.0% | P34: 40.0% | Q34: $5.00 | R34: $5.12 | S34: 5.0% | T34: 5.0% | U34: $100.00 | V34: $102.33 | W34: 20.0% | X34: $120.00 | Y34: $122.80 | Z34: $125.00 | AA34: $0
A35: 202062 | B35: REMOVE PAVEMENT, 14" IN DEPTH (INCLUDING RAILS &TIES) - {QTY>100 SY} | D35: SY | E35: $45.83 | F35: $46.90 | G35: 55.0% | H35: 55.0% | I35: $0.00 | J35: $0.00 | L35: 0.0% | M35: $33.33 | N35: $34.11 | O35: 40.0% | P35: 40.0% | Q35: $4.17 | R35: $4.26 | S35: 5.0% | T35: 5.0% | U35: $83.33 | V35: $85.27 | W35: 20.0% | X35: =U35+U35*W35 -> $100.00 | Y35: $102.33 | Z35: $105.00 | AA35: $0
A36: 202064 | B36: REMOVE PAVEMENT, OVER 14" IN DEPTH (INCLUDING RAILS &TIES) - {QTY<=100 SY} | D36: SY | E36: $68.75 | F36: $70.35 | G36: 55.0% | H36: 55.0% | I36: $0.00 | J36: $0.00 | L36: 0.0% | M36: $50.00 | N36: $51.17 | O36: 40.0% | P36: 40.0% | Q36: $6.25 | R36: $6.40 | S36: 5.0% | T36: 5.0% | U36: $125.00 | V36: $127.91 | W36: 20.0% | X36: =U36+U36*W36 -> $150.00 | Y36: $153.50 | Z36: $155.00 | AA36: $0
A37: 202064 | B37: REMOVE PAVEMENT, OVER 14" IN DEPTH (INCLUDING RAILS &TIES) - {QTY>100 SY} | D37: SY | E37: $57.29 | F37: $58.63 | G37: 55.0% | H37: 55.0% | I37: $0.00 | J37: $0.00 | L37: 0.0% | M37: $41.67 | N37: $42.64 | O37: 40.0% | P37: 40.0% | Q37: $5.21 | R37: $5.33 | S37: 5.0% | T37: 5.0% | U37: $104.17 | V37: $106.59 | W37: 20.0% | X37: =U37+U37*W37 -> $125.00 | Y37: $127.91 | Z37: $130.00 | AA37: $0
A38: 202066 | B38: REMOVE PAVEMENT, OVER 14" IN DEPTH {QTY<=50 SY} | D38: SY | E38: $18.33 | F38: $18.76 | G38: 55.0% | H38: 55.0% | I38: $0.00 | J38: $0.00 | L38: 0.0% | M38: $13.33 | N38: $13.64 | O38: 40.0% | P38: 40.0% | Q38: $1.67 | R38: $1.71 | S38: 5.0% | T38: 5.0% | U38: =40/1.2 -> $33.33 | V38: $34.11 | W38: 20.0% | X38: $40.00 | Y38: $40.93 | Z38: $41.00 | AA38: $0
A39: 202066 | B39: REMOVE PAVEMENT, OVER 14" IN DEPTH {QTY>50 SY} | D39: SY | E39: $16.50 | F39: $16.88 | G39: 55.0% | H39: 55.0% | I39: $0.00 | J39: $0.00 | L39: 0.0% | M39: $12.00 | N39: $12.28 | O39: 40.0% | P39: 40.0% | Q39: $1.50 | R39: $1.53 | S39: 5.0% | T39: 5.0% | U39: $30.00 | V39: $30.70 | W39: 20.0% | X39: =U39+U39*W39 -> $36.00 | Y39: $36.84 | Z39: $37.00 | AA39: $0
A40: 202068 | B40: REMOVE LANDSCAPING 12" IN DEPTH (INCLUDING TO SOIL) - {QTY<=100 SY} | D40: SY | E40: $0.00 | F40: $23.51 | G40: 51.3% | H40: 51.3% | I40: $0.00 | J40: $0.00 | L40: 0.0% | M40: $0.00 | N40: $22.32 | O40: 48.7% | P40: 48.7% | Q40: $0.00 | R40: $0.00 | T40: 0.0% | V40: $45.83 | W40: 20.0% | X40: =U40+U40*W40 -> $0.00 | Y40: $55.00 | Z40: $55.00 | AA40: $0
A41: 202068 | B41: REMOVE LANDSCAPING 12" IN DEPTH (INCLUDING TO SOIL) - {QTY>100 SY} | D41: SY | E41: $0.00 | F41: $17.10 | G41: 51.3% | H41: 51.3% | I41: $0.00 | J41: $0.00 | L41: 0.0% | M41: $0.00 | N41: $16.23 | O41: 48.7% | P41: 48.7% | Q41: $0.00 | R41: $0.00 | T41: 0.0% | V41: $33.33 | W41: 20.0% | X41: =U41+U41*W41 -> $0.00 | Y41: $40.00 | Z41: $40.00 | AA41: $0
A42: 202125 | B42: REMOVE BEAM GUARD RAIL (WITH END SECTION) {QTY<=20 LF} | D42: LF | E42: $14.23 | F42: $14.57 | G42: 74.0% | H42: 74.0% | I42: $0.00 | J42: $0.00 | L42: 0.0% | M42: $5.00 | N42: $5.12 | O42: 26.0% | P42: 26.0% | Q42: $0.00 | R42: $0.00 | T42: 0.0% | U42: $19.23 | V42: =SUM(E42*1.0235,I42*1.0175,M42*1.0245,Q42*1.0115) -> $19.69 | W42: 30.0% | X42: =U42+U42*W42 -> $25.00 | Y42: $25.59 | Z42: $26.00 | AA42: $0
A43: 202125 | B43: REMOVE BEAM GUARD RAIL (WITH END SECTION) {QTY>20 LF} | D43: LF | E43: $11.38 | F43: $11.66 | G43: 74.0% | H43: 74.0% | I43: $0.00 | J43: $0.00 | L43: 0.0% | M43: $4.00 | N43: $4.10 | O43: 26.0% | P43: 26.0% | Q43: $0.00 | R43: $0.00 | T43: 0.0% | U43: =20/1.3 -> $15.38 | V43: $15.75 | W43: 30.0% | X43: $20.00 | Y43: $20.48 | Z43: $21.00 | AA43: $0
A44: 202130 | B44: REMOVE CONCRETE TRAFFIC BARRIER | D44: LF | E44: $9.81 | F44: $10.04 | G44: 85.0% | H44: 85.0% | I44: $0.00 | J44: $0.00 | L44: 0.0% | M44: $1.73 | N44: $1.77 | O44: 15.0% | P44: 15.0% | Q44: $0.00 | R44: $0.00 | T44: 0.0% | U44: $11.54 | V44: $11.81 | W44: 30.0% | X44: =U44+U44*W44 -> $15.00 | Y44: $15.36 | Z44: $16.00 | AA44: $0
A45: 202135 | B45: REMOVE CONDUIT RISER - STEEL PIPE | D45: LF | E45: $0.45 | F45: $0.46 | G45: 5.0% | H45: 5.0% | I45: $0.00 | J45: $0.00 | L45: 0.0% | M45: $1.36 | N45: $1.38 | O45: 15.0% | P45: 15.0% | Q45: $7.27 | R45: $7.37 | S45: 80.0% | T45: 80.0% | U45: $9.09 | V45: $9.22 | W45: 10.0% | X45: $10.00 | Y45: $10.14 | Z45: $11.00 | AA45: $0
A46: 202140 | B46: REMOVE CULVERT | D46: LF | E46: $8.13 | F46: $8.31 | G46: 65.0% | H46: 65.0% | I46: $0.00 | J46: $0.00 | L46: 0.0% | M46: $3.75 | N46: $3.84 | O46: 30.0% | P46: 30.0% | Q46: $0.63 | R46: $0.64 | S46: 5.0% | T46: 5.0% | U46: $12.50 | V46: $12.79 | W46: 20.0% | X46: $15.00 | Y46: $15.35 | Z46: $16.00 | AA46: $0
A47: 202145 | B47: REMOVE CURB {QTY< =50} | D47: LF | E47: $6.42 | F47: $6.57 | G47: 70.0% | H47: 70.0% | I47: $0.00 | J47: $0.00 | L47: 0.0% | M47: $2.29 | N47: $2.35 | O47: 25.0% | P47: 25.0% | Q47: $0.46 | R47: $0.47 | S47: 5.0% | T47: 5.0% | U47: $9.17 | V47: $9.38 | W47: 20.0% | X47: $11.00 | Y47: $11.26 | Z47: $12.00 | AA47: $0
A48: 202145 | B48: REMOVE CURB {QTY>50} | D48: LF | E48: $5.83 | F48: $5.97 | G48: 70.0% | H48: 70.0% | I48: $0.00 | J48: $0.00 | L48: 0.0% | M48: $2.08 | N48: $2.13 | O48: 25.0% | P48: 25.0% | Q48: $0.42 | R48: $0.43 | S48: 5.0% | T48: 5.0% | U48: $8.33 | V48: $8.53 | W48: 20.0% | X48: $10.00 | Y48: $10.23 | Z48: $11.00 | AA48: $0
A49: 202150 | B49: REMOVE GRANITE CURB {QTY<=10LF} | D49: LF | E49: $0.00 | F49: $17.50 | G49: 70.0% | H49: 70.0% | I49: $0.00 | J49: $0.00 | L49: 0.0% | M49: $0.00 | N49: $6.25 | O49: 25.0% | P49: 25.0% | Q49: $0.00 | R49: $1.25 | S49: 5.0% | T49: 5.0% | V49: $25.00 | W49: 20.0% | X49: $0.00 | Y49: $30.00 | Z49: $30.00 | AA49: $0
A50: 202150 | B50: REMOVE GRANITE CURB {QTY 15-30LF} | D50: LF | E50: $0.00 | F50: $15.75 | G50: 70.0% | H50: 70.0% | I50: $0.00 | J50: $0.00 | L50: 0.0% | M50: $0.00 | N50: $5.63 | O50: 25.0% | P50: 25.0% | Q50: $0.00 | R50: $1.13 | S50: 5.0% | T50: 5.0% | V50: $22.50 | W50: 20.0% | X50: $0.00 | Y50: $27.00 | Z50: $27.00 | AA50: $0
A51: 202150 | B51: REMOVE GRANITE CURB {QTY>30LF} | D51: LF | E51: $0.00 | F51: $14.58 | G51: 70.0% | H51: 70.0% | I51: $0.00 | J51: $0.00 | L51: 0.0% | M51: $0.00 | N51: $5.21 | O51: 25.0% | P51: 25.0% | Q51: $0.00 | R51: $1.04 | S51: 5.0% | T51: 5.0% | V51: $20.83 | W51: 20.0% | X51: $0.00 | Y51: $25.00 | Z51: $25.00 | AA51: $0
A52: 202155 | B52: REMOVE CURB & GUTTER {QTY< =100} | D52: LF | E52: $9.21 | F52: $9.42 | G52: 65.0% | H52: 65.0% | I52: $0.00 | J52: $0.00 | L52: 0.0% | M52: $4.25 | N52: $4.35 | O52: 30.0% | P52: 30.0% | Q52: $0.71 | R52: $0.72 | S52: 5.0% | T52: 5.0% | U52: $14.17 | V52: =SUM(E52*1.0235,I52*1.0175,M52*1.0245,Q52*1.0115) -> $14.50 | W52: 20.0% | X52: $17.00 | Y52: $17.40 | Z52: $18.00 | AA52: $0
A53: 202155 | B53: REMOVE CURB & GUTTER {QTY 100-200} | D53: LF | E53: $7.50 | F53: $7.67 | G53: 60.0% | H53: 60.0% | I53: $0.00 | J53: $0.00 | L53: 0.0% | M53: $4.38 | N53: $4.48 | O53: 35.0% | P53: 35.0% | Q53: $0.63 | R53: $0.64 | S53: 5.0% | T53: 5.0% | U53: =15/1.2 -> $12.50 | V53: =SUM(E53*1.0235,I53*1.0175,M53*1.0245,Q53*1.0115) -> $12.79 | W53: 20.0% | X53: $15.00 | Y53: $15.35 | Z53: $16.00 | AA53: $0
A54: 202155 | B54: REMOVE CURB & GUTTER {QTY>200} | D54: LF | E54: $7.00 | F54: $7.16 | G54: 60.0% | H54: 60.0% | I54: $0.00 | J54: $0.00 | L54: 0.0% | M54: $4.08 | N54: $4.18 | O54: 35.0% | P54: 35.0% | Q54: $0.58 | R54: $0.60 | S54: 5.0% | T54: 5.0% | U54: $11.67 | V54: =SUM(E54*1.0235,I54*1.0175,M54*1.0245,Q54*1.0115) -> $11.94 | W54: 20.0% | X54: =U54+U54*W54 -> $14.00 | Y54: $14.33 | Z54: $15.00 | AA54: $0
A55: 202156 | B55: REMOVE SALVAGE & RE-INSTALL GRANITE CURB {QTY<=10FT} | D55: LF | E55: $0.00 | F55: $110.83 | G55: 70.0% | H55: 70.0% | I55: $0.00 | J55: $0.00 | L55: 0.0% | M55: $0.00 | N55: $39.58 | O55: 25.0% | P55: 25.0% | Q55: $0.00 | R55: $7.92 | S55: 5.0% | T55: 5.0% | V55: $158.33 | W55: 20.0% | X55: $0.00 | Y55: $190.00 | Z55: $190.00 | AA55: $0
A56: 202156 | B56: REMOVE SALVAGE & RE-INSTALL GRANITE CURB {QTY 15-30FT} | D56: LF | E56: =U56*G56 -> $0.00 | F56: $105.00 | G56: 70.0% | H56: 70.0% | I56: =U56*K56 -> $0.00 | J56: $0.00 | L56: 0.0% | M56: $0.00 | N56: $37.50 | O56: 25.0% | P56: 25.0% | Q56: $0.00 | R56: $7.50 | S56: 5.0% | T56: 5.0% | V56: $150.00 | W56: 20.0% | X56: $0.00 | Y56: $180.00 | Z56: $180.00 | AA56: $0
A57: 202156 | B57: REMOVE SALVAGE & RE-INSTALL GRANITE CURB {QTY>30FT} | D57: LF | E57: $0.00 | F57: $99.17 | G57: 70.0% | H57: 70.0% | I57: $0.00 | J57: $0.00 | L57: 0.0% | M57: $0.00 | N57: $35.42 | O57: 25.0% | P57: 25.0% | Q57: $0.00 | R57: $7.08 | S57: 5.0% | T57: 5.0% | V57: $141.67 | W57: 20.0% | X57: $0.00 | Y57: $170.00 | Z57: $170.00 | AA57: $0
A58: 202165 | B58: REMOVE FENCE, WOOD | D58: LF | E58: $6.66 | F58: $6.82 | G58: 80.0% | H58: 80.0% | I58: $0.00 | J58: $0.00 | L58: 0.0% | M58: $1.67 | N58: $1.71 | O58: 20.0% | P58: 20.0% | Q58: $0.00 | R58: $0.00 | T58: 0.0% | U58: $8.33 | V58: =SUM(E58*1.0235,I58*1.0175,M58*1.0245,Q58*1.0115) -> $8.53 | W58: 20.0% | X58: $10.00 | Y58: $10.23 | Z58: $11.00 | AA58: $0
A59: 202170 | B59: REMOVE FENCE, CHAIN LINK {QTY<=500 LF} | D59: LF | E59: $0.00 | F59: $6.50 | G59: 65.0% | H59: 65.0% | I59: $0.00 | J59: $0.00 | L59: 0.0% | M59: $0.00 | N59: $3.00 | O59: 30.0% | P59: 30.0% | Q59: $0.00 | R59: $0.50 | S59: 5.0% | T59: 5.0% | V59: $10.00 | W59: 20.0% | X59: $0.00 | Y59: $12.00 | Z59: $12.00 | AA59: $0
A60: 202170 | B60: REMOVE FENCE, CHAIN LINK {QTY>500 LF} | D60: LF | E60: $0.00 | F60: $5.20 | G60: 65.0% | H60: 65.0% | I60: $0.00 | J60: $0.00 | L60: 0.0% | M60: $0.00 | N60: $2.40 | O60: 30.0% | P60: 30.0% | Q60: $0.00 | R60: $0.40 | S60: 5.0% | T60: 5.0% | V60: $8.00 | W60: 20.0% | X60: $0.00 | Y60: $9.60 | Z60: $10.00 | AA60: $0
A61: 202180 | B61: REMOVE PAVEMENT MARKING | D61: LF | E61: $0.12 | F61: $0.12 | G61: 15.0% | H61: 15.0% | I61: $0.00 | J61: $0.00 | L61: 0.0% | M61: $0.00 | N61: $0.00 | P61: 0.0% | Q61: $0.65 | R61: $0.66 | S61: 85.0% | T61: 85.0% | U61: $0.77 | V61: =SUM(E61*1.0235,I61*1.0175,M61*1.0245,Q61*1.0115) -> $0.78 | W61: 30.0% | X61: $1.00 | Y61: $1.01 | Z61: =IF(Y61=0, 0, IF(Y61<10, _xlfn.CEILING.MATH(Y61,0.05), IF(Y61<100, _xlfn.CEILING.MATH(Y61,1),IF(Y61<1000, _xlfn.CEILING.MATH(Y61,5), IF(Y61<10000, _xlfn.CEILING.MATH(Y61, 25), IF(Y61<100000, _xlfn.CEILING.MATH(Y61,250), IF(Y61<1000000, _xlfn.CEILING.MATH(Y61,500), 0))))))) -> $1.05 | AA61: $0
A62: 202190 | B62: REMOVE PIPE (6"-12") In TRENCH-Depth 4-5 FEET | D62: LF | E62: $10.58 | F62: $10.83 | G62: 55.0% | H62: 55.0% | I62: $0.00 | J62: $0.00 | L62: 0.0% | M62: $8.65 | N62: $8.86 | O62: 45.0% | P62: 45.0% | Q62: $0.00 | R62: $0.00 | T62: 0.0% | U62: $19.23 | V62: $19.69 | W62: 30.00% | X62: $25.00 | Y62: $25.60 | Z62: =IF(Y62=0, 0, IF(Y62<10, _xlfn.CEILING.MATH(Y62,1), IF(Y62<100, _xlfn.CEILING.MATH(Y62,1),IF(Y62<1000, _xlfn.CEILING.MATH(Y62,5), IF(Y62<10000, _xlfn.CEILING.MATH(Y62, 25), IF(Y62<100000, _xlfn.CEILING.MATH(Y62,250), IF(Y62<1000000, _xlfn.CEILING.MATH(Y62,500), 0))))))) -> $26.00 | AA62: $0
A63: 202190 | B63: REMOVE PIPE (15'-24") In TRENCH-Depth 6-8 FEET | D63: LF | E63: $14.81 | F63: $15.16 | G63: 55.0% | H63: 55.0% | I63: $0.00 | J63: $0.00 | L63: 0.0% | M63: $12.12 | N63: $12.41 | O63: 45.0% | P63: 45.0% | Q63: $0.00 | R63: $0.00 | T63: 0.0% | U63: =X63/1.3 -> $26.92 | V63: $27.57 | W63: 30.00% | X63: $35.00 | Y63: $35.84 | Z63: =IF(Y63=0, 0, IF(Y63<10, _xlfn.CEILING.MATH(Y63,1), IF(Y63<100, _xlfn.CEILING.MATH(Y63,1),IF(Y63<1000, _xlfn.CEILING.MATH(Y63,5), IF(Y63<10000, _xlfn.CEILING.MATH(Y63, 25), IF(Y63<100000, _xlfn.CEILING.MATH(Y63,250), IF(Y63<1000000, _xlfn.CEILING.MATH(Y63,500), 0))))))) -> $36.00 | AA63: $0
A64: 202190 | B64: REMOVE PIPE (30"-42") In TRENCH-Depth 8-10 FEET | D64: LF | E64: $21.15 | F64: $21.66 | G64: 55.0% | H64: 55.0% | I64: $0.00 | J64: $0.00 | L64: 0.0% | M64: $17.31 | N64: $17.72 | O64: 45.0% | P64: 45.0% | Q64: $0.00 | R64: $0.00 | T64: 0.0% | U64: =X64/1.3 -> $38.46 | V64: $39.38 | W64: 30.00% | X64: $50.00 | Y64: $51.20 | Z64: =IF(Y64=0, 0, IF(Y64<10, _xlfn.CEILING.MATH(Y64,1), IF(Y64<100, _xlfn.CEILING.MATH(Y64,1),IF(Y64<1000, _xlfn.CEILING.MATH(Y64,5), IF(Y64<10000, _xlfn.CEILING.MATH(Y64, 25), IF(Y64<100000, _xlfn.CEILING.MATH(Y64,250), IF(Y64<1000000, _xlfn.CEILING.MATH(Y64,500), 0))))))) -> $52.00 | AA64: $0
A65: 202190 | B65: REMOVE PIPE (45"-52") In TRENCH-Depth 10-15 FEET | D65: LF | E65: $31.73 | F65: $32.49 | G65: 55.0% | H65: 55.0% | I65: $0.00 | J65: $0.00 | L65: 0.0% | M65: $25.96 | N65: $26.58 | O65: 45.0% | P65: 45.0% | Q65: $0.00 | R65: $0.00 | T65: 0.0% | U65: =X65/1.3 -> $57.69 | V65: $59.07 | W65: 30.00% | X65: $75.00 | Y65: $76.80 | Z65: =IF(Y65=0, 0, IF(Y65<10, _xlfn.CEILING.MATH(Y65,1), IF(Y65<100, _xlfn.CEILING.MATH(Y65,1),IF(Y65<1000, _xlfn.CEILING.MATH(Y65,5), IF(Y65<10000, _xlfn.CEILING.MATH(Y65, 25), IF(Y65<100000, _xlfn.CEILING.MATH(Y65,250), IF(Y65<1000000, _xlfn.CEILING.MATH(Y65,500), 0))))))) -> $77.00 | AA65: $0
A66: 202190 | B66: REMOVE PIPE (55"-72") In TRENCH-Depth 15-25 FEET | D66: LF | E66: $38.08 | F66: $38.99 | G66: 55.0% | H66: 55.0% | I66: $0.00 | J66: $0.00 | L66: 0.0% | M66: $31.15 | N66: $31.90 | O66: 45.0% | P66: 45.0% | Q66: $0.00 | R66: $0.00 | T66: 0.0% | U66: =X66/1.3 -> $69.23 | V66: $70.89 | W66: 30.00% | X66: $90.00 | Y66: $92.16 | Z66: =IF(Y66=0, 0, IF(Y66<10, _xlfn.CEILING.MATH(Y66,1), IF(Y66<100, _xlfn.CEILING.MATH(Y66,1),IF(Y66<1000, _xlfn.CEILING.MATH(Y66,5), IF(Y66<10000, _xlfn.CEILING.MATH(Y66, 25), IF(Y66<100000, _xlfn.CEILING.MATH(Y66,250), IF(Y66<1000000, _xlfn.CEILING.MATH(Y66,500), 0))))))) -> $93.00 | AA66: $0
A67: 202200 | B67: REMOVE PAVEMENT MARKING, THERMOPLASTIC | D67: LF | E67: $0.23 | F67: $0.23 | G67: 15.0% | H67: 15.0% | I67: $0.00 | J67: $0.00 | L67: 0.0% | M67: $0.00 | N67: $0.00 | P67: 0.0% | Q67: $1.31 | R67: $1.33 | S67: 85.0% | T67: 85.0% | U67: $1.54 | V67: $1.56 | W67: 30.0% | X67: =U67+U67*W67 -> $2.00 | Y67: $2.03 | Z67: =IF(Y67=0, 0, IF(Y67<10, _xlfn.CEILING.MATH(Y67,0.05), IF(Y67<100, _xlfn.CEILING.MATH(Y67,1),IF(Y67<1000, _xlfn.CEILING.MATH(Y67,5), IF(Y67<10000, _xlfn.CEILING.MATH(Y67, 25), IF(Y67<100000, _xlfn.CEILING.MATH(Y67,250), IF(Y67<1000000, _xlfn.CEILING.MATH(Y67,500), 0))))))) -> $2.05 | AA67: $0
A68: 202250 | B68: REMOVE BOLLARD | D68: EA | E68: $90.00 | F68: $92.12 | G68: 90.0% | H68: 90.0% | I68: $0.00 | J68: $0.00 | L68: 0.0% | M68: $10.00 | N68: $10.24 | O68: 10.0% | P68: 10.0% | Q68: $0.00 | R68: $0.00 | T68: 0.0% | U68: $100.00 | V68: $102.36 | W68: 20.00% | X68: =U68+U68*W68 -> $120.00 | Y68: $122.83 | Z68: =IF(Y68=0, 0, IF(Y68<10, _xlfn.CEILING.MATH(Y68,1), IF(Y68<100, _xlfn.CEILING.MATH(Y68,1),IF(Y68<1000, _xlfn.CEILING.MATH(Y68,5), IF(Y68<10000, _xlfn.CEILING.MATH(Y68, 25), IF(Y68<100000, _xlfn.CEILING.MATH(Y68,250), IF(Y68<1000000, _xlfn.CEILING.MATH(Y68,500), 0))))))) -> $125.00 | AA68: $0
A69: 202255 | B69: REMOVE BRACKET ARM | D69: EA | E69: $23.85 | F69: $24.18 | G69: 20.0% | H69: 20.0% | I69: $0.00 | J69: $0.00 | L69: 0.0% | M69: $0.00 | N69: $0.00 | P69: 0.0% | Q69: $95.38 | R69: $96.71 | S69: 80.0% | T69: 80.0% | U69: $119.23 | V69: $120.89 | W69: 30.00% | X69: =U69+U69*W69 -> $155.00 | Y69: $157.15 | Z69: $160.00 | AA69: $0
A70: 202270 | B70: REMOVE CATCH BASIN OR SAND BOX {QTY<=3 EA} | D70: EA | E70: $406.25 | F70: $415.41 | G70: 65.0% | H70: 65.0% | I70: $0.00 | J70: $0.00 | L70: 0.0% | M70: $156.25 | N70: $159.77 | O70: 25.0% | P70: 25.0% | Q70: $62.50 | R70: $63.91 | S70: 10.0% | T70: 10.0% | U70: =750/1.2 -> $625.00 | V70: $639.09 | W70: 20.00% | X70: $750.00 | Y70: $766.91 | Z70: $770.00 | AA70: $0
A71: 202270 | B71: REMOVE CATCH BASIN OR SAND BOX {QTY>3 EA} | D71: EA | E71: $270.83 | F71: $276.94 | G71: 65.0% | H71: 65.0% | I71: $0.00 | J71: $0.00 | L71: 0.0% | M71: $104.17 | N71: $106.52 | O71: 25.0% | P71: 25.0% | Q71: $41.67 | R71: $42.61 | S71: 10.0% | T71: 10.0% | U71: $416.67 | V71: $426.06 | W71: 20.00% | X71: =U71+U71*W71 -> $500.00 | Y71: $511.28 | Z71: $515.00 | AA71: $0
A72: 202275 | B72: REMOVE Conduit Riser - Steel Pipe | D72: EA | E72: $75.00 | F72: $76.59 | G72: 65.0% | H72: 65.0% | I72: $0.00 | J72: $0.00 | L72: 0.0% | M72: $17.31 | N72: $17.68 | O72: 15.0% | P72: 15.0% | Q72: $23.08 | R72: $23.57 | S72: 20.0% | T72: 20.0% | U72: $115.39 | V72: $117.84 | W72: 30.00% | X72: $150.00 | Y72: $153.19 | Z72: $155.00 | AA72: $0
A73: 202280 | B73: REMOVE Down Guy Assembly | D73: EA | E73: $201.92 | F73: $206.19 | G73: 75.0% | H73: 75.0% | I73: $0.00 | J73: $0.00 | L73: 0.0% | M73: $13.46 | N73: $13.75 | O73: 5.0% | P73: 5.0% | Q73: $53.85 | R73: $54.98 | S73: 20.0% | T73: 20.0% | U73: $269.23 | V73: $274.92 | W73: 30.00% | X73: $350.00 | Y73: $357.40 | Z73: $360.00 | AA73: $0
A74: 202290 | B74: REMOVE Electrical Vault (4'-6"x3'-2"x2') | D74: EA | E74: $369.23 | F74: $377.58 | G74: 60.0% | H74: 60.0% | I74: $0.00 | J74: $0.00 | L74: 0.0% | M74: $184.62 | N74: $188.79 | O74: 30.0% | P74: 30.0% | Q74: $61.54 | R74: $62.93 | S74: 10.0% | T74: 10.0% | U74: $615.39 | V74: $629.29 | W74: 30.00% | X74: $800.00 | Y74: $818.08 | Z74: $820.00 | AA74: $0
A75: 202290 | B75: REMOVE Electrical Vault (1'x2'x1'-9") | D75: EA | E75: $307.69 | F75: $314.18 | G75: 80.0% | H75: 80.0% | I75: $0.00 | J75: $0.00 | L75: 0.0% | M75: $0.00 | N75: $0.00 | P75: 0.0% | Q75: $76.92 | R75: $78.55 | S75: 20.0% | T75: 20.0% | U75: $384.62 | V75: $392.73 | W75: 30.00% | X75: $500.00 | Y75: $510.55 | Z75: $515.00 | AA75: $0
A76: 202290 | B76: REMOVE Electrical Vault (4'x4'x4') | D76: EA | E76: $553.85 | F76: $566.36 | G76: 60.0% | H76: 60.0% | I76: $0.00 | J76: $0.00 | L76: 0.0% | M76: $276.92 | N76: $283.18 | O76: 30.0% | P76: 30.0% | Q76: $92.31 | R76: $94.39 | S76: 10.0% | T76: 10.0% | U76: $923.08 | V76: $943.94 | W76: 30.00% | X76: $1,200.00 | Y76: $1,227.12 | Z76: $1,250.00 | AA76: $0
A77: 202290 | B77: REMOVE Electrical Vault (4'x4'x6') | D77: EA | E77: $761.54 | F77: $778.75 | G77: 60.0% | H77: 60.0% | I77: $0.00 | J77: $0.00 | L77: 0.0% | M77: $380.77 | N77: $389.37 | O77: 30.0% | P77: 30.0% | Q77: $126.92 | R77: $129.79 | S77: 10.0% | T77: 10.0% | U77: $1,269.23 | V77: $1,297.91 | W77: 30.00% | X77: $1,650.00 | Y77: $1,687.29 | Z77: $1,700.00 | AA77: $0
A78: 202295 | B78: REMOVE Foundation, Pedestal | D78: EA | E78: $270.84 | F78: $277.29 | G78: 65.0% | H78: 65.0% | I78: $0.00 | J78: $0.00 | L78: 0.0% | M78: $145.83 | N78: $149.31 | O78: 35.0% | P78: 35.0% | Q78: $0.00 | R78: $0.00 | T78: 0.0% | U78: $416.67 | V78: $426.61 | W78: 20.00% | X78: $500.00 | Y78: $511.93 | Z78: $515.00 | AA78: $0
A79: 202296 | B79: REMOVE Foundation, Pedestrian Push Button Post | D79: EA | E79: $323.08 | F79: $329.96 | G79: 60.0% | H79: 60.0% | I79: $0.00 | J79: $0.00 | L79: 0.0% | M79: $107.69 | N79: $109.99 | O79: 20.0% | P79: 20.0% | Q79: $107.69 | R79: $109.99 | S79: 20.0% | T79: 20.0% | U79: $538.46 | V79: $549.93 | W79: 30.00% | X79: $700.00 | Y79: $714.91 | Z79: $715.00 | AA79: $0
A80: 202305 | B80: REMOVE Foundation, Metal Pole | D80: EA | E80: $583.33 | F80: $597.21 | G80: 70.0% | H80: 70.0% | I80: $0.00 | J80: $0.00 | L80: 0.0% | M80: $250.00 | N80: $255.95 | O80: 30.0% | P80: 30.0% | Q80: $0.00 | R80: $0.00 | T80: 0.0% | U80: $833.33 | V80: $853.16 | W80: 20.00% | X80: $1,000.00 | Y80: $1,023.80 | Z80: $1,025.00 | AA80: $0
A81: 202310 | B81: REMOVE Foundation, Street Light Pole {QTY <=10} | D81: EA | E81: $346.16 | F81: $353.56 | G81: 50.0% | H81: 50.0% | I81: $0.00 | J81: $0.00 | L81: 0.0% | M81: $207.69 | N81: $212.14 | O81: 30.0% | P81: 30.0% | Q81: $138.46 | R81: $141.43 | S81: 20.0% | T81: 20.0% | U81: $692.31 | V81: $707.13 | W81: 30.00% | X81: $900.00 | Y81: $919.26 | Z81: $920.00 | AA81: $0
A82: 202310 | B82: REMOVE Foundation, Street Light Pole {QTY >10} | D82: EA | E82: $276.92 | F82: $283.18 | G82: 60.0% | H82: 60.0% | I82: $0.00 | J82: $0.00 | L82: 0.0% | M82: $138.46 | N82: $141.59 | O82: 30.0% | P82: 30.0% | Q82: $46.15 | R82: $47.20 | S82: 10.0% | T82: 10.0% | U82: $461.54 | V82: $471.97 | W82: 30.00% | X82: $600.00 | Y82: $613.56 | Z82: $615.00 | AA82: $0
A83: 202315 | B83: REMOVE Foundation, Traffic Signal Controller | D83: EA | E83: $480.00 | F83: $491.40 | G83: 75.0% | H83: 75.0% | I83: $0.00 | J83: $0.00 | L83: 0.0% | M83: $160.00 | N83: $163.80 | O83: 25.0% | P83: 25.0% | Q83: $0.00 | R83: $0.00 | T83: 0.0% | U83: $640.00 | V83: $655.20 | W83: 25.00% | X83: $800.00 | Y83: $819.00 | Z83: $820.00 | AA83: $0
A84: 202325 | B84: REMOVE Gate Valve {QTY < =10} | D84: EA | E84: $215.38 | F84: $220.51 | G84: 70.0% | H84: 70.0% | I84: $0.00 | J84: $0.00 | L84: 0.0% | M84: $92.31 | N84: $94.50 | O84: 30.0% | P84: 30.0% | Q84: $0.00 | R84: $0.00 | T84: 0.0% | U84: $307.69 | V84: $315.01 | W84: 30.00% | X84: $400.00 | Y84: $409.52 | Z84: $410.00 | AA84: $0
A85: 202325 | B85: REMOVE Gate Valve {QTY >10} | D85: EA | E85: $161.54 | F85: $165.38 | G85: 70.0% | H85: 70.0% | I85: $0.00 | J85: $0.00 | L85: 0.0% | M85: $69.23 | N85: $70.88 | O85: 30.0% | P85: 30.0% | Q85: $0.00 | R85: $0.00 | T85: 0.0% | U85: $230.77 | V85: $236.26 | W85: 30.00% | X85: $300.00 | Y85: $307.14 | Z85: $310.00 | AA85: $0
A86: 202330 | B86: REMOVE Handhole | D86: EA | E86: $107.69 | F86: $109.97 | G86: 70.0% | H86: 70.0% | I86: $0.00 | J86: $0.00 | L86: 0.0% | M86: $15.38 | N86: $15.71 | O86: 10.0% | P86: 10.0% | Q86: $30.77 | R86: $31.42 | S86: 20.0% | T86: 20.0% | U86: $153.85 | V86: $157.11 | W86: 30.00% | X86: $200.00 | Y86: $204.24 | Z86: $205.00 | AA86: $0
A87: 202335 | B87: REMOVE Hydrant | D87: EA | E87: $637.50 | F87: $652.58 | G87: 85.0% | H87: 85.0% | I87: $0.00 | J87: $0.00 | L87: 0.0% | M87: $112.50 | N87: $115.16 | O87: 15.0% | P87: 15.0% | Q87: $0.00 | R87: $0.00 | T87: 0.0% | U87: $750.00 | V87: $767.74 | W87: 20.00% | X87: $900.00 | Y87: $921.29 | Z87: $925.00 | AA87: $0
A88: 202340 | B88: REMOVE Inlet {QTY >5} | D88: EA | E88: =U88*G88 -> $201.92 | F88: $206.72 | G88: 75.0% | H88: =G88 -> 75.0% | I88: =U88*K88 -> $0.00 | J88: $0.00 | L88: =K88 -> 0.0% | M88: =U88*O88 -> $67.31 | N88: =P88*V88 -> $68.91 | O88: 25.0% | P88: =O88 -> 25.0% | Q88: =U88*S88 -> $0.00 | R88: =T88*V88 -> $0.00 | T88: =S88 -> 0.0% | U88: $269.23 | V88: $275.62 | W88: 30.0% | X88: $350.00 | Y88: =IF(V88*(W88+1)=0,X88,V88*(W88+1)) -> $358.31 | Z88: $360.00 | AA88: =C88*Z88 -> $0
A89: 202340 | B89: REMOVE Inlet {QTY <=5} | D89: EA | E89: $230.77 | F89: $236.25 | G89: 75.0% | H89: 75.0% | I89: $0.00 | J89: $0.00 | L89: 0.0% | M89: $76.92 | N89: $78.75 | O89: 25.0% | P89: 25.0% | Q89: $0.00 | R89: $0.00 | T89: 0.0% | U89: $307.69 | V89: $315.00 | W89: 30.0% | X89: $400.00 | Y89: $409.50 | Z89: $410.00 | AA89: $0
A90: 202345 | B90: REMOVE Luminaire {QTY> 10} | D90: EA | E90: $75.00 | F90: $76.60 | G90: 60.0% | H90: 60.0% | I90: $0.00 | J90: $0.00 | L90: 0.0% | M90: $25.00 | N90: $25.53 | O90: 20.0% | P90: 20.0% | Q90: $25.00 | R90: $25.53 | S90: 20.0% | T90: 20.0% | U90: $125.00 | V90: $127.66 | W90: 20.00% | X90: $150.00 | Y90: $153.20 | Z90: $155.00 | AA90: $0
A91: 202345 | B91: REMOVE Luminaire {QTY< =10} | D91: EA | E91: $125.00 | F91: $127.66 | G91: 60.0% | H91: 60.0% | I91: $0.00 | J91: $0.00 | L91: 0.0% | M91: $41.67 | N91: $42.55 | O91: 20.0% | P91: 20.0% | Q91: $41.67 | R91: $42.55 | S91: 20.0% | T91: 20.0% | U91: $208.33 | V91: $212.77 | W91: 20.00% | X91: $250.00 | Y91: $255.32 | Z91: $260.00 | AA91: $0
A92: 202350 | B92: REMOVE Luminaire and Bracket Arm | D92: EA | E92: $100.00 | F92: $102.13 | G92: 60.0% | H92: 60.0% | I92: $0.00 | J92: $0.00 | L92: 0.0% | M92: $33.33 | N92: $34.04 | O92: 20.0% | P92: 20.0% | Q92: $33.33 | R92: $34.04 | S92: 20.0% | T92: 20.0% | U92: $166.67 | V92: $170.22 | W92: 20.00% | X92: $200.00 | Y92: $204.26 | Z92: $205.00 | AA92: $0
A93: 202355 | B93: REMOVE Maintenance Hole {QTY >3} | D93: EA | E93: $540.00 | F93: $552.12 | G93: 75.0% | H93: 75.0% | I93: $0.00 | J93: $0.00 | L93: 0.0% | M93: $108.00 | N93: $110.42 | O93: 15.0% | P93: 15.0% | Q93: $72.00 | R93: $73.62 | S93: 10.0% | T93: 10.0% | U93: $720.00 | V93: $736.16 | W93: 25.00% | X93: $900.00 | Y93: $920.21 | Z93: $925.00 | AA93: $0
A94: 202355 | B94: REMOVE Maintenance Hole {QTY <=3} | D94: EA | E94: $750.00 | F94: $766.84 | G94: 75.0% | H94: 75.0% | I94: $0.00 | J94: $0.00 | L94: 0.0% | M94: $150.00 | N94: $153.37 | O94: 15.0% | P94: 15.0% | Q94: $100.00 | R94: $102.25 | S94: 10.0% | T94: 10.0% | U94: $1,000.00 | V94: $1,022.45 | W94: 25.00% | X94: $1,250.00 | Y94: $1,278.06 | Z94: $1,300.00 | AA94: $0
A95: 202365 | B95: REMOVE Pavement Marking Legend/Symbol | D95: EA | E95: $35.42 | F95: $36.26 | G95: 85.0% | H95: 85.0% | I95: $0.00 | J95: $0.00 | L95: 0.0% | M95: $6.25 | N95: $6.40 | O95: 15.0% | P95: 15.0% | Q95: $0.00 | R95: $0.00 | T95: 0.0% | U95: $41.67 | V95: $42.66 | W95: 20.00% | X95: $50.00 | Y95: $51.19 | Z95: $52.00 | AA95: $0
A96: 202370 | B96: REMOVE Pedestal {QTY>5} | D96: EA | E96: $161.54 | F96: $165.17 | G96: 70.0% | H96: 70.0% | I96: $0.00 | J96: $0.00 | L96: 0.0% | M96: $46.15 | N96: $47.19 | O96: 20.0% | P96: 20.0% | Q96: $23.08 | R96: $23.60 | S96: 10.0% | T96: 10.0% | U96: $230.77 | V96: $235.96 | W96: 30.00% | X96: $300.00 | Y96: $306.75 | Z96: $310.00 | AA96: $0
A97: 202370 | B97: REMOVE Pedestal {QTY<=5} | D97: EA | E97: $296.16 | F97: $302.82 | G97: 70.0% | H97: 70.0% | I97: $0.00 | J97: $0.00 | L97: 0.0% | M97: $84.62 | N97: $86.52 | O97: 20.0% | P97: 20.0% | Q97: $42.31 | R97: $43.26 | S97: 10.0% | T97: 10.0% | U97: $423.08 | V97: $432.60 | W97: 30.00% | X97: $550.00 | Y97: $562.38 | Z97: $565.00 | AA97: $0
A98: 202380 | B98: REMOVE Wood Pile {12' Dia up to 40' Long} | D98: EA | E98: $125.00 | F98: $127.68 | G98: 50.0% | H98: 50.0% | I98: $0.00 | J98: $0.00 | L98: 0.0% | M98: $75.00 | N98: $76.61 | O98: 30.0% | P98: 30.0% | Q98: $50.00 | R98: $51.07 | S98: 20.0% | T98: 20.0% | U98: $250.00 | V98: $255.35 | W98: 20.00% | X98: $300.00 | Y98: $306.42 | Z98: $310.00 | AA98: $0
A99: 202380 | B99: REMOVE Wood Pile {14" Dia up to 50' Long} | D99: EA | E99: $166.67 | F99: $170.23 | G99: 50.0% | H99: 50.0% | I99: $0.00 | J99: $0.00 | L99: 0.0% | M99: $100.00 | N99: $102.14 | O99: 30.0% | P99: 30.0% | Q99: $66.67 | R99: $68.09 | S99: 20.0% | T99: 20.0% | U99: $333.33 | V99: $340.46 | W99: 20.00% | X99: $400.00 | Y99: $408.56 | Z99: $410.00 | AA99: $0
A100: 202382 | B100: REMOVE Pole, Concrete or Fiberglass | D100: EA | E100: $375.00 | F100: $383.18 | G100: 75.0% | H100: 75.0% | I100: $0.00 | J100: $0.00 | L100: 0.0% | M100: $50.00 | N100: $51.09 | O100: 10.0% | P100: 10.0% | Q100: $75.00 | R100: $76.64 | S100: 15.0% | T100: 15.0% | U100: $500.00 | V100: $510.90 | W100: 20.00% | X100: $600.00 | Y100: $613.08 | Z100: $615.00 | AA100: $0
A101: 202385 | B101: REMOVE Pole, Metal {QTY <=20} | D101: EA | E101: $375.00 | F101: $383.18 | G101: 75.0% | H101: 75.0% | I101: $0.00 | J101: $0.00 | L101: 0.0% | M101: $50.00 | N101: $51.09 | O101: 10.0% | P101: 10.0% | Q101: $75.00 | R101: $76.64 | S101: 15.0% | T101: 15.0% | U101: $500.00 | V101: $510.90 | W101: 20.00% | X101: $600.00 | Y101: $613.08 | Z101: $615.00 | AA101: $0
A102: 202385 | B102: REMOVE Pole, Metal {QTY>20} | D102: EA | E102: $250.00 | F102: $255.45 | G102: 75.0% | H102: 75.0% | I102: $0.00 | J102: $0.00 | L102: 0.0% | M102: $33.33 | N102: $34.06 | O102: 10.0% | P102: 10.0% | Q102: $50.00 | R102: $51.09 | S102: 15.0% | T102: 15.0% | U102: $333.33 | V102: $340.60 | W102: 20.00% | X102: $400.00 | Y102: $408.72 | Z102: $410.00 | AA102: $0
A103: 202390 | B103: REMOVE Pole, Street Light {QTY<=20} | D103: EA | E103: $325.00 | F103: $332.12 | G103: 65.0% | H103: 65.0% | I103: $0.00 | J103: $0.00 | L103: 0.0% | M103: $100.00 | N103: $102.19 | O103: 20.0% | P103: 20.0% | Q103: $75.00 | R103: $76.64 | S103: 15.0% | T103: 15.0% | U103: $500.00 | V103: $510.95 | W103: 20.00% | X103: $600.00 | Y103: $613.14 | Z103: $615.00 | AA103: $0
A104: 202390 | B104: REMOVE Pole, Street Light {QTY >20} | D104: EA | E104: $216.66 | F104: $221.41 | G104: 65.0% | H104: 65.0% | I104: $0.00 | J104: $0.00 | L104: 0.0% | M104: $66.67 | N104: $68.13 | O104: 20.0% | P104: 20.0% | Q104: $50.00 | R104: $51.09 | S104: 15.0% | T104: 15.0% | U104: $333.33 | V104: $340.63 | W104: 20.00% | X104: $400.00 | Y104: $408.76 | Z104: $410.00 | AA104: $0
A105: 202395 | B105: REMOVE Pole, Wood {QTY< =20} | D105: EA | E105: $312.75 | F105: $319.57 | G105: 75.0% | H105: 75.0% | I105: $0.00 | J105: $0.00 | L105: 0.0% | M105: $41.70 | N105: $42.61 | O105: 10.0% | P105: 10.0% | Q105: $62.55 | R105: $63.91 | S105: 15.0% | T105: 15.0% | U105: $417.00 | V105: $426.09 | W105: 20.00% | X105: $500.40 | Y105: $511.31 | Z105: $515.00 | AA105: $0
A106: 202395 | B106: REMOVE Pole, Wood {QTY >20} | D106: EA | E106: $218.75 | F106: $223.52 | G106: 75.0% | H106: 75.0% | I106: $0.00 | J106: $0.00 | L106: 0.0% | M106: $29.17 | N106: $29.80 | O106: 10.0% | P106: 10.0% | Q106: $43.75 | R106: $44.70 | S106: 15.0% | T106: 15.0% | U106: $291.67 | V106: $298.03 | W106: 20.00% | X106: $350.00 | Y106: $357.63 | Z106: $360.00 | AA106: $0
A107: 202400 | B107: REMOVE Post, Bus Zone | D107: EA | E107: $85.00 | F107: $87.01 | G107: 85.0% | H107: 85.0% | I107: $0.00 | J107: $0.00 | L107: 0.0% | M107: $15.00 | N107: $15.35 | O107: 15.0% | P107: 15.0% | Q107: $0.00 | R107: $0.00 | T107: 0.0% | U107: $100.00 | V107: $102.37 | W107: 20.00% | X107: $120.00 | Y107: $122.84 | Z107: $125.00 | AA107: $0
A108: 202405 | B108: REMOVE Post, Parking Meter | D108: EA | E108: $85.00 | F108: $87.01 | G108: 85.0% | H108: 85.0% | I108: $0.00 | J108: $0.00 | L108: 0.0% | M108: $15.00 | N108: $15.35 | O108: 15.0% | P108: 15.0% | Q108: $0.00 | R108: $0.00 | T108: 0.0% | U108: $100.00 | V108: $102.37 | W108: 20.00% | X108: $120.00 | Y108: $122.84 | Z108: $125.00 | AA108: $0
A109: 202410 | B109: REMOVE Post, Pedestrian Pushbutton {QTY <=5} | D109: EA | E109: $85.00 | F109: $87.01 | G109: 85.0% | H109: 85.0% | I109: $0.00 | J109: $0.00 | L109: 0.0% | M109: $15.00 | N109: $15.35 | O109: 15.0% | P109: 15.0% | Q109: $0.00 | R109: $0.00 | T109: 0.0% | U109: $100.00 | V109: $102.37 | W109: 20.00% | X109: $120.00 | Y109: $122.84 | Z109: $125.00 | AA109: $0
A110: 202410 | B110: REMOVE Post, Pedestrian Pushbutton {QTY >5} | D110: EA | E110: $63.75 | F110: $65.26 | G110: 85.0% | H110: 85.0% | I110: $0.00 | J110: $0.00 | L110: 0.0% | M110: $11.25 | N110: $11.52 | O110: 15.0% | P110: 15.0% | Q110: $0.00 | R110: $0.00 | T110: 0.0% | U110: $75.00 | V110: $76.77 | W110: 20.00% | X110: $90.00 | Y110: $92.13 | Z110: $93.00 | AA110: $0
A111: 202415 | B111: REMOVE Post, Street Name {QTY <=10} | D111: EA | E111: $85.00 | F111: $87.01 | G111: 85.0% | H111: 85.0% | I111: $0.00 | J111: $0.00 | L111: 0.0% | M111: $15.00 | N111: $15.35 | O111: 15.0% | P111: 15.0% | Q111: $0.00 | R111: $0.00 | T111: 0.0% | U111: $100.00 | V111: $102.37 | W111: 20.00% | X111: $120.00 | Y111: $122.84 | Z111: $125.00 | AA111: $0
A112: 202415 | B112: REMOVE Post, Street Name {QTY >10} | D112: EA | E112: $63.75 | F112: $65.26 | G112: 85.0% | H112: 85.0% | I112: $0.00 | J112: $0.00 | L112: 0.0% | M112: $11.25 | N112: $11.52 | O112: 15.0% | P112: 15.0% | Q112: $0.00 | R112: $0.00 | T112: 0.0% | U112: $75.00 | V112: $76.77 | W112: 20.00% | X112: $90.00 | Y112: $92.13 | Z112: $93.00 | AA112: $0
A113: 202420 | B113: REMOVE Post, Traffic Sign {QTY <=20} | D113: EA | E113: $85.00 | F113: $87.01 | G113: 85.0% | H113: 85.0% | I113: $0.00 | J113: $0.00 | L113: 0.0% | M113: $15.00 | N113: $15.35 | O113: 15.0% | P113: 15.0% | Q113: $0.00 | R113: $0.00 | T113: 0.0% | U113: $100.00 | V113: $102.37 | W113: 20.00% | X113: $120.00 | Y113: $122.84 | Z113: $125.00 | AA113: $0
A114: 202420 | B114: REMOVE Post, Traffic Sign {QTY >20} | D114: EA | E114: $63.75 | F114: $65.26 | G114: 85.0% | H114: 85.0% | I114: $0.00 | J114: $0.00 | L114: 0.0% | M114: $11.25 | N114: $11.52 | O114: 15.0% | P114: 15.0% | Q114: $0.00 | R114: $0.00 | T114: 0.0% | U114: $75.00 | V114: $76.77 | W114: 20.00% | X114: $90.00 | Y114: $92.13 | Z114: $93.00 | AA114: $0
A115: 202420 | B115: REMOVE Post, Traffic Sign {QTY< 5} - (Special requirement-Historical) | D115: EA | E115: $389.58 | F115: $398.80 | G115: 85.0% | H115: 85.0% | I115: $0.00 | J115: $0.00 | L115: 0.0% | M115: $68.75 | N115: $70.38 | O115: 15.0% | P115: 15.0% | Q115: $0.00 | R115: $0.00 | T115: 0.0% | U115: $458.33 | V115: $469.17 | W115: 20.00% | X115: $550.00 | Y115: $563.01 | Z115: $565.00 | AA115: $0
A116: 202425 | B116: REMOVE Shrub {QTY<=10} | D116: EA | E116: $16.67 | F116: $16.90 | G116: 20.0% | H116: 20.0% | I116: $0.00 | J116: $0.00 | L116: 0.0% | M116: $0.00 | N116: $0.00 | P116: 0.0% | Q116: $66.66 | R116: $67.59 | S116: 80.0% | T116: 80.0% | U116: $83.33 | V116: $84.49 | W116: 20.00% | X116: $100.00 | Y116: $101.39 | Z116: $105.00 | AA116: $0
A117: 202425 | B117: REMOVE Shrub {QTY> 10} | D117: EA | E117: $13.33 | F117: $13.52 | G117: 20.0% | H117: 20.0% | I117: $0.00 | J117: $0.00 | L117: 0.0% | M117: $0.00 | N117: $0.00 | P117: 0.0% | Q117: $53.34 | R117: $54.08 | S117: 80.0% | T117: 80.0% | U117: $66.67 | V117: $67.60 | W117: 20.00% | X117: $80.00 | Y117: $81.12 | Z117: $82.00 | AA117: $0
A118: 202430 | B118: REMOVE Sign {QTY<=10} | D118: EA | E118: $70.83 | F118: $72.51 | G118: 85.0% | H118: 85.0% | I118: $0.00 | J118: $0.00 | L118: 0.0% | M118: $12.50 | N118: $12.80 | O118: 15.0% | P118: 15.0% | Q118: $0.00 | R118: $0.00 | T118: 0.0% | U118: $83.33 | V118: $85.30 | W118: 20.00% | X118: $100.00 | Y118: $102.36 | Z118: $105.00 | AA118: $0
A119: 202430 | B119: REMOVE Sign {QTY 10-20} | D119: EA | E119: $56.67 | F119: $58.01 | G119: 85.0% | H119: 85.0% | I119: $0.00 | J119: $0.00 | L119: 0.0% | M119: $10.00 | N119: $10.24 | O119: 15.0% | P119: 15.0% | Q119: $0.00 | R119: $0.00 | T119: 0.0% | U119: $66.67 | V119: $68.25 | W119: 20.00% | X119: $80.00 | Y119: $81.90 | Z119: $82.00 | AA119: $0
A120: 202430 | B120: REMOVE Sign {QTY> 20} | D120: EA | E120: =U120*G120 -> $46.04 | F120: $47.13 | G120: 85.0% | H120: 85.0% | I120: =U120*K120 -> $0.00 | J120: $0.00 | L120: 0.0% | M120: $8.13 | N120: $8.32 | O120: 15.0% | P120: 15.0% | Q120: $0.00 | R120: $0.00 | T120: 0.0% | U120: $54.17 | V120: $55.45 | W120: 20.00% | X120: $65.00 | Y120: $66.54 | Z120: $67.00 | AA120: $0
A121: 202435 | B121: REMOVE Sign, Bus Zone | D121: EA | E121: $80.00 | F121: $81.90 | G121: 80.0% | H121: 80.0% | I121: $0.00 | J121: $0.00 | L121: 0.0% | M121: $20.00 | N121: $20.47 | O121: 20.0% | P121: 20.0% | Q121: $0.00 | R121: $0.00 | T121: 0.0% | U121: $100.00 | V121: $102.37 | W121: 20.00% | X121: $120.00 | Y121: $122.84 | Z121: $125.00 | AA121: $0
A122: 202445 | B122: REMOVE Sign, Overhead {QTY < =5} | D122: EA | E122: $187.50 | F122: $191.95 | G122: 75.0% | H122: 75.0% | I122: $0.00 | J122: $0.00 | L122: 0.0% | M122: $62.50 | N122: $63.98 | O122: 25.0% | P122: 25.0% | Q122: $0.00 | R122: $0.00 | T122: 0.0% | U122: $250.00 | V122: $255.94 | W122: 20.00% | X122: $300.00 | Y122: $307.13 | Z122: $310.00 | AA122: $0
A123: 202445 | B123: REMOVE Sign, Overhead {QTY > 10} | D123: EA | E123: $125.00 | F123: $127.97 | G123: 75.0% | H123: 75.0% | I123: $0.00 | J123: $0.00 | L123: 0.0% | M123: $41.67 | N123: $42.66 | O123: 25.0% | P123: 25.0% | Q123: $0.00 | R123: $0.00 | T123: 0.0% | U123: $166.67 | V123: $170.63 | W123: 20.00% | X123: $200.00 | Y123: $204.75 | Z123: $205.00 | AA123: $0
A124: 202450 | B124: REMOVE Sign, Traffic {QTY <=5} | D124: EA | E124: $75.00 | F124: $76.77 | G124: 90.0% | H124: 90.0% | I124: $0.00 | J124: $0.00 | L124: 0.0% | M124: $8.33 | N124: $8.53 | O124: 10.0% | P124: 10.0% | Q124: $0.00 | R124: $0.00 | T124: 0.0% | U124: $83.33 | V124: $85.30 | W124: 25.00% | X124: $104.16 | Y124: $106.62 | Z124: $110.00 | AA124: $0
A125: 202450 | B125: REMOVE Sign, Traffic {QTY 6-10} | D125: EA | E125: $60.00 | F125: $61.42 | G125: 90.0% | H125: 90.0% | I125: $0.00 | J125: $0.00 | L125: 0.0% | M125: $6.67 | N125: $6.82 | O125: 10.0% | P125: 10.0% | Q125: $0.00 | R125: $0.00 | T125: 0.0% | U125: $66.67 | V125: =SUM(E125*1.0235,I125*1.0175,M125*1.0245,Q125*1.0115) -> $68.24 | W125: 25.00% | X125: $83.34 | Y125: $85.30 | Z125: $86.00 | AA125: $0
A126: 202450 | B126: REMOVE Sign, Traffic {QTY> 10} | D126: EA | E126: $36.00 | F126: $36.85 | G126: 90.0% | H126: 90.0% | I126: $0.00 | J126: $0.00 | L126: 0.0% | M126: $4.00 | N126: $4.09 | O126: 10.0% | P126: 10.0% | Q126: $0.00 | R126: $0.00 | T126: 0.0% | U126: $40.00 | V126: $40.94 | W126: 25.00% | X126: $50.00 | Y126: $51.18 | Z126: $52.00 | AA126: $0
A127: 202455 | B127: REMOVE Pavement Marking Legend/Symbol, Thermopls. | D127: EA | E127: $18.52 | F127: $18.96 | G127: 50.0% | H127: 50.0% | I127: $0.00 | J127: $0.00 | L127: 0.0% | M127: $18.52 | N127: $18.96 | O127: 50.0% | P127: 50.0% | Q127: $0.00 | R127: $0.00 | T127: 0.0% | U127: $37.04 | V127: $37.93 | W127: 35.00% | X127: $50.00 | Y127: $51.20 | Z127: $52.00 | AA127: $0
A128: 202465 | B128: REMOVE Traffic Button | D128: EA | E128: $2.22 | F128: $2.25 | G128: 20.0% | H128: 20.0% | I128: $0.00 | J128: $0.00 | L128: 0.0% | M128: $0.00 | N128: $0.00 | P128: 0.0% | Q128: $8.89 | R128: $9.01 | S128: 80.0% | T128: 80.0% | U128: $11.11 | V128: $11.26 | W128: 35.00% | X128: $15.00 | Y128: $15.21 | Z128: $16.00 | AA128: $0
A129: 202475 | B129: REMOVE Traffic Signal Controller Cabinet {QTY<=5} | D129: EA | E129: $59.26 | F129: $60.01 | G129: 10.0% | H129: 10.0% | I129: $0.00 | J129: $0.00 | L129: 0.0% | M129: $0.00 | N129: $0.00 | P129: 0.0% | Q129: $533.33 | R129: $540.10 | S129: 90.0% | T129: 90.0% | U129: $592.59 | V129: $600.12 | W129: 35.00% | X129: $800.00 | Y129: $810.16 | Z129: $815.00 | AA129: $0
A130: 202475 | B130: REMOVE Traffic Signal Controller Cabinet {QTY>5} | D130: EA | E130: $44.44 | F130: $45.01 | G130: 10.0% | H130: 10.0% | I130: $0.00 | J130: $0.00 | L130: 0.0% | M130: $0.00 | N130: $0.00 | P130: 0.0% | Q130: $400.00 | R130: $405.08 | S130: 90.0% | T130: 90.0% | U130: $444.45 | V130: $450.09 | W130: 35.00% | X130: $600.00 | Y130: $607.62 | Z130: $610.00 | AA130: $0
A131: 202480 | B131: REMOVE Tree - Up to 6" diameter | D131: EA | E131: $0.00 | F131: $0.00 | H131: 0.0% | I131: $0.00 | J131: $0.00 | L131: 0.0% | M131: $57.69 | N131: $58.51 | O131: 20.0% | P131: 20.0% | Q131: $230.77 | R131: $234.02 | S131: 80.0% | T131: 80.0% | U131: $288.46 | V131: $292.53 | W131: 30.00% | X131: $375.00 | Y131: $380.29 | Z131: $385.00 | AA131: $0
A132: 202480 | B132: REMOVE Tree - 8" to 12" diameter | D132: EA | E132: $0.00 | F132: $0.00 | H132: 0.0% | I132: $0.00 | J132: $0.00 | L132: 0.0% | M132: $89.23 | N132: $90.49 | O132: 20.0% | P132: 20.0% | Q132: $356.92 | R132: $361.95 | S132: 80.0% | T132: 80.0% | U132: =446.15 -> $446.15 | V132: $452.44 | W132: 30.00% | X132: $580.00 | Y132: $588.17 | Z132: =IF(Y132=0, 0, IF(Y132<10, _xlfn.CEILING.MATH(Y132,1), IF(Y132<100, _xlfn.CEILING.MATH(Y132,1),IF(Y132<1000, _xlfn.CEILING.MATH(Y132,5), IF(Y132<10000, _xlfn.CEILING.MATH(Y132, 25), IF(Y132<100000, _xlfn.CEILING.MATH(Y132,250), IF(Y132<1000000, _xlfn.CEILING.MATH(Y132,500), 0))))))) -> $590.00 | AA132: $0
A133: 202480 | B133: REMOVE Tree - 14" to 24" diameter | D133: EA | E133: $0.00 | F133: $0.00 | H133: 0.0% | I133: $0.00 | J133: $0.00 | L133: 0.0% | M133: $111.54 | N133: $113.11 | O133: 20.0% | P133: 20.0% | Q133: $446.15 | R133: $452.44 | S133: 80.0% | T133: 80.0% | U133: $557.69 | V133: $565.55 | W133: 30.00% | X133: $725.00 | Y133: $735.22 | Z133: $740.00 | AA133: $0
A134: 202480 | B134: REMOVE Tree - 26" to 36" diameter | D134: EA | E134: $0.00 | F134: $0.00 | H134: 0.0% | I134: $0.00 | J134: $0.00 | L134: 0.0% | M134: $116.15 | N134: $117.79 | O134: 20.0% | P134: 20.0% | Q134: $464.62 | R134: $471.17 | S134: 80.0% | T134: 80.0% | U134: $580.77 | V134: $588.96 | W134: 30.00% | X134: $755.00 | Y134: $765.65 | Z134: $770.00 | AA134: $0
A135: 202500 | B135: REMOVE Valve Box {QTY<=5} | D135: EA | E135: $85.00 | F135: $87.03 | G135: 60.0% | H135: 60.0% | I135: $0.00 | J135: $0.00 | L135: 0.0% | M135: $56.67 | N135: $58.02 | O135: 40.0% | P135: 40.0% | Q135: $0.00 | R135: $0.00 | T135: 0.0% | U135: $141.67 | V135: $145.06 | W135: 20.00% | X135: =U135+U135*W135 -> $170.00 | Y135: $174.07 | Z135: $175.00 | AA135: $0
A136: 202500 | B136: REMOVE Valve Box {QTY >5} | D136: EA | E136: $75.00 | F136: $76.79 | G136: 60.0% | H136: 60.0% | I136: $0.00 | J136: $0.00 | L136: 0.0% | M136: $50.00 | N136: $51.20 | O136: 40.0% | P136: 40.0% | Q136: $0.00 | R136: $0.00 | T136: 0.0% | U136: $125.00 | V136: $127.99 | W136: 20.0% | X136: $150.00 | Y136: $153.59 | Z136: $155.00 | AA136: $0
A137: 202505 | B137: REMOVE Valve Chamber {QTY <=3} | D137: EA | E137: $433.34 | F137: $443.67 | G137: 65.0% | H137: 65.0% | I137: $0.00 | J137: $0.00 | L137: 0.0% | M137: $233.33 | N137: $238.90 | O137: 35.0% | P137: 35.0% | Q137: $0.00 | R137: $0.00 | T137: 0.0% | U137: $666.67 | V137: $682.57 | W137: 20.0% | X137: $800.00 | Y137: $819.08 | Z137: $820.00 | AA137: $0
A138: 202505 | B138: REMOVE Valve Chamber {QTY from 4 to 6} | D138: EA | E138: $379.16 | F138: $388.21 | G138: 65.0% | H138: 65.0% | I138: $0.00 | J138: $0.00 | L138: 0.0% | M138: $204.17 | N138: $209.03 | O138: 35.0% | P138: 35.0% | Q138: $0.00 | R138: $0.00 | T138: 0.0% | U138: $583.33 | V138: $597.24 | W138: 20.00% | X138: $700.00 | Y138: $716.69 | Z138: $720.00 | AA138: $0
A139: 202505 | B139: REMOVE Valve Chamber {QTY >6} | D139: EA | E139: $325.00 | F139: $332.75 | G139: 65.0% | H139: 65.0% | I139: $0.00 | J139: $0.00 | L139: 0.0% | M139: $175.00 | N139: $179.17 | O139: 35.0% | P139: 35.0% | Q139: $0.00 | R139: $0.00 | T139: 0.0% | U139: $500.00 | V139: $511.93 | W139: 20.00% | X139: $600.00 | Y139: $614.31 | Z139: $615.00 | AA139: $0
A140: 202650 | B140: REMOVE Vehicle Signal Head {QTY <=50} | D140: EA | E140: $44.44 | F140: $45.06 | G140: 20.0% | H140: 20.0% | I140: $0.00 | J140: $0.00 | L140: 0.0% | M140: $0.00 | N140: $0.00 | P140: 0.0% | Q140: $177.78 | R140: $180.25 | S140: 80.0% | T140: 80.0% | U140: $222.22 | V140: $225.31 | W140: 35.00% | X140: $300.00 | Y140: $304.17 | Z140: $305.00 | AA140: $0
A141: 202650 | B141: REMOVE Vehicle Signal Head {QTY >50} | D141: EA | E141: $25.18 | F141: $25.53 | G141: 20.0% | H141: 20.0% | I141: $0.00 | J141: $0.00 | L141: 0.0% | M141: $0.00 | N141: $0.00 | P141: 0.0% | Q141: $100.74 | R141: $102.14 | S141: 80.0% | T141: 80.0% | U141: $125.92 | V141: $127.67 | W141: 35.00% | X141: $170.00 | Y141: $172.36 | Z141: $175.00 | AA141: $0
A142: 202655 | B142: REMOVE Pedestrian Signal Head {QTY<=10} | D142: EA | E142: $20.74 | F142: $21.03 | G142: 20.0% | H142: 20.0% | I142: $0.00 | J142: $0.00 | L142: 0.0% | M142: $0.00 | N142: $0.00 | P142: 0.0% | Q142: $82.96 | R142: $84.11 | S142: 80.0% | T142: 80.0% | U142: $103.70 | V142: $105.14 | W142: 35.00% | X142: $140.00 | Y142: $141.94 | Z142: $145.00 | AA142: $0
A143: 202655 | B143: REMOVE Pedestrian Signal Head {QTY >10} | D143: EA | E143: $17.78 | F143: $18.03 | G143: 20.0% | H143: 20.0% | I143: $0.00 | J143: $0.00 | L143: 0.0% | M143: $0.00 | N143: $0.00 | P143: 0.0% | Q143: $71.11 | R143: $72.10 | S143: 80.0% | T143: 80.0% | U143: $88.89 | V143: $90.13 | W143: 35.00% | X143: $120.00 | Y143: $121.67 | Z143: $125.00 | AA143: $0
A144: 206660 | B144: REMOVE Pedestrian Push Button Assembly {QTY<=20} | D144: EA | E144: $29.63 | F144: $30.04 | G144: 20.0% | H144: 20.0% | I144: $0.00 | J144: $0.00 | L144: 0.0% | M144: $0.00 | N144: $0.00 | P144: 0.0% | Q144: $118.52 | R144: $120.17 | S144: 80.0% | T144: 80.0% | U144: $148.15 | V144: $150.21 | W144: 35.00% | X144: $200.00 | Y144: $202.78 | Z144: $205.00 | AA144: $0
A145: 206660 | B145: REMOVE Pedestrian Push Button Assembly {QTY>20} | D145: EA | E145: $22.22 | F145: $22.53 | G145: 20.0% | H145: 20.0% | I145: $0.00 | J145: $0.00 | L145: 0.0% | M145: $0.00 | N145: $0.00 | P145: 0.0% | Q145: $88.89 | R145: $90.12 | S145: 80.0% | T145: 80.0% | U145: $111.11 | V145: $112.65 | W145: 35.00% | X145: $150.00 | Y145: $152.08 | Z145: $155.00 | AA145: $0
A146: 202685 | B146: REMOVE Wiring, Street Lighting {QTY<=100 LF} | D146: LF | E146: $0.55 | F146: $0.56 | G146: 10.0% | H146: 10.0% | I146: $0.00 | J146: $0.00 | L146: 0.0% | M146: $0.00 | N146: $0.00 | P146: 0.0% | Q146: $4.95 | R146: $5.01 | S146: 90.0% | T146: 90.0% | U146: $5.50 | V146: $5.57 | W146: 30.00% | X146: $7.15 | Y146: $7.24 | Z146: $8.00 | AA146: $0
A147: 202685 | B147: REMOVE Wiring, Street Lighting {QTY 100-500 LF} | D147: LF | E147: $0.40 | F147: $0.41 | G147: 10.0% | H147: 10.0% | I147: $0.00 | J147: $0.00 | L147: 0.0% | M147: $0.00 | N147: $0.00 | P147: 0.0% | Q147: $3.60 | R147: $3.65 | S147: 90.0% | T147: 90.0% | U147: $4.00 | V147: $4.05 | W147: 30.00% | X147: $5.20 | Y147: $5.27 | Z147: $6.00 | AA147: $0
A148: 202685 | B148: REMOVE Wiring, Street Lighting {QTY>500 LF} | D148: LF | E148: $0.29 | F148: $0.29 | G148: 10.0% | H148: 10.0% | I148: $0.00 | J148: $0.00 | L148: 0.0% | M148: $0.00 | N148: $0.00 | P148: 0.0% | Q148: $2.60 | R148: $2.63 | S148: 90.0% | T148: 90.0% | U148: $2.89 | V148: $2.92 | W148: 30.00% | X148: $3.75 | Y148: $3.80 | Z148: $4.00 | AA148: $0
A149: 202750 | B149: SAWCUT Asphalt Concrete, Full Depth {QTY<=100LF} | D149: LF | E149: $4.06 | F149: $5.42 | G149: 65.0% | H149: 65.0% | I149: $0.00 | J149: $0.00 | L149: 0.0% | M149: $2.19 | N149: $2.92 | O149: 35.0% | P149: 35.0% | Q149: $0.00 | R149: $0.00 | T149: 0.0% | U149: $6.25 | V149: =10/1.2 -> $8.33 | W149: 20.0% | X149: $7.50 | Y149: $10.00 | Z149: $10.00 | AA149: $0
A150: 202750 | B150: SAWCUT Asphalt Concrete, Full Depth {QTY> 100LF} | D150: LF | E150: $3.36 | F150: $3.52 | G150: 65.0% | H150: 65.0% | I150: $0.00 | J150: $0.00 | L150: 0.0% | M150: $1.81 | N150: $1.90 | O150: 35.0% | P150: 35.0% | Q150: $0.00 | R150: $0.00 | T150: 0.0% | U150: $5.17 | V150: =6.5/1.2 -> $5.42 | W150: 20.0% | X150: $6.20 | Y150: $6.50 | Z150: =IF(Y150=0, 0, IF(Y150<10, _xlfn.CEILING.MATH(Y150,0.05), IF(Y150<100, _xlfn.CEILING.MATH(Y150,1),IF(Y150<1000, _xlfn.CEILING.MATH(Y150,5), IF(Y150<10000, _xlfn.CEILING.MATH(Y150, 25), IF(Y150<100000, _xlfn.CEILING.MATH(Y150,250), IF(Y150<1000000, _xlfn.CEILING.MATH(Y150,500), 0))))))) -> $6.50 | AA150: $0
A151: 202767 | B151: SAWCUT Cement Concrete Sidewalk, Full Depth {QTY<=50LF} | D151: LF | E151: $4.34 | F151: $4.44 | G151: 65.0% | H151: 65.0% | I151: $0.00 | J151: $0.00 | L151: 0.0% | M151: $2.33 | N151: $2.39 | O151: 35.0% | P151: 35.0% | Q151: $0.00 | R151: $0.00 | T151: 0.0% | U151: $6.67 | V151: =SUM(E151*1.0235,I151*1.0175,M151*1.0245,Q151*1.0115) -> $6.83 | W151: 20.0% | X151: $8.00 | Y151: $8.19 | Z151: =IF(Y151=0, 0, IF(Y151<10, _xlfn.CEILING.MATH(Y151,1), IF(Y151<100, _xlfn.CEILING.MATH(Y151,1),IF(Y151<1000, _xlfn.CEILING.MATH(Y151,5), IF(Y151<10000, _xlfn.CEILING.MATH(Y151, 25), IF(Y151<100000, _xlfn.CEILING.MATH(Y151,250), IF(Y151<1000000, _xlfn.CEILING.MATH(Y151,500), 0))))))) -> $9.00 | AA151: $0
A152: 202767 | B152: SAWCUT Cement Concrete Sidewalk, Full Depth {QTY>50LF} | D152: LF | E152: =U152*G152 -> $3.25 | F152: $3.33 | G152: 65.0% | H152: =G152 -> 65.0% | I152: =U152*K152 -> $0.00 | J152: $0.00 | L152: =K152 -> 0.0% | M152: =U152*O152 -> $1.75 | N152: =P152*V152 -> $1.79 | O152: 35.0% | P152: =O152 -> 35.0% | Q152: =U152*S152 -> $0.00 | R152: =T152*V152 -> $0.00 | T152: =S152 -> 0.0% | U152: $5.00 | V152: =SUM(E152*1.0235,I152*1.0175,M152*1.0245,Q152*1.0115) -> $5.12 | W152: 20.0% | X152: $6.00 | Y152: =IF(V152*(W152+1)=0,X152,V152*(W152+1)) -> $6.14 | Z152: $7.00 | AA152: =C152*Z152 -> $0
A153: 202770 | B153: SAWCUT Rigid Pavement, Full Depth {QTY<=100 LF} | D153: LF | E153: $6.00 | F153: $9.00 | G153: 60.0% | H153: 60.0% | I153: $0.00 | J153: $0.00 | L153: 0.0% | M153: $4.00 | N153: $6.00 | O153: 40.0% | P153: 40.0% | Q153: $0.00 | R153: $0.00 | T153: 0.0% | U153: $10.00 | V153: =18/1.2 -> $15.00 | W153: 20.0% | X153: $12.00 | Y153: $18.00 | Z153: $18.00 | AA153: $0
A154: 202770 | B154: SAWCUT Rigid Pavement, Full Depth {QTY 100-500 LF} | D154: LF | E154: $3.50 | F154: $7.00 | G154: 60.0% | H154: 60.0% | I154: $0.00 | J154: $0.00 | L154: 0.0% | M154: $2.33 | N154: $4.67 | O154: 40.0% | P154: 40.0% | Q154: $0.00 | R154: $0.00 | T154: 0.0% | U154: $5.83 | V154: =14/1.2 -> $11.67 | W154: 20.0% | X154: $9.00 | Y154: $14.00 | Z154: $14.00 | AA154: $0
A155: 202770 | B155: SAWCUT Rigid Pavement, Full Depth {QTY >500 LF} | D155: LF | E155: $4.00 | F155: $6.00 | G155: 60.0% | H155: 60.0% | I155: $0.00 | J155: $0.00 | L155: 0.0% | M155: $2.67 | N155: $4.00 | O155: 40.0% | P155: 40.0% | Q155: $0.00 | R155: $0.00 | T155: 0.0% | U155: $6.67 | V155: =12/1.2 -> $10.00 | W155: 20.0% | X155: =U155+U155*W155 -> $8.00 | Y155: $12.00 | Z155: $12.00 | AA155: $0
A156: 202805 | B156: ABANDON Catch Basin {Qty <=5} | D156: EA | E156: $283.34 | F156: $290.08 | G156: 68.0% | H156: 68.0% | I156: $0.00 | J156: $0.00 | L156: 0.0% | M156: $133.33 | N156: $136.51 | O156: 32.0% | P156: 32.0% | Q156: $0.00 | R156: $0.00 | T156: 0.0% | U156: $416.67 | V156: =SUM(E156*1.0235,I156*1.0175,M156*1.0245,Q156*1.0115) -> $426.60 | W156: 20.00% | X156: $500.00 | Y156: $511.91 | Z156: $515.00 | AA156: $0
A157: 202805 | B157: ABANDON Catch Basin {Qty >5} | D157: EA | E157: $170.00 | F157: $174.05 | G157: 68.0% | H157: 68.0% | I157: $0.00 | J157: $0.00 | L157: 0.0% | M157: $80.00 | N157: $81.91 | O157: 32.0% | P157: 32.0% | Q157: $0.00 | R157: $0.00 | T157: 0.0% | U157: $250.00 | V157: $255.96 | W157: 20.00% | X157: $300.00 | Y157: $307.15 | Z157: $310.00 | AA157: $0
A158: 202810 | B158: ABANDON Electrical Vault {QTY<=5} | D158: EA | E158: $277.78 | F158: $281.81 | G158: 25.0% | H158: 25.0% | I158: $0.00 | J158: $0.00 | L158: 0.0% | M158: $0.00 | N158: $0.00 | P158: 0.0% | Q158: $833.33 | R158: $845.42 | S158: 75.0% | T158: 75.0% | U158: $1,111.11 | V158: $1,127.22 | W158: 35.00% | X158: $1,500.00 | Y158: $1,521.75 | Z158: $1,525.00 | AA158: $0
A159: 202810 | B159: ABANDON Electrical Vault {QTY > 5} | D159: EA | E159: $148.15 | F159: $150.30 | G159: 25.0% | H159: 25.0% | I159: $0.00 | J159: $0.00 | L159: 0.0% | M159: $0.00 | N159: $0.00 | P159: 0.0% | Q159: $444.44 | R159: $450.89 | S159: 75.0% | T159: 75.0% | U159: $592.59 | V159: $601.18 | W159: 35.00% | X159: $800.00 | Y159: $811.60 | Z159: $815.00 | AA159: $0
A160: 202812 | B160: ABANDON Existing Water Service | D160: EA | E160: $270.84 | F160: $277.29 | G160: 65.0% | H160: 65.0% | I160: $0.00 | J160: $0.00 | L160: 0.0% | M160: $145.83 | N160: $149.31 | O160: 35.0% | P160: 35.0% | Q160: $0.00 | R160: $0.00 | T160: 0.0% | U160: $416.67 | V160: $426.61 | W160: 20.00% | X160: $500.00 | Y160: $511.93 | Z160: $515.00 | AA160: $0
A161: 202815 | B161: ABANDON Inlet {QTY <=5} | D161: EA | E161: $141.66 | F161: $145.04 | G161: 68.0% | H161: 68.0% | I161: $0.00 | J161: $0.00 | L161: 0.0% | M161: $66.67 | N161: $68.25 | O161: 32.0% | P161: 32.0% | Q161: $0.00 | R161: $0.00 | T161: 0.0% | U161: $208.33 | V161: $213.29 | W161: 20.00% | X161: $250.00 | Y161: $255.95 | Z161: $260.00 | AA161: $0
A162: 202815 | B162: ABANDON Inlet {QTY>5} | D162: EA | E162: $113.34 | F162: $116.04 | G162: 68.0% | H162: 68.0% | I162: $0.00 | J162: $0.00 | L162: 0.0% | M162: $53.33 | N162: $54.60 | O162: 32.0% | P162: 32.0% | Q162: $0.00 | R162: $0.00 | T162: 0.0% | U162: $166.67 | V162: $170.64 | W162: 20.00% | X162: $200.00 | Y162: $204.77 | Z162: $205.00 | AA162: $0
A163: 202820 | B163: ABANDON Maintenance Hole {QTY <=5} | D163: EA | E163: $600.00 | F163: $612.78 | G163: 60.0% | H163: 60.0% | I163: $0.00 | J163: $0.00 | L163: 0.0% | M163: $200.00 | N163: $204.26 | O163: 20.0% | P163: 20.0% | Q163: $200.00 | R163: $204.26 | S163: 20.0% | T163: 20.0% | U163: $1,000.00 | V163: $1,021.30 | W163: 25.00% | X163: $1,250.00 | Y163: $1,276.63 | Z163: $1,300.00 | AA163: $0
A164: 202820 | B164: ABANDON Maintenance Hole {QTY >5} | D164: EA | E164: $336.00 | F164: $343.16 | G164: 60.0% | H164: 60.0% | I164: $0.00 | J164: $0.00 | L164: 0.0% | M164: $112.00 | N164: $114.39 | O164: 20.0% | P164: 20.0% | Q164: $112.00 | R164: $114.39 | S164: 20.0% | T164: 20.0% | U164: $560.00 | V164: $571.93 | W164: 25.00% | X164: $700.00 | Y164: $714.91 | Z164: $715.00 | AA164: $0
A165: 202825 | B165: ABANDON Valve Chamber {QTY <=5} | D165: EA | E165: $700.00 | F165: $716.66 | G165: 70.0% | H165: 70.0% | I165: $0.00 | J165: $0.00 | L165: 0.0% | M165: $300.00 | N165: $307.14 | O165: 30.0% | P165: 30.0% | Q165: $0.00 | R165: $0.00 | T165: 0.0% | U165: $1,000.00 | V165: $1,023.80 | W165: 20.00% | X165: $1,200.00 | Y165: $1,228.56 | Z165: $1,250.00 | AA165: $0
A166: 202825 | B166: ABANDON Valve Chamber {QTY >5} | D166: EA | E166: $466.67 | F166: $477.77 | G166: 70.0% | H166: 70.0% | I166: $0.00 | J166: $0.00 | L166: 0.0% | M166: $200.00 | N166: $204.76 | O166: 30.0% | P166: 30.0% | Q166: $0.00 | R166: $0.00 | T166: 0.0% | U166: $666.67 | V166: $682.53 | W166: 20.00% | X166: $800.00 | Y166: $819.04 | Z166: $820.00 | AA166: $0
A167: 202850 | B167: ABANDON AND FILL PIPE {QTY<=100} | D167: LF | E167: $18.33 | F167: $18.75 | G167: 55.0% | H167: 55.0% | I167: $6.67 | J167: $6.82 | K167: 20.0% | L167: 20.0% | M167: $8.33 | N167: $8.52 | O167: 25.0% | P167: 25.0% | Q167: $0.00 | R167: $0.00 | T167: 0.0% | U167: $33.33 | V167: $34.08 | W167: 20.00% | X167: $40.00 | Y167: $40.90 | Z167: $41.00 | AA167: $0
A168: 202850 | B168: ABANDON AND FILL PIPE {QTY >100} | D168: LF | E168: $16.04 | F168: $16.40 | G168: 55.0% | H168: 55.0% | I168: $5.83 | J168: $5.96 | K168: 20.0% | L168: 20.0% | M168: $7.29 | N168: $7.46 | O168: 25.0% | P168: 25.0% | Q168: $0.00 | R168: $0.00 | T168: 0.0% | U168: $29.17 | V168: $29.82 | W168: 20.00% | X168: $35.00 | Y168: $35.79 | Z168: $36.00 | AA168: $0
A169: 202900 | B169: Concrete Crack repair, epoxy injection | D169: LF | E169: $0.00 | F169: $2.23 | G169: 78.8% | H169: 78.8% | I169: $0.00 | J169: $0.30 | K169: 10.6% | L169: 10.6% | M169: $0.00 | N169: $0.30 | O169: 10.6% | P169: 10.6% | Q169: $0.00 | R169: $0.00 | T169: 0.0% | V169: $2.83 | W169: 20.00% | X169: $0.00 | Y169: $3.40 | Z169: $4.00 | AA169: $0
A170: 202901 | B170: Sewer Grout (6"-15") Dia. | D170: LF | E170: $0.00 | F170: $89.99 | G170: 49.7% | H170: 49.7% | I170: $0.00 | J170: $53.99 | K170: 29.8% | L170: 29.8% | M170: $0.00 | N170: $37.00 | O170: 20.4% | P170: 20.4% | Q170: $0.00 | R170: $0.00 | T170: 0.0% | V170: $181.00 | W170: 20.00% | X170: $0.00 | Y170: $217.20 | Z170: =IF(Y170=0, 0, IF(Y170<10, _xlfn.CEILING.MATH(Y170,1), IF(Y170<100, _xlfn.CEILING.MATH(Y170,1),IF(Y170<1000, _xlfn.CEILING.MATH(Y170,1), IF(Y170<10000, _xlfn.CEILING.MATH(Y170, 25), IF(Y170<100000, _xlfn.CEILING.MATH(Y170,250), IF(Y170<1000000, _xlfn.CEILING.MATH(Y170,500), 0))))))) -> $218.00 | AA170: $0
A171: 202903 | B171: REMOVE BRICK SIDEWALK, WITH SALVAGE | D171: SY | E171: $0.00 | F171: $108.63 | G171: 84.1% | H171: 84.1% | I171: $0.00 | J171: $0.00 | L171: 0.0% | M171: $0.00 | N171: $20.54 | O171: 15.9% | P171: 15.9% | Q171: $0.00 | R171: $0.00 | T171: 0.0% | V171: $129.17 | W171: 20.00% | X171: $0.00 | Y171: $155.00 | Z171: =IF(Y171=0, 0, IF(Y171<10, _xlfn.CEILING.MATH(Y171,1), IF(Y171<100, _xlfn.CEILING.MATH(Y171,1),IF(Y171<1000, _xlfn.CEILING.MATH(Y171,5), IF(Y171<10000, _xlfn.CEILING.MATH(Y171, 25), IF(Y171<100000, _xlfn.CEILING.MATH(Y171,250), IF(Y171<1000000, _xlfn.CEILING.MATH(Y171,500), 0))))))) -> $155.00 | AA171: $0
A172: 202910 | B172: Sewer Grout (18"-36") Dia. | D172: LF | E172: $0.00 | F172: $189.99 | G172: 50.1% | H172: 50.1% | I172: $0.00 | J172: $114.00 | K172: 30.1% | L172: 30.1% | M172: $0.00 | N172: $75.00 | O172: 19.8% | P172: 19.8% | Q172: $0.00 | R172: $0.00 | T172: 0.0% | V172: $379.00 | W172: 20.00% | X172: $0.00 | Y172: $454.80 | Z172: =IF(Y172=0, 0, IF(Y172<10, _xlfn.CEILING.MATH(Y172,1), IF(Y172<100, _xlfn.CEILING.MATH(Y172,1),IF(Y172<1000, _xlfn.CEILING.MATH(Y172,1), IF(Y172<10000, _xlfn.CEILING.MATH(Y172, 25), IF(Y172<100000, _xlfn.CEILING.MATH(Y172,250), IF(Y172<1000000, _xlfn.CEILING.MATH(Y172,500), 0))))))) -> $455.00 | AA172: $0
A173: Sec 2-03 | B173: Structural Demolition
A174: 203010 | B174: DEMOLITION (STRUCTURE NAME)-CSI (REF) | D174: LS | E174: =U174*G174 -> $0.00 | F174: =V174*H174 -> $0.00 | H174: =G174 -> 0.0% | I174: =U174*K174 -> $0.00 | J174: =V174*L174 -> $0.00 | L174: =K174 -> 0.0% | M174: =U174*O174 -> $0.00 | N174: =P174*V174 -> $0.00 | P174: =O174 -> 0.0% | Q174: =U174*S174 -> $0.00 | R174: =T174*V174 -> $0.00 | T174: =S174 -> 0.0% | V174: =SUM(E174*1.0235,I174*1.0175,M174*1.0245,Q174*1.0115) -> $0.00 | Y174: =IF(V174*(W174+1)=0,X174,V174*(W174+1)) -> $0.00 | Z174: =IF(Y174=0, 0, IF(Y174<10, _xlfn.CEILING.MATH(Y174,1), IF(Y174<100, _xlfn.CEILING.MATH(Y174,1),IF(Y174<1000, _xlfn.CEILING.MATH(Y174,5), IF(Y174<10000, _xlfn.CEILING.MATH(Y174, 25), IF(Y174<100000, _xlfn.CEILING.MATH(Y174,250), IF(Y174<1000000, _xlfn.CEILING.MATH(Y174,500), 0))))))) -> $0.00 | AA174: =C174*Z174 -> $0
A175: Sec 2-04 | B175: Excavations
A176: 204005 | B176: COMMON Excavation {QTY<=50} | D176: CY | E176: =U176*G176 -> $45.00 | F176: $46.02 | G176: 45.0% | H176: =G176 -> 45.0% | I176: =U176*K176 -> $0.00 | J176: $0.00 | L176: =K176 -> 0.0% | M176: =U176*O176 -> $45.00 | N176: =P176*V176 -> $46.02 | O176: 45.0% | P176: =O176 -> 45.0% | Q176: =U176*S176 -> $10.00 | R176: =T176*V176 -> $10.23 | S176: 10.0% | T176: =S176 -> 10.0% | U176: $100.00 | V176: =SUM(E176*1.0235,I176*1.0175,M176*1.0245,Q176*1.0115) -> $102.28 | W176: 20.00% | X176: =U176+U176*W176 -> $120.00 | Y176: =IF(V176*(W176+1)=0,X176,V176*(W176+1)) -> $122.73 | Z176: =IF(Y176=0, 0, IF(Y176<10, _xlfn.CEILING.MATH(Y176,1), IF(Y176<100, _xlfn.CEILING.MATH(Y176,1),IF(Y176<1000, _xlfn.CEILING.MATH(Y176,5), IF(Y176<10000, _xlfn.CEILING.MATH(Y176, 25), IF(Y176<100000, _xlfn.CEILING.MATH(Y176,250), IF(Y176<1000000, _xlfn.CEILING.MATH(Y176,500), 0))))))) -> $125.00 | AA176: =C176*Z176 -> $0
A177: 204005 | B177: COMMON Excavation {QTY 50- 200} | D177: CY | E177: $26.25 | F177: $26.85 | G177: 45.0% | H177: 45.0% | I177: $0.00 | J177: $0.00 | L177: 0.0% | M177: $26.25 | N177: $26.85 | O177: 45.0% | P177: 45.0% | Q177: $5.83 | R177: $5.97 | S177: 10.0% | T177: 10.0% | U177: $58.33 | V177: $59.66 | W177: 20.00% | X177: =U177+U177*W177 -> $70.00 | Y177: $71.59 | Z177: $72.00 | AA177: $0
A178: 204005 | B178: COMMON Excavation {QTY 200-500} | D178: CY | E178: $22.50 | F178: $23.01 | G178: 45.0% | H178: 45.0% | I178: $0.00 | J178: $0.00 | L178: 0.0% | M178: $22.50 | N178: $23.01 | O178: 45.0% | P178: 45.0% | Q178: $5.00 | R178: $5.11 | S178: 10.0% | T178: 10.0% | U178: $50.00 | V178: $51.14 | W178: 20.00% | X178: =U178+U178*W178 -> $60.00 | Y178: $61.37 | Z178: $62.00 | AA178: $0
A179: 204005 | B179: COMMON Excavation {QTY >500} | D179: CY | E179: $18.75 | F179: $19.18 | G179: 45.0% | H179: 45.0% | I179: $0.00 | J179: $0.00 | L179: 0.0% | M179: $18.75 | N179: $19.18 | O179: 45.0% | P179: 45.0% | Q179: $4.17 | R179: $4.26 | S179: 10.0% | T179: 10.0% | U179: $41.67 | V179: $42.61 | W179: 20.00% | X179: =U179+U179*W179 -> $50.00 | Y179: $51.14 | Z179: $52.00 | AA179: $0
A180: 204010 | B180: SOLID Rock Excavation {QTY<=50} | D180: CY | E180: $18.75 | F180: $19.18 | G180: 25.0% | H180: 25.0% | I180: $0.00 | J180: $0.00 | L180: 0.0% | M180: $48.75 | N180: $49.87 | O180: 65.0% | P180: 65.0% | Q180: $7.50 | R180: $7.67 | S180: 10.0% | T180: 10.0% | U180: $75.00 | V180: $76.72 | W180: 20.00% | X180: =U180+U180*W180 -> $90.00 | Y180: $92.07 | Z180: $93.00 | AA180: $0
A181: 204010 | B181: SOLID Rock Excavation {QTY> 50} | D181: CY | E181: $21.25 | F181: $21.74 | G181: 30.0% | H181: 30.0% | I181: $0.00 | J181: $0.00 | L181: 0.0% | M181: $42.50 | N181: $43.47 | O181: 60.0% | P181: 60.0% | Q181: $7.08 | R181: $7.25 | S181: 10.0% | T181: 10.0% | U181: =85/1.2 -> $70.83 | V181: $72.46 | W181: 20.00% | X181: $85.00 | Y181: $86.95 | Z181: $87.00 | AA181: $0
A182: 204020 | B182: STRUCTURE Excavation {QTY<=100} | D182: CY | E182: $17.50 | F182: $17.90 | G182: 30.0% | H182: 30.0% | I182: $0.00 | J182: $0.00 | L182: 0.0% | M182: $35.00 | N182: $35.80 | O182: 60.0% | P182: 60.0% | Q182: $5.83 | R182: $5.97 | S182: 10.0% | T182: 10.0% | U182: $58.33 | V182: $59.67 | W182: 20.00% | X182: =U182+U182*W182 -> $70.00 | Y182: $71.60 | Z182: $72.00 | AA182: $0
A183: 204020 | B183: STRUCTURE Excavation {QTY>100} | D183: CY | E183: $14.58 | F183: $14.93 | G183: 35.0% | H183: 35.0% | I183: $0.00 | J183: $0.00 | L183: 0.0% | M183: $25.00 | N183: $25.59 | O183: 60.0% | P183: 60.0% | Q183: $2.08 | R183: $2.13 | S183: 5.0% | T183: 5.0% | U183: $41.67 | V183: $42.65 | W183: 20.00% | X183: $50.00 | Y183: $51.18 | Z183: $52.00 | AA183: $0
A184: 204025 | B184: EXTRA Excavation {QTY <=50 CY} | D184: CY | E184: $23.33 | F184: $23.88 | G184: 35.0% | H184: 35.0% | I184: $0.00 | J184: $0.00 | L184: 0.0% | M184: $40.00 | N184: $40.94 | O184: 60.0% | P184: 60.0% | Q184: $3.33 | R184: $3.41 | S184: 5.0% | T184: 5.0% | U184: $66.67 | V184: $68.23 | W184: 20.00% | X184: $80.00 | Y184: $81.88 | Z184: $82.00 | AA184: $0
A185: 204025 | B185: EXTRA Excavation {QTY > 50 CY} | D185: CY | E185: $17.50 | F185: $17.91 | G185: 35.0% | H185: 35.0% | I185: $0.00 | J185: $0.00 | L185: 0.0% | M185: $30.00 | N185: $30.71 | O185: 60.0% | P185: 60.0% | Q185: $2.50 | R185: $2.56 | S185: 5.0% | T185: 5.0% | U185: $50.00 | V185: $51.18 | W185: 20.0% | X185: $60.00 | Y185: $61.41 | Z185: $62.00 | AA185: $0
A186: 204030 | B186: STEPPED Slope construction | D186: CY | E186: $3.75 | F186: $3.84 | G186: 45.0% | H186: 45.0% | I186: $0.00 | J186: $0.00 | L186: 0.0% | M186: $4.17 | N186: $4.26 | O186: 50.0% | P186: 50.0% | Q186: $0.42 | R186: $0.43 | S186: 5.0% | T186: 5.0% | U186: $8.33 | V186: $8.52 | W186: 20.0% | X186: $10.00 | Y186: $10.23 | Z186: $11.00 | AA186: $0
A187: 204130 | B187: UNSUITABLE Foundation Excavation {QTY <=10 CY} | D187: CY | E187: $33.33 | F187: $34.11 | G187: 40.0% | H187: 40.0% | I187: $0.00 | J187: $0.00 | L187: 0.0% | M187: $45.83 | N187: $46.91 | O187: 55.0% | P187: 55.0% | Q187: $4.17 | R187: $4.26 | S187: 5.0% | T187: 5.0% | U187: $83.33 | V187: $85.28 | W187: 20.00% | X187: $100.00 | Y187: $102.34 | Z187: $105.00 | AA187: $0
A188: 204130 | B188: UNSUITABLE Foundation Excavation {QTY > 10 CY} | D188: CY | E188: $16.67 | F188: $17.06 | G188: 40.0% | H188: 40.0% | I188: $0.00 | J188: $0.00 | L188: 0.0% | M188: $22.92 | N188: $23.46 | O188: 55.0% | P188: 55.0% | Q188: $2.08 | R188: $2.13 | S188: 5.0% | T188: 5.0% | U188: $41.67 | V188: $42.65 | W188: 20.00% | X188: $50.00 | Y188: $51.18 | Z188: $52.00 | AA188: $0
A189: Sec 2-05 | B189: Ditch and Channel Construction
A190: 205010 | B190: DITCH Excavation {QTY <=50} | D190: CY | E190: =U190*G190 -> $15.00 | F190: $15.35 | G190: 40.0% | H190: =G190 -> 40.0% | I190: =U190*K190 -> $0.00 | J190: $0.00 | L190: =K190 -> 0.0% | M190: =U190*O190 -> $20.63 | N190: =P190*V190 -> $21.11 | O190: 55.0% | P190: =O190 -> 55.0% | Q190: =U190*S190 -> $1.88 | R190: =T190*V190 -> $1.92 | S190: 5.0% | T190: =S190 -> 5.0% | U190: $37.50 | V190: =SUM(E190*1.0235,I190*1.0175,M190*1.0245,Q190*1.0115) -> $38.38 | W190: 20.00% | X190: =U190+U190*W190 -> $45.00 | Y190: =IF(V190*(W190+1)=0,X190,V190*(W190+1)) -> $46.06 | Z190: =IF(Y190=0, 0, IF(Y190<10, _xlfn.CEILING.MATH(Y190,1), IF(Y190<100, _xlfn.CEILING.MATH(Y190,1),IF(Y190<1000, _xlfn.CEILING.MATH(Y190,5), IF(Y190<10000, _xlfn.CEILING.MATH(Y190, 25), IF(Y190<100000, _xlfn.CEILING.MATH(Y190,250), IF(Y190<1000000, _xlfn.CEILING.MATH(Y190,500), 0))))))) -> $47.00 | AA190: =C190*Z190 -> $0
A191: 205010 | B191: DITCH Excavation {QTY 50-100} | D191: CY | E191: $13.33 | F191: $13.64 | G191: 40.0% | H191: 40.0% | I191: $0.00 | J191: $0.00 | L191: 0.0% | M191: $18.33 | N191: $18.76 | O191: 55.0% | P191: 55.0% | Q191: $1.67 | R191: $1.71 | S191: 5.0% | T191: 5.0% | U191: $33.33 | V191: $34.11 | W191: 20.00% | X191: $40.00 | Y191: $40.93 | Z191: $41.00 | AA191: $0
A192: 205010 | B192: DITCH Excavation {QTY> 100} | D192: CY | E192: $11.67 | F192: $11.94 | G192: 40.0% | H192: 40.0% | I192: $0.00 | J192: $0.00 | L192: 0.0% | M192: $16.04 | N192: $16.42 | O192: 55.0% | P192: 55.0% | Q192: $1.46 | R192: $1.49 | S192: 5.0% | T192: 5.0% | U192: $29.17 | V192: $29.85 | W192: 20.00% | X192: $35.00 | Y192: $35.82 | Z192: $36.00 | AA192: $0
A193: 205020 | B193: CHANNEL Excavation {Deep 5-7 FT} | D193: CY | E193: $11.67 | F193: $11.94 | G193: 40.0% | H193: 40.0% | I193: $0.00 | J193: $0.00 | L193: 0.0% | M193: $16.04 | N193: $16.42 | O193: 55.0% | P193: 55.0% | Q193: $1.46 | R193: $1.49 | S193: 5.0% | T193: 5.0% | U193: $29.17 | V193: $29.85 | W193: 20.00% | X193: $35.00 | Y193: $35.82 | Z193: $36.00 | AA193: $0
A194: 205020 | B194: CHANNEL Excavation {Deep 7-10 FT} | D194: CY | E194: $11.67 | F194: $11.94 | G194: 35.0% | H194: 35.0% | I194: $0.00 | J194: $0.00 | L194: 0.0% | M194: $20.00 | N194: $20.47 | O194: 60.0% | P194: 60.0% | Q194: $1.67 | R194: $1.71 | S194: 5.0% | T194: 5.0% | U194: $33.33 | V194: $34.11 | W194: 20.00% | X194: $40.00 | Y194: $40.94 | Z194: $41.00 | AA194: $0
A195: 205020 | B195: CHANNEL Excavation {Deep 10-15FT} | D195: CY | E195: $12.50 | F195: $12.80 | G195: 30.0% | H195: 30.0% | I195: $0.00 | J195: $0.00 | L195: 0.0% | M195: $27.09 | N195: $27.72 | O195: 65.0% | P195: 65.0% | Q195: $2.08 | R195: $2.13 | S195: 5.0% | T195: 5.0% | U195: $41.67 | V195: $42.65 | W195: 20.00% | X195: $50.00 | Y195: $51.18 | Z195: $52.00 | AA195: $0
A196: Sec 2-07 | B196: Protective System
A197: 207010 | B197: SAFETY SYSTEM IN TRENCH EXCAVATION {4-6 Feet Deep} | D197: SF | E197: =U197*G197 -> $0.50 | F197: $0.51 | G197: 45.0% | H197: =G197 -> 45.0% | I197: =U197*K197 -> $0.28 | J197: $0.28 | K197: 25.0% | L197: =K197 -> 25.0% | M197: =U197*O197 -> $0.33 | N197: =P197*V197 -> $0.34 | O197: 30.0% | P197: =O197 -> 30.0% | Q197: =U197*S197 -> $0.00 | R197: =T197*V197 -> $0.00 | T197: =S197 -> 0.0% | U197: $1.11 | V197: =SUM(E197*1.0235,I197*1.0175,M197*1.0245,Q197*1.0115) -> $1.13 | W197: 20.0% | X197: =U197+U197*W197 -> $1.33 | Y197: =IF(V197*(W197+1)=0,X197,V197*(W197+1)) -> $1.36 | Z197: =IF(Y197=0, 0, IF(Y197<10, _xlfn.CEILING.MATH(Y197,0.05), IF(Y197<100, _xlfn.CEILING.MATH(Y197,1),IF(Y197<1000, _xlfn.CEILING.MATH(Y197,5), IF(Y197<10000, _xlfn.CEILING.MATH(Y197, 25), IF(Y197<100000, _xlfn.CEILING.MATH(Y197,250), IF(Y197<1000000, _xlfn.CEILING.MATH(Y197,500), 0))))))) -> $1.40 | AA197: =C197*Z197 -> $0
A198: 207010 | B198: SAFETY SYSTEM IN TRENCH EXCAVATION {7-10 Feet Deep} | D198: SF | E198: $0.56 | F198: $0.58 | G198: 45.0% | H198: 45.0% | I198: $0.31 | J198: $0.32 | K198: 25.0% | L198: 25.0% | M198: $0.38 | N198: $0.38 | O198: 30.0% | P198: 30.0% | Q198: $0.00 | R198: $0.00 | T198: 0.0% | U198: $1.25 | V198: =SUM(E198*1.0235,I198*1.0175,M198*1.0245,Q198*1.0115) -> $1.28 | W198: 20.0% | X198: =U198+U198*W198 -> $1.50 | Y198: =IF(V198*(W198+1)=0,X198,V198*(W198+1)) -> $1.53 | Z198: =IF(Y198=0, 0, IF(Y198<10, _xlfn.CEILING.MATH(Y198,0.1), IF(Y198<100, _xlfn.CEILING.MATH(Y198,1),IF(Y198<1000, _xlfn.CEILING.MATH(Y198,5), IF(Y198<10000, _xlfn.CEILING.MATH(Y198, 25), IF(Y198<100000, _xlfn.CEILING.MATH(Y198,250), IF(Y198<1000000, _xlfn.CEILING.MATH(Y198,500), 0))))))) -> $1.60 | AA198: $0
A199: 207010 | B199: SAFETY SYSTEM IN TRENCH EXCAVATION {10-15 Feet Deep} | D199: SF | E199: $0.68 | F199: $0.69 | G199: 45.0% | H199: 45.0% | I199: $0.38 | J199: $0.38 | K199: 25.0% | L199: 25.0% | M199: $0.45 | N199: $0.46 | O199: 30.0% | P199: 30.0% | Q199: $0.00 | R199: $0.00 | T199: 0.0% | U199: $1.50 | V199: =SUM(E199*1.0235,I199*1.0175,M199*1.0245,Q199*1.0115) -> $1.53 | W199: 20.0% | X199: =U199+U199*W199 -> $1.80 | Y199: =IF(V199*(W199+1)=0,X199,V199*(W199+1)) -> $1.84 | Z199: =IF(Y199=0, 0, IF(Y199<10, _xlfn.CEILING.MATH(Y199,1), IF(Y199<100, _xlfn.CEILING.MATH(Y199,1),IF(Y199<1000, _xlfn.CEILING.MATH(Y199,5), IF(Y199<10000, _xlfn.CEILING.MATH(Y199, 25), IF(Y199<100000, _xlfn.CEILING.MATH(Y199,250), IF(Y199<1000000, _xlfn.CEILING.MATH(Y199,500), 0))))))) -> $2.00 | AA199: $0
A200: 207010 | B200: SAFETY SYSTEM IN TRENCH EXCAVATION {16-22 Feet Deep} | D200: SF | E200: $0.77 | F200: $0.79 | G200: 45.0% | H200: 45.0% | I200: $0.43 | J200: $0.44 | K200: 25.0% | L200: 25.0% | M200: $0.51 | N200: $0.52 | O200: 30.0% | P200: 30.0% | Q200: $0.00 | R200: $0.00 | T200: 0.0% | U200: $1.71 | V200: =SUM(E200*1.0235,I200*1.0175,M200*1.0245,Q200*1.0115) -> $1.75 | W200: 20.0% | X200: =U200+U200*W200 -> $2.05 | Y200: =IF(V200*(W200+1)=0,X200,V200*(W200+1)) -> $2.10 | Z200: =IF(Y200=0, 0, IF(Y200<10, _xlfn.CEILING.MATH(Y200,0.05), IF(Y200<100, _xlfn.CEILING.MATH(Y200,1),IF(Y200<1000, _xlfn.CEILING.MATH(Y200,5), IF(Y200<10000, _xlfn.CEILING.MATH(Y200, 25), IF(Y200<100000, _xlfn.CEILING.MATH(Y200,250), IF(Y200<1000000, _xlfn.CEILING.MATH(Y200,500), 0))))))) -> $2.10 | AA200: $0
... 1302 more rows

Sheet 2017 CSI
A1: CSI 2017
A2: Bid item | B2: Item/Description | C2: Take-Off QTY | D2: Unit | E2: Labor Amount 2017 | F2: % of Total 2016 | G2: % of Total 2017 | H2: Materials Amount 2017 | I2: % of Total 2016 | J2: % of Total 2017 | K2: Equipment Amount 2017 | L2: % of Total 2016 | M2: % of Total 2017 | N2: Sub Amount 2017 | O2: % of Total 2016 | P2: % of Total 2017 | Q2: Sub Total Unit Cost 2016 | R2: Sub Total Unit Cost 2017 | S2: OH& Profit % | T2: Total Cost Unit 2016 | U2: Total Cost Unit (Unrounded) | V2: Total Cost Unit 2017 | W2: Estimate Total | Y2: 2017 Increases: Labor (2.35%), Material (1.75%), Equipment (2.45%), Sub (1.15%)
A3: Sec 01-00 | B3: General Requirements
A4: Sec 1-07 | B4: Legal Relations & Responsibilities
A5: 107005 | B5: Safety and Health Program | D5: MO | E5: =R5*G5 -> $183.81 | F5: 12.00% | G5: =F5 -> 12.00% | H5: =R5*J5 -> $1,301.96 | I5: 85.00% | J5: =I5 -> 85.00% | K5: =R5*M5 -> $45.95 | L5: 3.00% | M5: =L5 -> 3.00% | N5: =P5*R5 -> $0.00 | P5: =O5 -> 0.00% | Q5: $1,504.00 | R5: =SUM(F5*Q5*1.0235,I5*Q5*1.0175,L5*Q5*1.0245,O5*Q5*1.0115) -> $1,531.72 | S5: 12.0% | T5: =Q5+Q5*S5 -> $1,684 | U5: =(R5*S5)+R5 -> $1,715.52 | V5: =IF(U5=0, 0, IF(U5<10, _xlfn.CEILING.MATH(U5,1), IF(U5<100, _xlfn.CEILING.MATH(U5,1),IF(U5<1000, _xlfn.CEILING.MATH(U5,5), IF(U5<10000, _xlfn.CEILING.MATH(U5, 25), IF(U5<100000, _xlfn.CEILING.MATH(U5,250), IF(U5<1000000, _xlfn.CEILING.MATH(U5,500), 0))))))) -> $1,725.00 | W5: =C5*V5 -> $0
A6: 109005 | B6: Mobilization Small Project {Value $0.5K-$1M} - 15% Sub Total Const. Cost | D6: LS | E6: =R6*G6 -> $42,881.32 | F6: 71.00% | G6: =F6 -> 71.00% | H6: =R6*J6 -> $1,207.92 | I6: 2.00% | J6: =I6 -> 2.00% | K6: =R6*M6 -> $9,059.43 | L6: 15.00% | M6: =L6 -> 15.00% | N6: =P6*R6 -> $7,247.55 | O6: 12.00% | P6: =O6 -> 12.00% | Q6: $59,090.91 | R6: =SUM(F6*Q6*1.0235,I6*Q6*1.0175,L6*Q6*1.0245,O6*Q6*1.0115) -> $60,396.23 | S6: 10.0% | T6: $65,000 | U6: =(R6*S6)+R6 -> $66,435.85 | V6: =IF(U6=0, 0, IF(U6<10, _xlfn.CEILING.MATH(U6,1), IF(U6<100, _xlfn.CEILING.MATH(U6,1),IF(U6<1000, _xlfn.CEILING.MATH(U6,5), IF(U6<10000, _xlfn.CEILING.MATH(U6, 25), IF(U6<100000, _xlfn.CEILING.MATH(U6,250), IF(U6<1000000, _xlfn.CEILING.MATH(U6,500), 0))))))) -> $66,500.00 | W6: =C6*V6 -> $0
A7: 109006 | B7: Mobilization Small Project {Value $1.5M-$2M} - 12% Sub Total Const. Cost | D7: LS | E7: $85,762.64 | F7: 71.00% | G7: 71.00% | H7: $2,415.85 | I7: 2.00% | J7: 2.00% | K7: $18,118.87 | L7: 15.00% | M7: 15.00% | N7: $14,495.09 | O7: 12.00% | P7: 12.00% | Q7: $118,181.82 | R7: $120,792.45 | S7: 10.0% | T7: $130,000 | U7: $132,871.70 | V7: $133,000.00 | W7: $0
A8: 109007 | B8: Mobilization Small to Mid. Project {Value $2.5M-$5.0M} - 10% Sub Total Const. Cost | D8: LS | E8: $138,539.65 | F8: 71.00% | G8: 71.00% | H8: $3,902.53 | I8: 2.00% | J8: 2.00% | K8: $29,268.94 | L8: 15.00% | M8: 15.00% | N8: $23,415.15 | O8: 12.00% | P8: 12.00% | Q8: $190,909.09 | R8: $195,126.27 | S8: 10.0% | T8: $210,000 | U8: $214,638.90 | V8: $215,000.00 | W8: $0
A9: 109008 | B9: Mobilization Mid. to Large Project {Value $6M-$10M} - 5% Sub Total Const. Cost | D9: LS | E9: $184,719.54 | F9: 71.00% | G9: 71.00% | H9: $5,203.37 | I9: 2.00% | J9: 2.00% | K9: $39,025.25 | L9: 15.00% | M9: 15.00% | N9: $31,220.20 | O9: 12.00% | P9: 12.00% | Q9: $254,545.45 | R9: $260,168.36 | S9: 10.0% | T9: $280,000 | U9: $286,185.20 | V9: $286,500.00 | W9: $0
A10: 109009 | B10: Mobilization Mid. to Large Project {Value $10M-$15M} - 4% Sub Total Const. Cost | D10: LS | E10: $206,160.20 | F10: 71.00% | G10: 71.00% | H10: $5,807.33 | I10: 2.00% | J10: 2.00% | K10: $43,554.97 | L10: 15.00% | M10: 15.00% | N10: $34,843.98 | O10: 12.00% | P10: 12.00% | Q10: $284,090.91 | R10: $290,366.48 | S10: 10.0% | T10: $312,500 | U10: $319,403.13 | V10: $319,500.00 | W10: $0
A11: 109010 | B11: Mobilization Mid. to Large Project {Value $15M-$20M} - 2% Sub Total Const. Cost | D11: LS | E11: $362,841.95 | F11: 71.00% | G11: 71.00% | H11: $10,220.90 | I11: 2.00% | J11: 2.00% | K11: $76,656.75 | L11: 15.00% | M11: 15.00% | N11: $61,325.40 | O11: 12.00% | P11: 12.00% | Q11: $500,000.00 | R11: $511,045.00 | S11: 10.0% | T11: $550,000 | U11: $562,149.50 | V11: $562,500.00 | W11: $0
A12: 110005 | B12: Maintenance & Protection of Traffic Control Including Flagging | D12: Day | E12: $596.22 | F12: 75.00% | G12: 75.00% | H12: $39.75 | I12: 5.00% | J12: 5.00% | K12: $158.99 | L12: 20.00% | M12: 20.00% | N12: $0.00 | P12: 0.00% | Q12: $776.79 | R12: $794.96 | S12: 12.0% | T12: $870 | U12: $890.36 | V12: $895.00 | W12: $0
A13: 110020 | B13: Traffic Control Peace Officers | D13: HR | E13: $0.00 | G13: 0.00% | H13: $0.00 | J13: 0.00% | K13: $9.62 | L13: 11.00% | M13: 11.00% | N13: $77.86 | O13: 89.00% | P13: 89.00% | Q13: $86.36 | R13: $87.48 | S13: 10.0% | T13: =Q13+Q13*S13 -> $95.00 | U13: $96.23 | V13: $97.00 | W13: $0
A14: 110030 | B14: UNIFORM POLICE OFFICER | D14: HR | E14: =R14*G14 -> $0.00 | G14: =F14 -> 0.00% | H14: =R14*J14 -> $0.00 | J14: =I14 -> 0.00% | K14: =R14*M14 -> $32.70 | L14: 32.70% | M14: =L14 -> 32.70% | N14: =P14*R14 -> $67.30 | O14: 67.30% | P14: =O14 -> 67.30% | R14: $100.00 | S14: 10.0% | T14: =Q14+Q14*S14 -> $0.00 | U14: =(R14*S14)+R14 -> $110.00 | V14: =IF(U14=0, 0, IF(U14<10, _xlfn.CEILING.MATH(U14,1), IF(U14<100, _xlfn.CEILING.MATH(U14,1),IF(U14<1000, _xlfn.CEILING.MATH(U14,5), IF(U14<10000, _xlfn.CEILING.MATH(U14, 25), IF(U14<100000, _xlfn.CEILING.MATH(U14,250), IF(U14<1000000, _xlfn.CEILING.MATH(U14,500), 0))))))) -> $110.00 | W14: =C14*V14 -> $0
A15: Sec 02-00 | B15: Existing Conditions
A16: Sec 2-00 | B16: Construction Survey/Layout
A17: 200100 | B17: CONSTRUCTION SURVEY (2 MAN CREW) | D17: DAY | E17: $934.55 | F17: 60.00% | G17: 60.00% | H17: $77.88 | I17: 5.00% | J17: 5.00% | K17: $545.15 | L17: 35.00% | M17: 35.00% | N17: $0.00 | P17: 0.00% | Q17: $1,521.74 | R17: $1,557.58 | S17: 15.0% | T17: $1,750.00 | U17: $1,791.21 | V17: $1,800.00 | W17: =C17*V17 -> $0
A18: 200101 | B18: CONSTRUCTION SURVEY (3 MAN CREW) | D18: DAY | E18: $1,281.66 | F18: 60.00% | G18: 60.00% | H18: $106.81 | I18: 5.00% | J18: 5.00% | K18: $747.64 | L18: 35.00% | M18: 35.00% | N18: $0.00 | P18: 0.00% | Q18: $2,086.96 | R18: $2,136.10 | S18: 15.0% | T18: $2,400.00 | U18: $2,456.52 | V18: $2,475.00 | W18: $0
A19: 200102 | B19: CONSTRUCTION SURVEY (4 MAN CREW) | D19: DAY | E19: $1,735.58 | F19: 60.00% | G19: 60.00% | H19: $144.63 | I19: 5.00% | J19: 5.00% | K19: $1,012.42 | L19: 35.00% | M19: 35.00% | N19: $0.00 | P19: 0.00% | Q19: $2,826.09 | R19: $2,892.64 | S19: 15.0% | T19: $3,250.00 | U19: $3,326.54 | V19: $3,350.00 | W19: $0
A20: Sec 2-01 | B20: Clearing, Grubbing, and Roadside Cleanup
A21: 201035 | B21: GRUBBING {QTY 15,000 SF-35,000 SF} | D21: LS | E21: =R21*G21 -> $3,582.25 | F21: 35.00% | G21: =F21 -> 35.00% | H21: =R21*J21 -> $0.00 | J21: =I21 -> 0.00% | K21: =R21*M21 -> $6,141.00 | L21: 60.00% | M21: =L21 -> 60.00% | N21: =P21*R21 -> $511.75 | O21: 5.00% | P21: =O21 -> 5.00% | Q21: $10,000.00 | R21: =SUM(F21*Q21*1.0235,I21*Q21*1.0175,L21*Q21*1.0245,O21*Q21*1.0115) -> $10,235.00 | S21: 10.0% | T21: =Q21+Q21*S21 -> $11,000.00 | U21: =(R21*S21)+R21 -> $11,258.50 | V21: =IF(U21=0, 0, IF(U21<10, _xlfn.CEILING.MATH(U21,1), IF(U21<100, _xlfn.CEILING.MATH(U21,1),IF(U21<1000, _xlfn.CEILING.MATH(U21,5), IF(U21<10000, _xlfn.CEILING.MATH(U21, 25), IF(U21<100000, _xlfn.CEILING.MATH(U21,250), IF(U21<1000000, _xlfn.CEILING.MATH(U21,500), 0))))))) -> $11,500.00 | W21: =C21*V21 -> $0
A22: 201035 | B22: GRUBBING {QTY >35,000 SF} | D22: LS | E22: $2,768.00 | F22: 35.00% | G22: 35.00% | H22: $0.00 | J22: 0.00% | K22: $4,745.15 | L22: 60.00% | M22: 60.00% | N22: $395.43 | O22: 5.00% | P22: 5.00% | Q22: $7,727.00 | R22: =SUM(F22*Q22*1.0235,I22*Q22*1.0175,L22*Q22*1.0245,O22*Q22*1.0115) -> $7,908.58 | S22: 10.0% | T22: =Q22+Q22*S22 -> $8,499.70 | U22: $8,699.44 | V22: $8,700.00 | W22: =C22*V22 -> $0
A23: 201100 | B23: Cleaning Pipe 4"-12" DIA | D23: LF | E23: $6.48 | F23: 80.00% | G23: 80.00% | H23: $0.81 | I23: 10.00% | J23: 10.00% | K23: $0.81 | L23: 10.00% | M23: 10.00% | N23: $0.00 | P23: 0.00% | R23: $8.10 | S23: 15.0% | T23: =Q23+Q23*S23 -> $0.00 | U23: $9.32 | V23: $10.00 | W23: =C23*V23 -> $0
A24: 201110 | B24: Cleaning Pipe 14"-24" DIA | D24: LF | E24: $7.44 | F24: 80.00% | G24: 80.00% | H24: $0.93 | I24: 10.00% | J24: 10.00% | K24: $0.93 | L24: 10.00% | M24: 10.00% | N24: $0.00 | P24: 0.00% | R24: $9.30 | S24: 15.0% | T24: $0.00 | U24: $10.70 | V24: $11.00 | W24: $0
A25: 201112 | B25: Cleaning Pipe 30" DIA | D25: LF | E25: $10.88 | F25: 80.00% | G25: 80.00% | H25: $1.36 | I25: 10.00% | J25: 10.00% | K25: $1.36 | L25: 10.00% | M25: 10.00% | N25: $0.00 | P25: 0.00% | R25: $13.60 | S25: 15.0% | T25: $0.00 | U25: $15.64 | V25: $16.00 | W25: $0
A26: 201113 | B26: Cleaning Pipe 36" DIA | D26: LF | E26: $11.85 | F26: 75.00% | G26: 75.00% | H26: $1.58 | I26: 10.00% | J26: 10.00% | K26: $2.37 | L26: 15.00% | M26: 15.00% | N26: $0.00 | P26: 0.00% | R26: $15.80 | S26: 15.0% | T26: $0.00 | U26: $18.17 | V26: $19.00 | W26: $0
A27: 201114 | B27: Cleaning Pipe 48" DIA | D27: LF | E27: $13.50 | F27: 75.00% | G27: 75.00% | H27: $1.80 | I27: 10.00% | J27: 10.00% | K27: $2.70 | L27: 15.00% | M27: 15.00% | N27: $0.00 | P27: 0.00% | R27: $18.00 | S27: 15.0% | T27: $0.00 | U27: $20.70 | V27: $21.00 | W27: $0
A28: 201116 | B28: Cleaning Pipe 60" DIA | D28: LF | E28: $14.21 | F28: 70.00% | G28: 70.00% | H28: $2.03 | I28: 10.00% | J28: 10.00% | K28: $4.06 | L28: 20.00% | M28: 20.00% | N28: $0.00 | P28: 0.00% | R28: $20.30 | S28: 15.0% | T28: $0.00 | U28: $23.35 | V28: $24.00 | W28: $0
A29: 201118 | B29: Cleaning Pipe 72" DIA | D29: LF | E29: $15.89 | F29: 70.00% | G29: 70.00% | H29: $2.27 | I29: 10.00% | J29: 10.00% | K29: $4.54 | L29: 20.00% | M29: 20.00% | N29: $0.00 | P29: 0.00% | R29: $22.70 | S29: 15.0% | T29: =Q29+Q29*S29 -> $0.00 | U29: $26.11 | V29: $27.00 | W29: $0
A30: Sec 2-02 | B30: Remove, Abandon, Or Relocate Structures and Obstructions
A31: 202034 | B31: Remove DI PIPE, w/Fitting, 6"-12" DIA {QTY <=50 FT} | D31: LF | E31: =R31*G31 -> $22.92 | F31: 50.00% | G31: =F31 -> 50.00% | H31: =R31*J31 -> $0.00 | J31: =I31 -> 0.00% | K31: =R31*M31 -> $20.62 | L31: 45.00% | M31: =L31 -> 45.00% | N31: =P31*R31 -> $2.29 | O31: 5.00% | P31: =O31 -> 5.00% | R31: $45.83 | S31: 20.0% | T31: =Q31+Q31*S31 -> $0.00 | U31: =(R31*S31)+R31 -> $55.00 | V31: =IF(U31=0, 0, IF(U31<10, _xlfn.CEILING.MATH(U31,1), IF(U31<100, _xlfn.CEILING.MATH(U31,1),IF(U31<1000, _xlfn.CEILING.MATH(U31,5), IF(U31<10000, _xlfn.CEILING.MATH(U31, 25), IF(U31<100000, _xlfn.CEILING.MATH(U31,250), IF(U31<1000000, _xlfn.CEILING.MATH(U31,500), 0))))))) -> $55.00 | W31: $0
A32: 202034 | B32: Remove DI PIPE, w/Fitting, 6"-12" DIA {QTY >50 FT} | D32: LF | E32: $37.50 | F32: 50.00% | G32: 50.00% | H32: $0.00 | J32: 0.00% | K32: $33.75 | L32: 45.00% | M32: 45.00% | N32: $3.75 | O32: 5.00% | P32: 5.00% | R32: $75.00 | S32: 20.0% | T32: $0.00 | U32: $90.00 | V32: $90.00 | W32: $0
A33: 202035 | B33: REMOVE CEMT. CONC. SIDEWALK {QTY 50-100 SY} | D33: SY | E33: $8.87 | F33: 65.00% | G33: 65.00% | H33: $0.00 | J33: 0.00% | K33: $4.78 | L33: 35.00% | M33: 35.00% | N33: $0.00 | P33: 0.00% | Q33: $13.33 | R33: =SUM(F33*Q33*1.0235,I33*Q33*1.0175,L33*Q33*1.0245,O33*Q33*1.0115) -> $13.65 | S33: 35.0% | T33: $18.00 | U33: $18.42 | V33: $19.00 | W33: $0
A34: 202035 | B34: REMOVE CEMT. CONC. SIDEWALK {QTY 100-400 SY} | D34: SY | E34: $10.23 | F34: 75.00% | G34: 75.00% | H34: $0.00 | J34: 0.00% | K34: $3.41 | L34: 25.00% | M34: 25.00% | N34: $0.00 | P34: 0.00% | Q34: $13.33 | R34: =SUM(F34*Q34*1.0235,I34*Q34*1.0175,L34*Q34*1.0245,O34*Q34*1.0115) -> $13.65 | S34: 35.0% | T34: $18.00 | U34: $18.42 | V34: $19.00 | W34: $0
A35: 202045 | B35: REMOVE PAVEMENT {QTY >1000 SY} | D35: SY | E35: $6.30 | F35: 60.00% | G35: 60.00% | H35: $0.00 | J35: 0.00% | K35: $3.15 | L35: 30.00% | M35: 30.00% | N35: $1.05 | O35: 10.00% | P35: 10.00% | R35: $10.50 | S35: 20.0% | T35: $0.00 | U35: $12.60 | V35: $13.00 | W35: $0
A36: 202045 | B36: REMOVE PAVEMENT {QTY >5000 SY} | D36: SY | E36: $6.00 | F36: 60.00% | G36: 60.00% | H36: $0.00 | J36: 0.00% | K36: $3.00 | L36: 30.00% | M36: 30.00% | N36: $1.00 | O36: 10.00% | P36: 10.00% | R36: $10.00 | S36: 20.0% | T36: $0.00 | U36: $12.00 | V36: $12.00 | W36: $0
A37: 202045 | B37: REMOVE PAVEMENT {QTY >10,000 SY} | D37: SY | E37: $5.70 | F37: 60.00% | G37: 60.00% | H37: $0.00 | J37: 0.00% | K37: $2.85 | L37: 30.00% | M37: 30.00% | N37: $0.95 | O37: 10.00% | P37: 10.00% | R37: $9.50 | S37: 20.0% | T37: $0.00 | U37: $11.40 | V37: $12.00 | W37: $0
A38: 202470 | B38: REMOVE PARKING BOX & SIGN {QTY <=5 EA} | D38: EA | E38: $0.00 | G38: 0.00% | H38: $0.00 | J38: 0.00% | K38: $0.00 | M38: 0.00% | N38: $0.00 | P38: 0.00% | R38: $300.00 | S38: 20.0% | T38: $0.00 | U38: $360.00 | V38: $360.00 | W38: $0
A39: 202470 | B39: REMOVE PARKING BOX & SIGN {QTY >5 EA} | D39: EA | E39: $0.00 | G39: 0.00% | H39: $0.00 | J39: 0.00% | K39: $0.00 | M39: 0.00% | N39: $0.00 | P39: 0.00% | R39: $200.00 | S39: 20.0% | T39: $0.00 | U39: $240.00 | V39: $240.00 | W39: $0
A40: 202662 | B40: REMOVE CCTV CAMERA {QTY <=3 EA} | D40: EA | E40: $0.00 | G40: 0.00% | H40: $0.00 | J40: 0.00% | K40: $0.00 | M40: 0.00% | N40: $0.00 | P40: 0.00% | R40: $500.00 | S40: 35.0% | T40: $0.00 | U40: $675.00 | V40: $675.00 | W40: $0
A41: 202662 | B41: REMOVE CCTV CAMERA {QTY >5 EA} | D41: EA | E41: $0.00 | G41: 0.00% | H41: $0.00 | J41: 0.00% | K41: $0.00 | M41: 0.00% | N41: $0.00 | P41: 0.00% | R41: $400.00 | S41: 35.0% | T41: $0.00 | U41: $540.00 | V41: $540.00 | W41: $0
A42: 202767 | B42: SAWCUT Cement Concrete Sidewalk, Full Depth {QTY <=10 LF} | D42: LF | E42: $6.64 | F42: 64.80% | G42: 64.80% | H42: $0.00 | J42: 0.00% | K42: $3.61 | L42: 35.20% | M42: 35.20% | N42: $0.00 | P42: 0.00% | R42: $10.25 | S42: 20.0% | T42: $0.00 | U42: $12.30 | V42: $13.00 | W42: $0
A43: 202767 | B43: SAWCUT Cement Concrete Sidewalk, Full Depth {QTY 10-50 LF} | D43: LF | E43: $4.48 | F43: 65.20% | G43: 65.20% | H43: $0.00 | J43: 0.00% | K43: $2.39 | L43: 34.80% | M43: 34.80% | N43: $0.00 | P43: 0.00% | R43: $6.87 | S43: 20.0% | T43: $0.00 | U43: $8.24 | V43: $9.00 | W43: $0
A44: 202900 | B44: Scaffolding w/Bracing (to remove Pipe) | D44: CCF | E44: $46.87 | F44: 45.00% | G44: 45.00% | H44: $41.66 | I44: 40.00% | J44: 40.00% | K44: $10.42 | L44: 10.00% | M44: 10.00% | N44: $5.21 | O44: 5.00% | P44: 5.00% | R44: $104.16 | S44: 20.0% | T44: $0.00 | U44: $124.99 | V44: $125.00 | W44: $0
A45: Sec 2-05 | B45: Ditch and Channel Construction
A46: 205030 | B46: Safety System in Ditch and Channel Excavation {QTY<=150SF} CSI (REF) | D46: SF | E46: $0.70 | F46: 55.00% | G46: 55.00% | H46: $0.13 | I46: 10.00% | J46: 10.00% | K46: $0.45 | L46: 35.00% | M46: 35.00% | N46: $0.00 | P46: 0.00% | Q46: $1.25 | R46: $1.28 | S46: 20.00% | T46: =Q46+Q46*S46 -> $1.50 | U46: $1.53 | V46: $2.00 | W46: $0
A47: 205030 | B47: Safety System in Ditch and Channel Excavation {QTY>150SF} CSI (REF) | D47: SF | E47: $0.62 | F47: 55.00% | G47: 55.00% | H47: $0.11 | I47: 10.00% | J47: 10.00% | K47: $0.40 | L47: 35.00% | M47: 35.00% | N47: $0.00 | P47: 0.00% | Q47: $1.11 | R47: $1.14 | S47: 20.00% | T47: =Q47+Q47*S47 -> $1.33 | U47: $1.36 | V47: $2.00 | W47: $0
A48: 205040 | B48: IN Stream Bypass CSI (REF) | D48: SF | E48: $0.61 | F48: 55.00% | G48: 55.00% | H48: $0.17 | I48: 15.00% | J48: 15.00% | K48: $0.33 | L48: 30.00% | M48: 30.00% | N48: $0.00 | P48: 0.00% | Q48: $1.08 | R48: $1.10 | S48: 20.00% | T48: =Q48+Q48*S48 -> $1.30 | U48: $1.33 | V48: $2.00 | W48: $0
A49: 205050 | B49: FISH Bypass CSI (REF) | D49: LS | E49: $0.70 | F49: 55.00% | G49: 55.00% | H49: $0.19 | I49: 15.00% | J49: 15.00% | K49: $0.38 | L49: 30.00% | M49: 30.00% | N49: $0.00 | P49: 0.00% | Q49: $1.25 | R49: $1.28 | S49: 20.00% | T49: =Q49+Q49*S49 -> $1.50 | U49: $1.53 | V49: $2.00 | W49: $0
A50: Sec 2-30 | B50: Boring & Directional Drilling
A51: 230100 | B51: CASED BORING - 2-1/2" DIA (WITH SAMPLES) | D51: LF | E51: $5.72 | F51: 10.00% | G51: 10.00% | H51: $0.00 | J51: 0.00% | K51: $0.00 | M51: 0.00% | N51: $51.52 | O51: 90.00% | P51: 90.00% | Q51: $56.52 | R51: $57.24 | S51: 15.0% | T51: $65.00 | U51: $65.83 | V51: $66.00 | W51: $0
A52: 230101 | B52: CASED BORING - 3" DIA (WITH SAMPLES) | D52: LF | E52: $7.49 | F52: 10.00% | G52: 10.00% | H52: $0.00 | J52: 0.00% | K52: $0.00 | M52: 0.00% | N52: $67.37 | O52: 90.00% | P52: 90.00% | Q52: $73.91 | R52: $74.85 | S52: 15.0% | T52: $85.00 | U52: $86.08 | V52: $87.00 | W52: $0
A53: 230102 | B53: CASED BORING - 4" DIA (WITH SAMPLES) | D53: LF | E53: $9.69 | F53: 10.00% | G53: 10.00% | H53: $0.00 | J53: 0.00% | K53: $0.00 | M53: 0.00% | N53: $87.18 | O53: 90.00% | P53: 90.00% | Q53: $95.65 | R53: $96.87 | S53: 15.0% | T53: $110.00 | U53: $111.40 | V53: $115.00 | W53: $0
A54: 230202 | B54: DIRECTIONAL BORING - 2" DIA (FOR HORIZ. PIPE) - UNDERGR | D54: LF | E54: $2.20 | F54: 10.00% | G54: 10.00% | H54: $0.00 | J54: 0.00% | K54: $0.00 | M54: 0.00% | N54: $19.81 | O54: 90.00% | P54: 90.00% | Q54: $21.74 | R54: $22.02 | S54: 15.0% | T54: $25.00 | U54: $25.32 | V54: $26.00 | W54: $0
A55: 230203 | B55: DIRECTIONAL BORING - 3" DIA (FOR HORIZ. PIPE) - UNDERGR | D55: LF | E55: $3.70 | F55: 10.00% | G55: 10.00% | H55: $0.00 | J55: 0.00% | K55: $0.00 | M55: 0.00% | N55: $33.29 | O55: 90.00% | P55: 90.00% | Q55: $36.52 | R55: $36.99 | S55: 15.0% | T55: $42.00 | U55: $42.53 | V55: $43.00 | W55: $0
A56: 230204 | B56: DIRECTIONAL BORING - 4" DIA (FOR HORIZ. PIPE) - UNDERGR | D56: LF | E56: $4.40 | F56: 10.00% | G56: 10.00% | H56: $0.00 | J56: 0.00% | K56: $0.00 | M56: 0.00% | N56: $39.63 | O56: 90.00% | P56: 90.00% | Q56: $43.48 | R56: $44.03 | S56: 15.0% | T56: $50.00 | U56: $50.64 | V56: $51.00 | W56: $0
A57: 230205 | B57: DIRECTIONAL BORING - 5" DIA (FOR HORIZ. PIPE) - UNDERGR | D57: LF | E57: $5.28 | F57: 10.00% | G57: 10.00% | H57: $0.00 | J57: 0.00% | K57: $0.00 | M57: 0.00% | N57: $47.55 | O57: 90.00% | P57: 90.00% | Q57: $52.17 | R57: $52.84 | S57: 15.0% | T57: $60.00 | U57: $60.76 | V57: $61.00 | W57: $0
A58: 230206 | B58: DIRECTIONAL BORING - 6" DIA (FOR HORIZ. PIPE) - UNDERGR | D58: LF | E58: $6.16 | F58: 10.00% | G58: 10.00% | H58: $0.00 | J58: 0.00% | K58: $0.00 | M58: 0.00% | N58: $55.48 | O58: 90.00% | P58: 90.00% | Q58: $60.87 | R58: $61.64 | S58: 15.0% | T58: $70.00 | U58: $70.89 | V58: $71.00 | W58: $0
A59: 230208 | B59: DIRECTIONAL BORING - 8" DIA (FOR HORIZ. PIPE) - UNDERGR | D59: LF | E59: $7.49 | F59: 10.00% | G59: 10.00% | H59: $0.00 | J59: 0.00% | K59: $0.00 | M59: 0.00% | N59: $67.37 | O59: 90.00% | P59: 90.00% | Q59: $73.91 | R59: $74.85 | S59: 15.0% | T59: $85.00 | U59: $86.08 | V59: $87.00 | W59: $0
A60: 230210 | B60: DIRECTIONAL BORING - 10" DIA (FOR HORIZ. PIPE) - UNDERGR | D60: LF | E60: $8.10 | F60: 10.00% | G60: 10.00% | H60: $0.00 | J60: 0.00% | K60: $0.00 | M60: 0.00% | N60: $72.91 | O60: 90.00% | P60: 90.00% | Q60: $80.00 | R60: $81.02 | S60: 15.0% | T60: $92.00 | U60: $93.17 | V60: $94.00 | W60: $0
A61: 230212 | B61: DIRECTIONAL BORING - 12" DIA (FOR HORIZ. PIPE) - UNDERGR | D61: LF | E61: $8.81 | F61: 10.00% | G61: 10.00% | H61: $0.00 | J61: 0.00% | K61: $0.00 | M61: 0.00% | N61: $79.25 | O61: 90.00% | P61: 90.00% | Q61: $86.96 | R61: $88.06 | S61: 15.0% | T61: $100.00 | U61: $101.27 | V61: $105.00 | W61: $0
A62: 230218 | B62: DIRECTIONAL BORING - 18" DIA (FOR HORIZ. PIPE) - UNDERGR | D62: LF | E62: $10.13 | F62: 10.00% | G62: 10.00% | H62: $0.00 | J62: 0.00% | K62: $0.00 | M62: 0.00% | N62: $91.14 | O62: 90.00% | P62: 90.00% | Q62: $100.00 | R62: $101.27 | S62: 15.0% | T62: $115.00 | U62: $116.46 | V62: $120.00 | W62: $0
A63: 230224 | B63: DIRECTIONAL BORING - 24" DIA (FOR HORIZ. PIPE) - UNDERGR | D63: LF | E63: $13.21 | F63: 10.00% | G63: 10.00% | H63: $0.00 | J63: 0.00% | K63: $0.00 | M63: 0.00% | N63: $118.88 | O63: 90.00% | P63: 90.00% | Q63: $130.43 | R63: $132.09 | S63: 15.0% | T63: $150.00 | U63: $151.91 | V63: $155.00 | W63: $0
A64: 230230 | B64: DIRECTIONAL BORING - 30" DIA (FOR HORIZ. PIPE) - UNDERGR | D64: LF | E64: $14.53 | F64: 10.00% | G64: 10.00% | H64: $0.00 | J64: 0.00% | K64: $0.00 | M64: 0.00% | N64: $130.77 | O64: 90.00% | P64: 90.00% | Q64: $143.48 | R64: $145.30 | S64: 15.0% | T64: $165.00 | U64: $167.10 | V64: $170.00 | W64: $0
A65: 230230 | B65: DIRECTIONAL BORING - 36" DIA (FOR HORIZ. PIPE) - UNDERGR | D65: LF | E65: $15.85 | F65: 10.00% | G65: 10.00% | H65: $0.00 | J65: 0.00% | K65: $0.00 | M65: 0.00% | N65: $142.66 | O65: 90.00% | P65: 90.00% | Q65: $156.52 | R65: $158.51 | S65: 15.0% | T65: $180.00 | U65: $182.29 | V65: $185.00 | W65: $0
A66: Sec 2-40 | B66: General Requirements
A67: 240537 | B67: AS-BUILT RECORDS, MIN. BID | D67: EA | E67: $272.73 | F67: 75.00% | G67: 75.00% | H67: $54.55 | I67: 15.00% | J67: 15.00% | K67: $36.36 | L67: 10.00% | M67: 10.00% | N67: $0.00 | P67: 0.00% | R67: =400/1.1 -> $363.64 | S67: 10.0% | T67: =Q67+Q67*S67 -> $0.00 | U67: =(R67*S67)+R67 -> $400.00 | V67: =IF(U67=0, 0, IF(U67<10, _xlfn.CEILING.MATH(U67,1), IF(U67<100, _xlfn.CEILING.MATH(U67,1),IF(U67<1000, _xlfn.CEILING.MATH(U67,5), IF(U67<10000, _xlfn.CEILING.MATH(U67, 25), IF(U67<100000, _xlfn.CEILING.MATH(U67,250), IF(U67<1000000, _xlfn.CEILING.MATH(U67,500), 0))))))) -> $400.00 | W67: =C67*V67 -> $0
A68: Sec 2-03 | B68: Structural Demolition
A69: 203010 | B69: Remove Handhole and Meter Pits | D69: EA | E69: $701.44 | F69: 70.00% | G69: 70.00% | H69: $0.00 | J69: 0.00% | K69: $200.41 | L69: 20.00% | M69: 20.00% | N69: $100.21 | O69: 10.00% | P69: 10.00% | Q69: $980.00 | R69: $1,002.05 | S69: 25.00% | T69: $1,225.00 | U69: $1,252.56 | V69: $1,275.00 | W69: $0
A70: 203011 | B70: Remove Pre-Cast MH Over 8' Deep | D70: VLF | E70: $138.64 | F70: 65.00% | G70: 65.00% | H70: $0.00 | J70: 0.00% | K70: $74.65 | L70: 35.00% | M70: 35.00% | N70: $0.00 | P70: 0.00% | Q70: $208.33 | R70: $213.30 | S70: 20.00% | T70: $250.00 | U70: $255.96 | V70: $260.00 | W70: $0
A71: 203012 | B71: Remove Cast-in Place MH 4'-8' deep | D71: EA | E71: $1,279.87 | F71: 60.00% | G71: 60.00% | H71: $0.00 | J71: 0.00% | K71: $853.25 | L71: 40.00% | M71: 40.00% | N71: $0.00 | P71: 0.00% | Q71: $2,083.33 | R71: $2,133.12 | S71: 20.00% | T71: $2,500.00 | U71: $2,559.75 | V71: $2,575.00 | W71: $0
A72: 203013 | B72: Remove Cast-in Place MH over 8' deep | D72: EA | E72: $1,638.24 | F72: 60.00% | G72: 60.00% | H72: $0.00 | J72: 0.00% | K72: $1,092.16 | L72: 40.00% | M72: 40.00% | N72: $0.00 | P72: 0.00% | Q72: $2,666.67 | R72: $2,730.40 | S72: 20.00% | T72: $3,200.00 | U72: $3,276.48 | V72: $3,300.00 | W72: $0
A73: 203014 | B73: Remove Existing Masonry CB or MH 4'-8' deep | D73: EA | E73: $367.91 | F73: 75.00% | G73: 75.00% | H73: $0.00 | J73: 0.00% | K73: $122.64 | L73: 25.00% | M73: 25.00% | N73: $0.00 | P73: 0.00% | Q73: $479.17 | R73: $490.55 | S73: 20.00% | T73: $575.00 | U73: $588.66 | V73: $590.00 | W73: $0
A74: 203015 | B74: Remove Existing Masonry CB or MH over 8' deep | D74: EA | E74: $388.19 | F74: 70.00% | G74: 70.00% | H74: $0.00 | J74: 0.00% | K74: $166.37 | L74: 30.00% | M74: 30.00% | N74: $0.00 | P74: 0.00% | Q74: $541.67 | R74: $554.56 | S74: 20.00% | T74: $650.00 | U74: $665.47 | V74: $670.00 | W74: $0
A75: 203016 | B75: Pipe Removal (Water/sewer)-12" Diameter | D75: LF | E75: $6.40 | F75: 50.00% | G75: 50.00% | H75: $0.00 | J75: 0.00% | K75: $5.76 | L75: 45.00% | M75: 45.00% | N75: $0.64 | O75: 5.00% | P75: 5.00% | Q75: $12.50 | R75: $12.79 | S75: 20.00% | T75: $15.00 | U75: $15.35 | V75: $16.00 | W75: $0
A76: 203017 | B76: Pipe Removal (Water/sewer)-15"-18" Diameter | D76: LF | E76: $12.79 | F76: 50.00% | G76: 50.00% | H76: $0.00 | J76: 0.00% | K76: $11.51 | L76: 45.00% | M76: 45.00% | N76: $1.28 | O76: 5.00% | P76: 5.00% | Q76: $25.00 | R76: $25.58 | S76: 20.00% | T76: $30.00 | U76: $30.70 | V76: $31.00 | W76: $0
A77: 203018 | B77: Pipe Removal (Water/sewer)-21"-24" Diameter | D77: LF | E77: $20.04 | F77: 50.00% | G77: 50.00% | H77: $0.00 | J77: 0.00% | K77: $18.04 | L77: 45.00% | M77: 45.00% | N77: $2.00 | O77: 5.00% | P77: 5.00% | Q77: $39.17 | R77: $40.08 | S77: 20.00% | T77: $47.00 | U77: $48.10 | V77: $49.00 | W77: $0
A78: 203019 | B78: Pipe Removal (Water/sewer)-27"-36" Diameter | D78: LF | E78: $26.86 | F78: 50.00% | G78: 50.00% | H78: $0.00 | J78: 0.00% | K78: $24.18 | L78: 45.00% | M78: 45.00% | N78: $2.69 | O78: 5.00% | P78: 5.00% | Q78: $52.50 | R78: $53.73 | S78: 20.00% | T78: $63.00 | U78: $64.47 | V78: $65.00 | W78: $0
A79: 203020 | B79: Concrete (RCP) Pipe Removal - 4"-10" diameter | D79: LF | E79: $3.84 | F79: 50.00% | G79: 50.00% | H79: $0.00 | J79: 0.00% | K79: $3.45 | L79: 45.00% | M79: 45.00% | N79: $0.38 | O79: 5.00% | P79: 5.00% | Q79: $7.50 | R79: $7.68 | S79: 20.00% | T79: $9.00 | U79: $9.21 | V79: $10.00 | W79: $0
A80: 203021 | B80: Concrete (RCP) Pipe Removal - 42"-48" diameter | D80: LF | E80: $24.18 | F80: 45.00% | G80: 45.00% | H80: $0.00 | J80: 0.00% | K80: $26.86 | L80: 50.00% | M80: 50.00% | N80: $2.69 | O80: 5.00% | P80: 5.00% | Q80: $52.50 | R80: $53.73 | S80: 20.00% | T80: $63.00 | U80: $64.47 | V80: $65.00 | W80: $0
A81: 203022 | B81: Concrete (RCP) Pipe Removal - 60"-84" diameter | D81: LF | E81: $24.56 | F81: 40.00% | G81: 40.00% | H81: $0.00 | J81: 0.00% | K81: $33.77 | L81: 55.00% | M81: 55.00% | N81: $3.07 | O81: 5.00% | P81: 5.00% | Q81: $60.00 | R81: $61.41 | S81: 20.00% | T81: $72.00 | U81: $73.69 | V81: $74.00 | W81: $0
A82: 203023 | B82: Concrete (RCP) Pipe Removal - 96" diameter | D82: LF | E82: $27.63 | F82: 40.00% | G82: 40.00% | H82: $0.00 | J82: 0.00% | K82: $38.00 | L82: 55.00% | M82: 55.00% | N82: $3.45 | O82: 5.00% | P82: 5.00% | Q82: $67.50 | R82: $69.08 | S82: 20.00% | T82: $81.00 | U82: $82.90 | V82: $83.00 | W82: $0
A83: 203024 | B83: Concrete (RCP) Pipe Removal - 108"-144" diameter | D83: LF | E83: $35.82 | F83: 40.00% | G83: 40.00% | H83: $0.00 | J83: 0.00% | K83: $49.25 | L83: 55.00% | M83: 55.00% | N83: $4.48 | O83: 5.00% | P83: 5.00% | Q83: $87.50 | R83: $89.55 | S83: 20.00% | T83: $105.00 | U83: $107.46 | V83: $110.00 | W83: $0
A84: 203025 | B84: Remove Concrete fitting-Pipe - 12" diameter | D84: EA | E84: $47.97 | F84: 45.00% | G84: 45.00% | H84: $0.00 | J84: 0.00% | K84: $53.30 | L84: 50.00% | M84: 50.00% | N84: $5.33 | O84: 5.00% | P84: 5.00% | Q84: $104.17 | R84: $106.61 | S84: 20.00% | T84: $125.00 | U84: $127.93 | V84: $130.00 | W84: $0
A85: 203026 | B85: Remove Concrete End pieces Pipe - 12" diameter | D85: LF | E85: $5.16 | F85: 55.00% | G85: 55.00% | H85: $0.00 | J85: 0.00% | K85: $3.75 | L85: 40.00% | M85: 40.00% | N85: $0.47 | O85: 5.00% | P85: 5.00% | Q85: $9.17 | R85: $9.38 | S85: 20.00% | T85: $11.00 | U85: $11.26 | V85: $12.00 | W85: $0
A86: 203027 | B86: Remove Concrete End pieces Pipe - 15"-18" diameter | D86: LF | E86: $7.04 | F86: 55.00% | G86: 55.00% | H86: $0.00 | J86: 0.00% | K86: $5.12 | L86: 40.00% | M86: 40.00% | N86: $0.64 | O86: 5.00% | P86: 5.00% | Q86: $12.50 | R86: $12.79 | S86: 20.00% | T86: $15.00 | U86: $15.35 | V86: $16.00 | W86: $0
A87: 203028 | B87: Remove Concrete End pieces Pipe - 24"-36" diameter | D87: LF | E87: $10.79 | F87: 55.00% | G87: 55.00% | H87: $0.00 | J87: 0.00% | K87: $7.85 | L87: 40.00% | M87: 40.00% | N87: $0.98 | O87: 5.00% | P87: 5.00% | Q87: $19.17 | R87: $19.62 | S87: 20.00% | T87: $23.00 | U87: $23.54 | V87: $24.00 | W87: $0
A88: 203029 | B88: Remove Concrete fitting-Pipe - 24"-36" diameter | D88: EA | E88: $91.46 | F88: 55.00% | G88: 55.00% | H88: $0.00 | J88: 0.00% | K88: $66.51 | L88: 40.00% | M88: 40.00% | N88: $8.31 | O88: 5.00% | P88: 5.00% | Q88: $162.50 | R88: $166.29 | S88: 20.00% | T88: $195.00 | U88: $199.54 | V88: $200.00 | W88: $0
A89: 203030 | B89: Remove Concrete fitting-Pipe - 48"-84" diameter | D89: EA | E89: $204.67 | F89: 50.00% | G89: 50.00% | H89: $0.00 | J89: 0.00% | K89: $184.20 | L89: 45.00% | M89: 45.00% | N89: $20.47 | O89: 5.00% | P89: 5.00% | Q89: $400.00 | R89: $409.34 | S89: 20.00% | T89: $480.00 | U89: $491.21 | V89: $495.00 | W89: $0
A90: 203031 | B90: Remove Concrete fitting-Pipe - 96" diameter | D90: EA | E90: $281.42 | F90: 50.00% | G90: 50.00% | H90: $0.00 | J90: 0.00% | K90: $253.28 | L90: 45.00% | M90: 45.00% | N90: $28.14 | O90: 5.00% | P90: 5.00% | Q90: $550.00 | R90: $562.84 | S90: 20.00% | T90: $660.00 | U90: $675.41 | V90: $680.00 | W90: $0
A91: 203032 | B91: Remove Concrete fitting-Pipe - 108"-144" diameter | D91: EA | E91: $511.73 | F91: 40.00% | G91: 40.00% | H91: $0.00 | J91: 0.00% | K91: $703.62 | L91: 55.00% | M91: 55.00% | N91: $63.97 | O91: 5.00% | P91: 5.00% | Q91: $1,250.00 | R91: $1,279.31 | S91: 20.00% | T91: $1,500.00 | U91: $1,535.18 | V91: $1,550.00 | W91: $0
A92: 203033 | B92: Remove DIP pipe 4" diameter with Fittings | D92: LF | E92: $11.26 | F92: 55.00% | G92: 55.00% | H92: $0.00 | J92: 0.00% | K92: $8.19 | L92: 40.00% | M92: 40.00% | N92: $1.02 | O92: 5.00% | P92: 5.00% | Q92: $20.00 | R92: $20.47 | S92: 20.00% | T92: $24.00 | U92: $24.56 | V92: $25.00 | W92: $0
A93: 203034 | B93: Remove DIP pipe 6"-12" diameter with Fittings | D93: LF | E93: $11.51 | F93: 50.00% | G93: 50.00% | H93: $0.00 | J93: 0.00% | K93: $10.36 | L93: 45.00% | M93: 45.00% | N93: $1.15 | O93: 5.00% | P93: 5.00% | Q93: $22.50 | R93: $23.03 | S93: 20.00% | T93: $27.00 | U93: $27.63 | V93: $28.00 | W93: $0
A94: 203035 | B94: Remove DIP pipe 14"-24" diameter with Fittings | D94: LF | E94: $14.97 | F94: 45.00% | G94: 45.00% | H94: $0.00 | J94: 0.00% | K94: $16.63 | L94: 50.00% | M94: 50.00% | N94: $1.66 | O94: 5.00% | P94: 5.00% | Q94: $32.50 | R94: $33.26 | S94: 20.00% | T94: $39.00 | U94: $39.91 | V94: $40.00 | W94: $0
A95: 203036 | B95: Remove DIP pipe 24"-30" diameter with Fittings | D95: LF | E95: $17.27 | F95: 45.00% | G95: 45.00% | H95: $0.00 | J95: 0.00% | K95: $19.19 | L95: 50.00% | M95: 50.00% | N95: $1.92 | O95: 5.00% | P95: 5.00% | Q95: $37.50 | R95: $38.38 | S95: 20.00% | T95: $45.00 | U95: $46.05 | V95: $47.00 | W95: $0
A96: 203037 | B96: Remove Plastic pipe 3/4"-4" diameter with Fitting | D96: LF | E96: =R96*G96 -> $2.58 | F96: 55.00% | G96: =F96 -> 55.00% | H96: =R96*J96 -> $0.00 | J96: =I96 -> 0.00% | K96: =R96*M96 -> $1.87 | L96: 40.00% | M96: =L96 -> 40.00% | N96: =P96*R96 -> $0.23 | O96: 5.00% | P96: =O96 -> 5.00% | Q96: $4.58 | R96: =SUM(F96*Q96*1.0235,I96*Q96*1.0175,L96*Q96*1.0245,O96*Q96*1.0115) -> $4.69 | S96: 20.00% | T96: $5.50 | U96: $5.62 | V96: $6.00 | W96: $0
A97: 203038 | B97: Remove Plastic pipe 6"-8" diameter with Fitting | D97: LF | E97: $3.75 | F97: 55.00% | G97: 55.00% | H97: $0.00 | J97: 0.00% | K97: $2.73 | L97: 40.00% | M97: 40.00% | N97: $0.34 | O97: 5.00% | P97: 5.00% | Q97: $6.67 | R97: $6.83 | S97: 20.00% | T97: $8.00 | U97: $8.19 | V97: $9.00 | W97: $0
A98: 203039 | B98: Remove Plastic pipe 10"-18" diameter with Fitting | D98: LF | E98: $5.12 | F98: 50.00% | G98: 50.00% | H98: $0.00 | J98: 0.00% | K98: $4.61 | L98: 45.00% | M98: 45.00% | N98: $0.51 | O98: 5.00% | P98: 5.00% | Q98: $10.00 | R98: $10.23 | S98: 20.00% | T98: $12.00 | U98: =(R98*S98)+R98 -> $12.28 | V98: =IF(U98=0, 0, IF(U98<10, _xlfn.CEILING.MATH(U98,1), IF(U98<100, _xlfn.CEILING.MATH(U98,1),IF(U98<1000, _xlfn.CEILING.MATH(U98,5), IF(U98<10000, _xlfn.CEILING.MATH(U98, 25), IF(U98<100000, _xlfn.CEILING.MATH(U98,250), IF(U98<1000000, _xlfn.CEILING.MATH(U98,500), 0))))))) -> $13.00 | W98: =C98*V98 -> $0
A99: 203040 | B99: Remove Plastic pipe 20"-36" diameter with Fitting | D99: LF | E99: $7.68 | F99: 50.00% | G99: 50.00% | H99: $0.00 | J99: 0.00% | K99: $6.91 | L99: 45.00% | M99: 45.00% | N99: $0.77 | O99: 5.00% | P99: 5.00% | Q99: $15.00 | R99: $15.35 | S99: 20.00% | T99: $18.00 | U99: $18.42 | V99: $19.00 | W99: $0
A100: 203041 | B100: Remove Plastic pipe 42"-48" diameter with Fitting | D100: LF | E100: $8.53 | F100: 50.00% | G100: 50.00% | H100: $0.00 | J100: 0.00% | K100: $7.68 | L100: 45.00% | M100: 45.00% | N100: $0.85 | O100: 5.00% | P100: 5.00% | Q100: $16.67 | R100: $17.06 | S100: 20.00% | T100: $20.00 | U100: $20.47 | V100: $21.00 | W100: $0
A101: 203042 | B101: Remove Plastic pipe 54"-60" diameter with Fitting | D101: LF | E101: $8.83 | F101: 45.00% | G101: 45.00% | H101: $0.00 | J101: 0.00% | K101: $9.81 | L101: 50.00% | M101: 50.00% | N101: $0.98 | O101: 5.00% | P101: 5.00% | Q101: $19.17 | R101: $19.62 | S101: 20.00% | T101: $23.00 | U101: $23.54 | V101: $24.00 | W101: $0
A102: 203050 | B102: Remove DIP pipe 30"-36" with Fitting | D102: LF | E102: $26.25 | F102: 45.00% | G102: 45.00% | H102: $0.00 | J102: 0.00% | K102: $29.17 | L102: 50.00% | M102: 50.00% | N102: $2.92 | O102: 5.00% | P102: 5.00% | R102: $58.33 | S102: 20.00% | T102: =Q102+Q102*S102 -> $0.00 | U102: $70.00 | V102: $70.00 | W102: $0
A103: 203051 | B103: Remove DIP pipe 36"-42" with Fitting | D103: LF | E103: $33.75 | F103: 45.00% | G103: 45.00% | H103: $0.00 | J103: 0.00% | K103: $37.50 | L103: 50.00% | M103: 50.00% | N103: $3.75 | O103: 5.00% | P103: 5.00% | R103: $75.00 | S103: 20.00% | T103: =Q103+Q103*S103 -> $0.00 | U103: $90.00 | V103: $90.00 | W103: $0
A104: 203052 | B104: Remove DIP pipe 50"-66" with Fitting | D104: LF | E104: $45.00 | F104: 45.00% | G104: 45.00% | H104: $0.00 | J104: 0.00% | K104: $50.00 | L104: 50.00% | M104: 50.00% | N104: $5.00 | O104: 5.00% | P104: 5.00% | R104: $100.00 | S104: 20.00% | T104: =Q104+Q104*S104 -> $0.00 | U104: $120.00 | V104: $120.00 | W104: $0
A105: 203110 | B105: DEMO WATER TANK FOUNDATION (with haul and disposal) | D105: EA | E105: $6,465.00 | F105: =6465/8290 -> 77.99% | G105: 77.99% | H105: $0.00 | J105: 0.00% | K105: $1,250.00 | L105: =1250/8290 -> 15.08% | M105: 15.08% | N105: $575.00 | O105: =575/8290 -> 6.94% | P105: 6.94% | R105: $8,290.00 | S105: 20.00% | T105: =Q105+Q105*S105 -> $0.00 | U105: $9,948.00 | V105: $9,950.00 | W105: =C105*V105 -> $0
A106: 203111 | B106: DEMO STEEL WATER TANK, 2M Capacity | D106: EA | E106: $8,081.00 | F106: =8081/8906 -> 90.74% | G106: 90.74% | H106: $0.00 | J106: 0.00% | K106: $650.00 | L106: =650/8906 -> 7.30% | M106: 7.30% | N106: $175.00 | O106: =175/8906 -> 1.96% | P106: 1.96% | R106: $8,906.00 | S106: 20.00% | T106: =Q106+Q106*S106 -> $0.00 | U106: $10,687.20 | V106: $10,750.00 | W106: =C106*V106 -> $0
A107: Sec 2-07 | B107: Protective System
A108: 207020 | B108: TIGHT SAFETY SYSTEM TRENCH EXCAVATION - (SIZE 12'x12'x8') {8 Foot Deep - 4 HR to install & 2 HR to Remove} | D108: SF | E108: =R108*G108 -> $35.73 | F108: 45.00% | G108: =F108 -> 45.00% | H108: =R108*J108 -> $0.00 | J108: =I108 -> 0.00% | K108: =R108*M108 -> $39.70 | L108: 50.00% | M108: =L108 -> 50.00% | N108: =P108*R108 -> $3.97 | O108: 5.00% | P108: =O108 -> 5.00% | Q108: $77.58 | R108: $79.39 | S108: 25.00% | T108: =Q108+Q108*S108+0.03 -> $97.00 | U108: =(R108*S108)+R108 -> $99.24 | V108: =IF(U108=0, 0, IF(U108<10, _xlfn.CEILING.MATH(U108,1), IF(U108<100, _xlfn.CEILING.MATH(U108,1),IF(U108<1000, _xlfn.CEILING.MATH(U108,5), IF(U108<10000, _xlfn.CEILING.MATH(U108, 25), IF(U108<100000, _xlfn.CEILING.MATH(U108,250), IF(U108<1000000, _xlfn.CEILING.MATH(U108,500), 0))))))) -> $100.00 | W108: =C108*V108 -> $0
A109: 207021 | B109: TIGHT SAFETY SYSTEM TRENCH EXCAVATION - (SIZE 12'x16'x8') {8 Foot Deep - 5 HR to install & 2.5 HR to Remove} | D109: SF | E109: $33.51 | F109: 45.00% | G109: 45.00% | H109: $0.00 | J109: 0.00% | K109: $37.23 | L109: 50.00% | M109: 50.00% | N109: $3.72 | O109: 5.00% | P109: 5.00% | Q109: $72.76 | R109: $74.47 | S109: 25.00% | T109: =Q109+Q109*S109+0.04 -> $91.00 | U109: $93.08 | V109: $94.00 | W109: $0
A110: 207022 | B110: TIGHT SAFETY SYSTEM TRENCH EXCAVATION - (SIZE 12'x20'x8') {8 Foot Deep - 6 HR to install & 3 HR to Remove} | D110: SF | E110: $30.06 | F110: 45.00% | G110: 45.00% | H110: $0.00 | J110: 0.00% | K110: $33.40 | L110: 50.00% | M110: 50.00% | N110: $3.34 | O110: 5.00% | P110: 5.00% | Q110: $65.27 | R110: $66.80 | S110: 25.00% | T110: =Q110+Q110*S110+0.41 -> $82.00 | U110: $83.50 | V110: $84.00 | W110: $0
A111: 207023 | B111: TIGHT SAFETY SYSTEM TRENCH EXCAVATION - (SIZE 12'x12'x12') {12 Foot Deep - 4 HR to install & 2 HR to Remove} | D111: SF | E111: $47.58 | F111: 45.00% | G111: 45.00% | H111: $0.00 | J111: 0.00% | K111: $52.87 | L111: 50.00% | M111: 50.00% | N111: $5.29 | O111: 5.00% | P111: 5.00% | Q111: $103.32 | R111: $105.74 | S111: 25.00% | T111: =Q111+Q111*S111-0.15 -> $129.00 | U111: $132.17 | V111: $135.00 | W111: $0
A112: 207024 | B112: TIGHT SAFETY SYSTEM TRENCH EXCAVATION - (SIZE 12'x16'x12') {8 Foot Deep - 5 HR to install & 2.5 HR to Remove} | D112: SF | E112: $43.46 | F112: 45.00% | G112: 45.00% | H112: $0.00 | J112: 0.00% | K112: $48.29 | L112: 50.00% | M112: 50.00% | N112: $4.83 | O112: 5.00% | P112: 5.00% | Q112: $94.38 | R112: $96.58 | S112: 25.00% | T112: =Q112+Q112*S112+0.03 -> $118.00 | U112: $120.73 | V112: $125.00 | W112: $0
A113: 207025 | B113: TIGHT SAFETY SYSTEM TRENCH EXCAVATION - (SIZE 12'x20'x12') {8 Foot Deep - 6 HR to install & 3 HR to Remove} | D113: SF | E113: $41.10 | F113: 45.00% | G113: 45.00% | H113: $0.00 | J113: 0.00% | K113: $45.67 | L113: 50.00% | M113: 50.00% | N113: $4.57 | O113: 5.00% | P113: 5.00% | Q113: $89.25 | R113: $91.34 | S113: 25.00% | T113: =Q113+Q113*S113+0.44 -> $112.00 | U113: $114.17 | V113: $115.00 | W113: $0
A114: 207026 | B114: TIGHT SAFETY SYSTEM TRENCH EXCAVATION - (SIZE 12'x12'x16') {16 Foot Deep - 8 HR to install & 6 HR to Remove} | D114: SF | E114: $76.63 | F114: 45.00% | G114: 45.00% | H114: $0.00 | J114: 0.00% | K114: $85.15 | L114: 50.00% | M114: 50.00% | N114: $8.51 | O114: 5.00% | P114: 5.00% | Q114: $166.40 | R114: $170.30 | S114: 25.00% | T114: =Q114+Q114*S114-0.15+0.15 -> $208.00 | U114: $212.87 | V114: $215.00 | W114: $0
A115: 207027 | B115: TIGHT SAFETY SYSTEM TRENCH EXCAVATION - (SIZE 12'x16'x16') {16 Foot Deep - 9 HR to install & 6 HR to Remove} | D115: SF | E115: $64.95 | F115: 45.00% | G115: 45.00% | H115: $0.00 | J115: 0.00% | K115: $72.17 | L115: 50.00% | M115: 50.00% | N115: $7.22 | O115: 5.00% | P115: 5.00% | Q115: $141.03 | R115: $144.33 | S115: 25.00% | T115: =Q115+Q115*S115+0.71 -> $177.00 | U115: $180.42 | V115: $185.00 | W115: $0
A116: 207028 | B116: TIGHT SAFETY SYSTEM TRENCH EXCAVATION - (SIZE 12'x20'x16') {16 Foot Deep - 10 HR to install & 6 HR to Remove} | D116: SF | E116: $58.70 | F116: 45.00% | G116: 45.00% | H116: $0.00 | J116: 0.00% | K116: $65.22 | L116: 50.00% | M116: 50.00% | N116: $6.52 | O116: 5.00% | P116: 5.00% | Q116: $127.46 | R116: $130.44 | S116: 25.00% | T116: =Q116+Q116*S116+0.44+0.24 -> $160.00 | U116: $163.05 | V116: $165.00 | W116: $0
A117: 207029 | B117: TIGHT SAFETY SYSTEM TRENCH EXCAVATION - (SIZE 12'x12'x16') {16 Foot Deep - 8 HR to install & 6 HR to Remove} | D117: SF | E117: $92.28 | F117: 45.00% | G117: 45.00% | H117: $0.00 | J117: 0.00% | K117: $102.54 | L117: 50.00% | M117: 50.00% | N117: $10.25 | O117: 5.00% | P117: 5.00% | Q117: $200.38 | R117: $205.07 | S117: 25.00% | T117: =Q117+Q117*S117-0.15+0.15+0.52 -> $251.00 | U117: $256.34 | V117: $260.00 | W117: $0
A118: 207030 | B118: TIGHT SAFETY SYSTEM TRENCH EXCAVATION - (SIZE 12'x16'x16') {16 Foot Deep - 9 HR to install & 6 HR to Remove} | D118: SF | E118: $77.85 | F118: 45.00% | G118: 45.00% | H118: $0.00 | J118: 0.00% | K118: $86.50 | L118: 50.00% | M118: 50.00% | N118: $8.65 | O118: 5.00% | P118: 5.00% | Q118: $169.05 | R118: $173.00 | S118: 25.00% | T118: =Q118+Q118*S118+0.69 -> $212.00 | U118: $216.26 | V118: $220.00 | W118: $0
A119: 207032 | B119: TIGHT SAFETY SYSTEM TRENCH EXCAVATION - (SIZE 12'x20'x16') {16 Foot Deep - 10 HR to install & 6 HR to Remove} | D119: SF | E119: $99.70 | F119: 45.00% | G119: 45.00% | H119: $0.00 | J119: 0.00% | K119: $110.77 | L119: 50.00% | M119: 50.00% | N119: $11.08 | O119: 5.00% | P119: 5.00% | Q119: $216.48 | R119: $221.55 | S119: 25.00% | T119: =Q119+Q119*S119+0.4 -> $271.00 | U119: $276.93 | V119: $280.00 | W119: $0
A120: 207120 | B120: SHEET PILE SHORING FOR STRUCTURE {<=15 Foot Deep} | D120: SF | E120: $14.70 | F120: 45.00% | G120: 45.00% | H120: $11.43 | I120: 35.00% | J120: 35.00% | K120: $5.72 | L120: 17.50% | M120: 17.50% | N120: $0.82 | O120: 2.50% | P120: 2.50% | Q120: $31.98 | R120: $32.66 | S120: 25.00% | T120: =Q120+Q120*S120-0.15+0.15+0.52 -> $40.50 | U120: $40.83 | V120: $41.00 | W120: $0
A121: 207120 | B121: SHEET PILE SHORING FOR STRUCTURE {16-25 Foot Deep} | D121: SF | E121: $16.53 | F121: 46.00% | G121: 46.00% | H121: $11.68 | I121: 32.50% | J121: 32.50% | K121: $6.92 | L121: 19.25% | M121: 19.25% | N121: $0.81 | O121: 2.25% | P121: 2.25% | Q121: $35.18 | R121: $35.94 | S121: 25.00% | T121: =Q121+Q121*S121-0.15+0.15+0.52 -> $44.50 | U121: $44.92 | V121: $45.00 | W121: $0
A122: 207120 | B122: SHEET PILE SHORING FOR STRUCTURE {>25 Foot Deep} | D122: SF | E122: $18.23 | F122: 48.00% | G122: 48.00% | H122: $11.59 | I122: 30.50% | J122: 30.50% | K122: $7.41 | L122: 19.50% | M122: 19.50% | N122: $0.76 | O122: 2.00% | P122: 2.00% | Q122: $37.18 | R122: $37.98 | S122: 25.00% | T122: =Q122+Q122*S122-0.15+0.15+0.52 -> $47.00 | U122: $47.48 | V122: $48.00 | W122: $0
A123: 207030 | B123: SOLDIER PILE SHORING WITH TIE-BACKS FOR STRUCTURE {<=25 Foot Deep} | D123: SF | E123: $34.37 | F123: 45.00% | G123: 45.00% | H123: $26.73 | I123: 35.00% | J123: 35.00% | K123: $13.36 | L123: 17.50% | M123: 17.50% | N123: $1.91 | O123: 2.50% | P123: 2.50% | Q123: $74.78 | R123: $76.37 | S123: 25.00% | T123: =Q123+Q123*S123-0.15+0.15+0.52 -> $94.00 | U123: $95.46 | V123: $96.00 | W123: $0
A124: 207032 | B124: SOLDIER PILE SHORING WITH TIE-BACKS FOR STRUCTURE {>30 Foot Deep} | D124: SF | E124: $38.26 | F124: 47.00% | G124: 47.00% | H124: $26.46 | I124: 32.50% | J124: 32.50% | K124: $15.87 | L124: 19.50% | M124: 19.50% | N124: $0.81 | O124: 1.00% | P124: 1.00% | Q124: $79.68 | R124: $81.41 | S124: 25.00% | T124: =Q124+Q124*S124+0.4 -> $100.00 | U124: $101.76 | V124: $105.00 | W124: $0
A125: Sec 2-08 | B125: Dewatering
A126: 208010 | B126: Dewatering - Pumping Water (2" Pump) to Baker Tank - Small Water Flow Capacity | D126: Day | E126: =R126*G126 -> $412.17 | F126: 45.00% | G126: =F126 -> 45.00% | H126: =R126*J126 -> $0.00 | J126: =I126 -> 0.00% | K126: =R126*M126 -> $457.97 | L126: 50.00% | M126: =L126 -> 50.00% | N126: =P126*R126 -> $45.80 | O126: 5.00% | P126: =O126 -> 5.00% | Q126: $895.00 | R126: $915.94 | S126: 25.00% | T126: =Q126+Q126*S126-0.75 -> $1,118.00 | U126: =(R126*S126)+R126 -> $1,144.93 | V126: =IF(U126=0, 0, IF(U126<10, _xlfn.CEILING.MATH(U126,1), IF(U126<100, _xlfn.CEILING.MATH(U126,1),IF(U126<1000, _xlfn.CEILING.MATH(U126,5), IF(U126<10000, _xlfn.CEILING.MATH(U126, 25), IF(U126<100000, _xlfn.CEILING.MATH(U126,250), IF(U126<1000000, _xlfn.CEILING.MATH(U126,500), 0))))))) -> $1,150.00 | W126: =C126*V126 -> $0
A127: 208011 | B127: Dewatering - Pumping Water (3" Pump) to Baker Tank - Small to Mid-range Water Flow Capacity | D127: Day | E127: $534.21 | F127: 45.00% | G127: 45.00% | H127: $0.00 | J127: 0.00% | K127: $593.57 | L127: 50.00% | M127: 50.00% | N127: $59.36 | O127: 5.00% | P127: 5.00% | Q127: $1,160.00 | R127: $1,187.14 | S127: 25.00% | T127: =Q127+Q127*S127 -> $1,450.00 | U127: $1,483.93 | V127: $1,500.00 | W127: $0
A128: 208012 | B128: Dewatering - Pumping Water (4" Pump) to Baker Tank - Mid to Large Water Flow Capacity | D128: Day | E128: $665.47 | F128: 45.00% | G128: 45.00% | H128: $0.00 | J128: 0.00% | K128: $739.41 | L128: 50.00% | M128: 50.00% | N128: $73.94 | O128: 5.00% | P128: 5.00% | Q128: $1,445.00 | R128: $1,478.81 | S128: 25.00% | T128: =Q128+Q128*S128-1.25 -> $1,805.00 | U128: $1,848.52 | V128: $1,850.00 | W128: $0
A129: 208013 | B129: Dewatering - Pumping Water (6" Pump) to Baker Tank - Large Water Flow Capacity | D129: Day | E129: $746.06 | F129: 45.00% | G129: 45.00% | H129: $0.00 | J129: 0.00% | K129: $828.95 | L129: 50.00% | M129: 50.00% | N129: $82.90 | O129: 5.00% | P129: 5.00% | Q129: $1,620.00 | R129: $1,657.91 | S129: 25.00% | T129: =Q129+Q129*S129 -> $2,025.00 | U129: $2,072.39 | V129: $2,075.00 | W129: $0
A130: 208020 | B130: Dewatering-Cofferdam-Soldiers Beam with wood Sheeting | D130: SF | E130: $25.33 | F130: 45.00% | G130: 45.00% | H130: $0.00 | J130: 0.00% | K130: $28.14 | L130: 50.00% | M130: 50.00% | N130: $2.81 | O130: 5.00% | P130: 5.00% | Q130: $55.00 | R130: $56.29 | S130: 20.00% | T130: =Q130+Q130*S130 -> $66.00 | U130: $67.54 | V130: $68.00 | W130: $0
A131: 208021 | B131: Dewatering-Cofferdam-Soldiers Beam with Temp Sheeting | D131: SF | E131: $19.80 | F131: 45.00% | G131: 45.00% | H131: $0.00 | J131: 0.00% | K131: $22.00 | L131: 50.00% | M131: 50.00% | N131: $2.20 | O131: 5.00% | P131: 5.00% | Q131: $43.00 | R131: $44.01 | S131: 20.00% | T131: =Q131+Q131*S131+0.4 -> $52.00 | U131: $52.81 | V131: $53.00 | W131: $0
A132: 208022 | B132: Dewatering-Cofferdam-Soldiers Beam open Sheeting | D132: SF | E132: $13.36 | F132: 45.00% | G132: 45.00% | H132: $0.00 | J132: 0.00% | K132: $14.84 | L132: 50.00% | M132: 50.00% | N132: $1.48 | O132: 5.00% | P132: 5.00% | Q132: $29.00 | R132: $29.68 | S132: 20.00% | T132: =Q132+Q132*S132+0.2 -> $35.00 | U132: $35.61 | V132: $36.00 | W132: $0
A133: Sec 7-23 | B133: POTHOLING
A134: 209200 | B134: Potholing Up to 7 FT Deep {QTY<=3 EA} | D134: EA | E134: =R134*G134 -> $900.00 | F134: =900/1625 -> 55.38% | G134: =F134 -> 55.38% | H134: =R134*J134 -> $620.00 | I134: =620/1625 -> 38.15% | J134: =I134 -> 38.15% | K134: =R134*M134 -> $80.00 | L134: =80/1625 -> 4.92% | M134: =L134 -> 4.92% | N134: =P134*R134 -> $25.00 | O134: =25/1625 -> 1.54% | P134: =O134 -> 1.54% | R134: $1,625.00 | S134: 20.00% | T134: =Q134+Q134*S134+0.2 -> $0.20 | U134: =(R134*S134)+R134 -> $1,950.00 | V134: =IF(U134=0, 0, IF(U134<10, _xlfn.CEILING.MATH(U134,1), IF(U134<100, _xlfn.CEILING.MATH(U134,1),IF(U134<1000, _xlfn.CEILING.MATH(U134,5), IF(U134<10000, _xlfn.CEILING.MATH(U134, 25), IF(U134<100000, _xlfn.CEILING.MATH(U134,250), IF(U134<1000000, _xlfn.CEILING.MATH(U134,500), 0))))))) -> $1,950.00 | W134: =C134*V134 -> $0
A135: 209210 | B135: Potholing Up to 7 FT Deep {QTY 4-10 EA} | D135: EA | E135: $805.00 | F135: =805/1479 -> 54.43% | G135: 54.43% | H135: $589.00 | I135: =589/1479 -> 39.82% | J135: 39.82% | K135: $65.00 | L135: =65/1479 -> 4.39% | M135: 4.39% | N135: $20.00 | O135: =20/1479 -> 1.35% | P135: 1.35% | R135: $1,479.00 | S135: 20.00% | T135: $0.20 | U135: $1,774.80 | V135: $1,775.00 | W135: $0
A136: 209220 | B136: Potholing Up to 7 FT Deep {QTY >10 EA} | D136: EA | E136: $738.83 | F136: =738.83/1347.83 -> 54.82% | G136: 54.82% | H136: $544.00 | I136: =544/1347.83 -> 40.36% | J136: 40.36% | K136: $50.00 | L136: =50/1347.83 -> 3.71% | M136: 3.71% | N136: $15.00 | O136: =15/1347.83 -> 1.11% | P136: 1.11% | R136: $1,347.83 | S136: 15.00% | T136: $0.20 | U136: $1,550.00 | V136: $1,550.00 | W136: $0
A137: 209300 | B137: Potholing or Exploratory Excavations {QTY 50-100 EA} | D137: EA | E137: $313.33 | F137: =313.33/583.33 -> 53.71% | G137: 53.71% | H137: $0.00 | J137: 0.00% | K137: $215.00 | L137: =215/583.33 -> 36.86% | M137: 36.86% | N137: $55.00 | O137: =55/583.33 -> 9.43% | P137: 9.43% | R137: $583.33 | S137: 20.00% | T137: $0.20 | U137: $700.00 | V137: $700.00 | W137: $0
A138: 209310 | B138: Potholing or Exploratory Excavations {QTY >150 EA} | D138: EA | E138: $252.50 | F138: =252.5/487.5 -> 51.79% | G138: 51.79% | H138: $0.00 | J138: 0.00% | K138: $195.00 | L138: =195/487.5 -> 40.00% | M138: 40.00% | N138: $40.00 | O138: =40/487.5 -> 8.21% | P138: 8.21% | R138: $487.50 | S138: 20.00% | T138: $0.20 | U138: $585.00 | V138: $585.00 | W138: $0
A139: 209400 | B139: Potholing for Exploratory or for Utility Conflict {QTY 50-100 EA} | D139: EA | E139: $355.21 | F139: =355.21/565.21 -> 62.85% | G139: 62.85% | H139: $0.00 | J139: 0.00% | K139: $180.00 | L139: =180/565.21 -> 31.85% | M139: 31.85% | N139: $30.00 | O139: =30/565.21 -> 5.31% | P139: 5.31% | R139: $565.21 | S139: 15.00% | T139: $0.20 | U139: $649.99 | V139: $650.00 | W139: $0
A140: 209410 | B140: Potholing for Exploratory or for Utility Conflict {QTY >150 EA} | D140: EA | E140: $305.00 | F140: =305/500 -> 61.00% | G140: 61.00% | H140: $0.00 | J140: 0.00% | K140: $170.00 | L140: =170/500 -> 34.00% | M140: 34.00% | N140: $25.00 | O140: =25/500 -> 5.00% | P140: 5.00% | R140: $500.00 | S140: 15.00% | T140: $0.20 | U140: $575.00 | V140: $575.00 | W140: $0
A141: 723901 | B141: UTILITY POTHOLING {QTY <=3 EA} | D141: EA | E141: $500.00 | F141: 40.00% | G141: 40.00% | H141: $375.00 | I141: 30.00% | J141: 30.00% | K141: $312.50 | L141: 25.00% | M141: 25.00% | N141: $62.50 | O141: 5.00% | P141: 5.00% | R141: $1,250.00 | S141: 20.00% | T141: =Q141+Q141*S141 -> $0.00 | U141: $1,500.00 | V141: $1,500.00 | W141: $0
A142: 723901 | B142: UTILITY POTHOLING {QTY 4-10 EA} | D142: EA | E142: $440.00 | F142: 40.00% | G142: 40.00% | H142: $330.00 | I142: 30.00% | J142: 30.00% | K142: $275.00 | L142: 25.00% | M142: 25.00% | N142: $55.00 | O142: 5.00% | P142: 5.00% | R142: $1,100.00 | S142: 20.00% | T142: =Q142+Q142*S142 -> $0.00 | U142: $1,320.00 | V142: $1,325.00 | W142: $0
A143: 723901 | B143: UTILITY POTHOLING {QTY >10 EA} | D143: EA | E143: $360.00 | F143: 40.00% | G143: 40.00% | H143: $270.00 | I143: 30.00% | J143: 30.00% | K143: $225.00 | L143: 25.00% | M143: 25.00% | N143: $45.00 | O143: 5.00% | P143: 5.00% | R143: $900.00 | S143: 20.00% | T143: =Q143+Q143*S143 -> $0.00 | U143: $1,080.00 | V143: $1,100.00 | W143: $0
A144: Sec 2-10 | B144: Backfilling
A145: 210020 | B145: Engineered Fill (Elastizell Aprrication) Mix # SPFLOPLP | D145: CY | E145: =R145*G145 -> $61.31 | F145: 31.40% | G145: =F145 -> 31.40% | H145: =R145*J145 -> $127.50 | I145: 65.30% | J145: =I145 -> 65.30% | K145: =R145*M145 -> $9.76 | L145: 5.00% | M145: =L145 -> 5.00% | N145: =P145*R145 -> $3.91 | O145: 2.00% | P145: =O145 -> 2.00% | R145: $195.26 | S145: 20.00% | T145: =Q145+Q145*S145 -> $0.00 | U145: =(R145*S145)+R145 -> $234.31 | V145: =IF(U145=0, 0, IF(U145<10, _xlfn.CEILING.MATH(U145,1), IF(U145<100, _xlfn.CEILING.MATH(U145,1),IF(U145<1000, _xlfn.CEILING.MATH(U145,5), IF(U145<10000, _xlfn.CEILING.MATH(U145, 25), IF(U145<100000, _xlfn.CEILING.MATH(U145,250), IF(U145<1000000, _xlfn.CEILING.MATH(U145,500), 0))))))) -> $235.00 | W145: =C145*V145 -> $0
A146: 210020 | B146: Engineered Fill (Elastizell Aprricatio) Mix # PFLOP5P | D146: CY | E146: $46.17 | F146: 40.00% | G146: 40.00% | H146: $46.17 | I146: 40.00% | J146: 40.00% | K146: $23.09 | L146: 20.00% | M146: 20.00% | N146: $0.00 | P146: 0.00% | R146: $115.43 | S146: 20.00% | T146: $0.00 | U146: $138.52 | V146: $140.00 | W146: $0
A147: 210110 | B147: Contaminated soils Disposal | D147: TN | E147: $44.00 | F147: 40.00% | G147: 40.00% | H147: $33.00 | I147: 30.00% | J147: 30.00% | K147: $27.50 | L147: 25.00% | M147: 25.00% | N147: $5.50 | O147: 5.00% | P147: 5.00% | R147: $110.00 | S147: 20.00% | T147: $0.00 | U147: $132.00 | V147: $135.00 | W147: $0
A148: 210210 | B148: Hazardous materials abatement | D148: TN | E148: $58.83 | F148: 28.24% | G148: 28.24% | H148: $0.00 | J148: 0.00% | K148: $75.00 | L148: 36.00% | M148: 36.00% | N148: $85.00 | O148: 40.80% | P148: 40.80% | R148: $208.33 | S148: 20.00% | T148: $0.00 | U148: $250.00 | V148: $250.00 | W148: $0
A149: 210310 | B149: Contaminated soil excavation, loading, and disposal {QTY <=20 TN} | D149: TN | E149: $128.00 | F149: 40.00% | G149: 40.00% | H149: $0.00 | J149: 0.00% | K149: $128.00 | L149: 40.00% | M149: 40.00% | N149: $64.00 | O149: 20.00% | P149: 20.00% | R149: $320.00 | S149: 20.00% | T149: $0.00 | U149: $384.00 | V149: $385.00 | W149: $0
A150: 210310 | B150: Contaminated soil excavation, loading, and disposal {QTY 25-50 TN} | D150: TN | E150: $120.00 | F150: 40.00% | G150: 40.00% | H150: $0.00 | J150: 0.00% | K150: $120.00 | L150: 40.00% | M150: 40.00% | N150: $60.00 | O150: 20.00% | P150: 20.00% | R150: $300.00 | S150: 20.00% | T150: $0.00 | U150: $360.00 | V150: $360.00 | W150: $0
A151: 210310 | B151: Contaminated soil excavation, loading, and disposal {QTY >50 TN} | D151: TN | E151: $114.00 | F151: 40.00% | G151: 40.00% | H151: $0.00 | J151: 0.00% | K151: $114.00 | L151: 40.00% | M151: 40.00% | N151: $57.00 | O151: 20.00% | P151: 20.00% | R151: $285.00 | S151: 20.00% | T151: $0.00 | U151: $342.00 | V151: $345.00 | W151: $0
A152: Sec 3-10 | B152: Geotechnical Instrumentation & Monitoring
A153: 310900 | B153: VIBRATION MONITORING (400 LF Pipe/Weekly) | D153: WEEK | E153: =R153*G153 -> $122.11 | F153: 6.86% | G153: =F153 -> 6.86% | H153: =R153*J153 -> $763.18 | I153: 42.86% | J153: =I153 -> 42.86% | K153: =R153*M153 -> $366.32 | L153: 20.57% | M153: =L153 -> 20.57% | N153: =P153*R153 -> $529.14 | O153: 29.71% | P153: =O153 -> 29.71% | Q153: $1,750.00 | R153: =SUM(F153*Q153*1.0235,I153*Q153*1.0175,L153*Q153*1.0245,O153*Q153*1.0115) -> $1,780.75 | S153: 15.00% | T153: =Q153+Q153*S153 -> $2,012.50 | U153: =(R153*S153)+R153 -> $2,047.86 | V153: =IF(U153=0, 0, IF(U153<10, _xlfn.CEILING.MATH(U153,1), IF(U153<100, _xlfn.CEILING.MATH(U153,1),IF(U153<1000, _xlfn.CEILING.MATH(U153,5), IF(U153<10000, _xlfn.CEILING.MATH(U153, 25), IF(U153<100000, _xlfn.CEILING.MATH(U153,250), IF(U153<1000000, _xlfn.CEILING.MATH(U153,500), 0))))))) -> $2,050.00 | W153: =C153*V153 -> $0
A154: 310910 | B154: VIBRATION MONITORING (1625 LF Pipe/Monthly) | D154: MO | E154: =R154*G154 -> $407.04 | F154: 6.37% | G154: =F154 -> 6.37% | H154: =R154*J154 -> $2,493.15 | I154: 39.04% | J154: =I154 -> 39.04% | K154: =R154*M154 -> $1,475.54 | L154: 23.11% | M154: =L154 -> 23.11% | N154: =P154*R154 -> $2,009.78 | O154: 31.47% | P154: =O154 -> 31.47% | Q154: $6,275.00 | R154: =SUM(F154*Q154*1.0235,I154*Q154*1.0175,L154*Q154*1.0245,O154*Q154*1.0115) -> $6,385.51 | S154: 15.00% | T154: =Q154+Q154*S154 -> $7,216.25 | U154: =(R154*S154)+R154 -> $7,343.34 | V154: =IF(U154=0, 0, IF(U154<10, _xlfn.CEILING.MATH(U154,1), IF(U154<100, _xlfn.CEILING.MATH(U154,1),IF(U154<1000, _xlfn.CEILING.MATH(U154,5), IF(U154<10000, _xlfn.CEILING.MATH(U154, 25), IF(U154<100000, _xlfn.CEILING.MATH(U154,250), IF(U154<1000000, _xlfn.CEILING.MATH(U154,500), 0))))))) -> $7,350.00 | W154: =C154*V154 -> $0
A155: Sec 4-01 | B155: Mineral Aggregates
A156: 401002 | B156: MINERAL AGGREGATE TYPE 2 {QTY 500-1000 TN} | D156: TN | E156: =R156*G156 -> $0.00 | G156: =F156 -> 0.00% | H156: =R156*J156 -> $34.00 | I156: 85.00% | J156: =I156 -> 85.00% | K156: =R156*M156 -> $0.00 | M156: =L156 -> 0.00% | N156: =P156*R156 -> $6.00 | O156: 15.00% | P156: =O156 -> 15.00% | R156: $40.00 | S156: 20.00% | T156: =Q156+Q156*S156 -> $0.00 | U156: =(R156*S156)+R156 -> $48.00 | V156: =IF(U156=0, 0, IF(U156<10, _xlfn.CEILING.MATH(U156,1), IF(U156<100, _xlfn.CEILING.MATH(U156,1),IF(U156<1000, _xlfn.CEILING.MATH(U156,5), IF(U156<10000, _xlfn.CEILING.MATH(U156, 25), IF(U156<100000, _xlfn.CEILING.MATH(U156,250), IF(U156<1000000, _xlfn.CEILING.MATH(U156,500), 0))))))) -> $48.00 | W156: =C156*V156 -> $0
A157: 401002 | B157: MINERAL AGGREGATE TYPE 2 {QTY 1000-2000 TN} | D157: TN | E157: =R157*G157 -> $0.00 | G157: =F157 -> 0.00% | H157: =R157*J157 -> $25.50 | I157: 85.00% | J157: =I157 -> 85.00% | K157: =R157*M157 -> $0.00 | M157: =L157 -> 0.00% | N157: =P157*R157 -> $4.50 | O157: 15.00% | P157: =O157 -> 15.00% | R157: $30.00 | S157: 20.00% | T157: =Q157+Q157*S157 -> $0.00 | U157: =(R157*S157)+R157 -> $36.00 | V157: =IF(U157=0, 0, IF(U157<10, _xlfn.CEILING.MATH(U157,1), IF(U157<100, _xlfn.CEILING.MATH(U157,1),IF(U157<1000, _xlfn.CEILING.MATH(U157,5), IF(U157<10000, _xlfn.CEILING.MATH(U157, 25), IF(U157<100000, _xlfn.CEILING.MATH(U157,250), IF(U157<1000000, _xlfn.CEILING.MATH(U157,500), 0))))))) -> $36.00 | W157: =C157*V157 -> $0
A158: 401002 | B158: MINERAL AGGREGATE TYPE 2 {QTY >2000 TN} | D158: TN | E158: =R158*G158 -> $0.00 | G158: =F158 -> 0.00% | H158: =R158*J158 -> $17.00 | I158: 85.00% | J158: =I158 -> 85.00% | K158: =R158*M158 -> $0.00 | M158: =L158 -> 0.00% | N158: =P158*R158 -> $3.00 | O158: 15.00% | P158: =O158 -> 15.00% | R158: $20.00 | S158: 20.00% | T158: =Q158+Q158*S158 -> $0.00 | U158: =(R158*S158)+R158 -> $24.00 | V158: =IF(U158=0, 0, IF(U158<10, _xlfn.CEILING.MATH(U158,1), IF(U158<100, _xlfn.CEILING.MATH(U158,1),IF(U158<1000, _xlfn.CEILING.MATH(U158,5), IF(U158<10000, _xlfn.CEILING.MATH(U158, 25), IF(U158<100000, _xlfn.CEILING.MATH(U158,250), IF(U158<1000000, _xlfn.CEILING.MATH(U158,500), 0))))))) -> $24.00 | W158: =C158*V158 -> $0
A159: 401017 | B159: MINERAL AGGREGATE TYPE 17 {QTY >1000 TN} | D159: TN | E159: =R159*G159 -> $0.00 | G159: =F159 -> 0.00% | H159: =R159*J159 -> $25.50 | I159: 85.00% | J159: =I159 -> 85.00% | K159: =R159*M159 -> $0.00 | M159: =L159 -> 0.00% | N159: =P159*R159 -> $4.50 | O159: 15.00% | P159: =O159 -> 15.00% | R159: $30.00 | S159: 20.00% | T159: =Q159+Q159*S159 -> $0.00 | U159: =(R159*S159)+R159 -> $36.00 | V159: =IF(U159=0, 0, IF(U159<10, _xlfn.CEILING.MATH(U159,1), IF(U159<100, _xlfn.CEILING.MATH(U159,1),IF(U159<1000, _xlfn.CEILING.MATH(U159,5), IF(U159<10000, _xlfn.CEILING.MATH(U159, 25), IF(U159<100000, _xlfn.CEILING.MATH(U159,250), IF(U159<1000000, _xlfn.CEILING.MATH(U159,500), 0))))))) -> $36.00 | W159: =C159*V159 -> $0
A160: Sec 5-04 | B160: Hot Mix Asphalt (HMA) and Warm Mix Asphalt (WMA) Pavement
A161: 504025 | B161: SURFACE PREP. PLANE BITUMINOUS PAVEMENT {QTY 250-500 SY} | D161: SY | E161: =R161*G161 -> $1.13 | F161: 15.00% | G161: =F161 -> 15.00% | H161: =R161*J161 -> $0.00 | J161: =I161 -> 0.00% | K161: =R161*M161 -> $0.75 | L161: 10.00% | M161: =L161 -> 10.00% | N161: =P161*R161 -> $5.63 | O161: 75.00% | P161: =O161 -> 75.00% | R161: $7.50 | S161: 25.00% | T161: =Q161+Q161*S161 -> $0.00 | U161: =(R161*S161)+R161 -> $9.38 | V161: =IF(U161=0, 0, IF(U161<10, _xlfn.CEILING.MATH(U161,1), IF(U161<100, _xlfn.CEILING.MATH(U161,1),IF(U161<1000, _xlfn.CEILING.MATH(U161,5), IF(U161<10000, _xlfn.CEILING.MATH(U161, 25), IF(U161<100000, _xlfn.CEILING.MATH(U161,250), IF(U161<1000000, _xlfn.CEILING.MATH(U161,500), 0))))))) -> $10.00 | W161: =C161*V161 -> $0
A162: 504025 | B162: SURFACE PREP. PLANE BITUMINOUS PAVEMENT {QTY >500 SY} | D162: SY | E162: $0.75 | F162: 15.00% | G162: 15.00% | H162: $0.00 | J162: 0.00% | K162: $0.50 | L162: 10.00% | M162: 10.00% | N162: $3.75 | O162: 75.00% | P162: 75.00% | R162: $5.00 | S162: 25.00% | T162: $0.00 | U162: $6.25 | V162: $7.00 | W162: $0
A163: 504045 | B163: PAVEMENT, HMA (CL 1/2 IN) {QTY 200-500 TN} | D163: TN | E163: $21.00 | F163: 15.00% | G163: 15.00% | H163: $0.00 | J163: 0.00% | K163: $14.00 | L163: 10.00% | M163: 10.00% | N163: $105.00 | O163: 75.00% | P163: 75.00% | R163: $140.00 | S163: 25.00% | T163: $0.00 | U163: $175.00 | V163: $175.00 | W163: $0
A164: 504045 | B164: PAVEMENT, HMA (CL 1/2 IN) {QTY >500 TN} | D164: TN | E164: $19.50 | F164: 15.00% | G164: 15.00% | H164: $0.00 | J164: 0.00% | K164: $13.00 | L164: 10.00% | M164: 10.00% | N164: $97.50 | O164: 75.00% | P164: 75.00% | R164: $130.00 | S164: 25.00% | T164: $0.00 | U164: $162.50 | V164: $165.00 | W164: $0
A165: 504300 | B165: REMOVE, REJUVENATE, RESPREAD ASPHALT GRINDING {<=4" DEEP} | D165: SY | E165: $5.75 | F165: =5.75/10.75 -> 53.49% | G165: 53.49% | H165: $0.00 | J165: 0.00% | K165: $4.25 | L165: =4.25/10.75 -> 39.53% | M165: 39.53% | N165: $0.75 | O165: =0.75/10.75 -> 6.98% | P165: 6.98% | R165: $10.75 | S165: 20.00% | T165: $0.00 | U165: $12.90 | V165: $13.00 | W165: $0
A166: 504301 | B166: REMOVE, REJUVENATE, RESPREAD ASPHALT GRINDING {4"-6" DEEP} | D166: SY | E166: $7.18 | F166: =7.18/13.45 -> 53.38% | G166: 53.38% | H166: $0.00 | J166: 0.00% | K166: $5.32 | L166: =5.32/13.45 -> 39.55% | M166: 39.55% | N166: $0.95 | O166: =0.95/13.45 -> 7.06% | P166: 7.06% | R166: $13.45 | S166: 20.00% | T166: $0.00 | U166: $16.14 | V166: $17.00 | W166: $0
A167: 504901 | B167: TEMPORARY CURB RAMP, HMA (CL 1/2 IN) {QTY <=5 SY} | D167: SY | E167: $85.42 | F167: 50.00% | G167: 50.00% | H167: $72.09 | I167: 42.20% | J167: 42.20% | K167: $10.76 | L167: 6.30% | M167: 6.30% | N167: $2.73 | O167: 1.60% | P167: 1.60% | R167: $170.83 | S167: 20.00% | T167: $0.00 | U167: $205.00 | V167: $205.00 | W167: $0
A168: 504901 | B168: TEMPORARY CURB RAMP, HMA (CL 1/2 IN) {QTY 5-10 SY} | D168: SY | E168: $81.83 | F168: 49.10% | G168: 49.10% | H168: $72.00 | I168: 43.20% | J168: 43.20% | K168: $10.50 | L168: 6.30% | M168: 6.30% | N168: $2.50 | O168: 1.50% | P168: 1.50% | R168: $166.67 | S168: 20.00% | T168: $0.00 | U168: $200.00 | V168: $200.00 | W168: $0
A169: 504901 | B169: TEMPORARY CURB RAMP, HMA (CL 1/2 IN) {QTY >10 SY} | D169: SY | E169: $78.00 | F169: 48.00% | G169: 48.00% | H169: $71.99 | I169: 44.30% | J169: 44.30% | K169: $10.08 | L169: 6.20% | M169: 6.20% | N169: $2.28 | O169: 1.40% | P169: 1.40% | R169: $162.50 | S169: 20.00% | T169: $0.00 | U169: $195.00 | V169: $195.00 | W169: $0
A170: Sec 6-02 | B170: Cement Concrete Structures and Cement Concrete for Miscellaneous Work
A171: 602410 | B171: Cone and Seal hole in Conen Wall | D171: EA | E171: =R171*G171 -> $500.00 | F171: 50.00% | G171: =F171 -> 50.00% | H171: =R171*J171 -> $350.00 | I171: 35.00% | J171: =I171 -> 35.00% | K171: =R171*M171 -> $100.00 | L171: 10.00% | M171: =L171 -> 10.00% | N171: =P171*R171 -> $50.00 | O171: 5.00% | P171: =O171 -> 5.00% | R171: $1,000.00 | S171: 20.00% | T171: =Q171+Q171*S171 -> $0.00 | U171: =(R171*S171)+R171 -> $1,200.00 | V171: =IF(U171=0, 0, IF(U171<10, _xlfn.CEILING.MATH(U171,1), IF(U171<100, _xlfn.CEILING.MATH(U171,1),IF(U171<1000, _xlfn.CEILING.MATH(U171,5), IF(U171<10000, _xlfn.CEILING.MATH(U171, 25), IF(U171<100000, _xlfn.CEILING.MATH(U171,250), IF(U171<1000000, _xlfn.CEILING.MATH(U171,500), 0))))))) -> $1,200.00 | W171: =C171*V171 -> $0
A172: Sec 7-05 | B172: Maintenance Hole, Catch Basins, and Inlets
A173: 705353 | B173: CATCH Basin Type 240B {QTY 4-7 EA} | D173: EA | E173: =R173*G173 -> $997.50 | F173: 35.00% | G173: =F173 -> 35.00% | H173: =R173*J173 -> $997.50 | I173: 35.00% | J173: =I173 -> 35.00% | K173: =R173*M173 -> $712.50 | L173: 25.00% | M173: =L173 -> 25.00% | N173: =P173*R173 -> $142.50 | O173: 5.00% | P173: =O173 -> 5.00% | R173: $2,850.00 | S173: 20.00% | T173: =Q173+Q173*S173 -> $0.00 | U173: =(R173*S173)+R173 -> $3,420.00 | V173: =IF(U173=0, 0, IF(U173<10, _xlfn.CEILING.MATH(U173,1), IF(U173<100, _xlfn.CEILING.MATH(U173,1),IF(U173<1000, _xlfn.CEILING.MATH(U173,5), IF(U173<10000, _xlfn.CEILING.MATH(U173, 25), IF(U173<100000, _xlfn.CEILING.MATH(U173,250), IF(U173<1000000, _xlfn.CEILING.MATH(U173,500), 0))))))) -> $3,425.00 | W173: =C173*V173 -> $0
A174: 705353 | B174: CATCH Basin Type 240B {QTY >8 EA} | D174: EA | E174: =R174*G174 -> $770.00 | F174: 35.00% | G174: =F174 -> 35.00% | H174: =R174*J174 -> $770.00 | I174: 35.00% | J174: =I174 -> 35.00% | K174: =R174*M174 -> $550.00 | L174: 25.00% | M174: =L174 -> 25.00% | N174: =P174*R174 -> $110.00 | O174: 5.00% | P174: =O174 -> 5.00% | R174: $2,200.00 | S174: 20.00% | T174: =Q174+Q174*S174 -> $0.00 | U174: =(R174*S174)+R174 -> $2,640.00 | V174: =IF(U174=0, 0, IF(U174<10, _xlfn.CEILING.MATH(U174,1), IF(U174<100, _xlfn.CEILING.MATH(U174,1),IF(U174<1000, _xlfn.CEILING.MATH(U174,5), IF(U174<10000, _xlfn.CEILING.MATH(U174, 25), IF(U174<100000, _xlfn.CEILING.MATH(U174,250), IF(U174<1000000, _xlfn.CEILING.MATH(U174,500), 0))))))) -> $2,650.00 | W174: =C174*V174 -> $0
A175: 705901 | B175: MH 204A Type A Riser (Replacement) | D175: EA | E175: =R175*G175 -> $2,187.50 | F175: 35.00% | G175: =F175 -> 35.00% | H175: =R175*J175 -> $3,281.25 | I175: 52.50% | J175: =I175 -> 52.50% | K175: =R175*M175 -> $625.00 | L175: 10.00% | M175: =L175 -> 10.00% | N175: =P175*R175 -> $156.25 | O175: 2.50% | P175: =O175 -> 2.50% | R175: $6,250.00 | S175: 20.00% | T175: =Q175+Q175*S175 -> $0.00 | U175: =(R175*S175)+R175 -> $7,500.00 | V175: =IF(U175=0, 0, IF(U175<10, _xlfn.CEILING.MATH(U175,1), IF(U175<100, _xlfn.CEILING.MATH(U175,1),IF(U175<1000, _xlfn.CEILING.MATH(U175,5), IF(U175<10000, _xlfn.CEILING.MATH(U175, 25), IF(U175<100000, _xlfn.CEILING.MATH(U175,250), IF(U175<1000000, _xlfn.CEILING.MATH(U175,500), 0))))))) -> $7,500.00 | W175: =C175*V175 -> $0
A176: 705902 | B176: MH 204.5A Type A Riser (Replacement) | D176: EA | E176: $3,946.25 | F176: 35.00% | G176: 35.00% | H176: $6,088.50 | I176: 54.00% | J176: 54.00% | K176: $958.38 | L176: 8.50% | M176: 8.50% | N176: $281.88 | O176: 2.50% | P176: 2.50% | R176: $11,275.00 | S176: 15.00% | T176: $0.00 | U176: $12,966.25 | V176: $13,000.00 | W176: $0
A177: 705903 | B177: MH 205A Type A Riser (Replacement) | D177: EA | E177: $5,775.00 | F177: 35.00% | G177: 35.00% | H177: $9,240.00 | I177: 56.00% | J177: 56.00% | K177: $1,072.50 | L177: 6.50% | M177: 6.50% | N177: $412.50 | O177: 2.50% | P177: 2.50% | R177: $16,500.00 | S177: 15.00% | T177: $0.00 | U177: $18,975.00 | V177: $19,000.00 | W177: $0
A178: 705904 | B178: MH 204b Type B Riser (Replacement) | D178: EA | E178: $6,300.00 | F178: 40.00% | G178: 40.00% | H178: $7,875.00 | I178: 50.00% | J178: 50.00% | K178: $1,338.75 | L178: 8.50% | M178: 8.50% | N178: $236.25 | O178: 1.50% | P178: 1.50% | R178: $15,750.00 | S178: 15.00% | T178: $0.00 | U178: $18,112.50 | V178: $18,250.00 | W178: $0
A179: 705905 | B179: MH 204.5b Type B Riser (Replacement) | D179: EA | E179: $6,900.00 | F179: 40.00% | G179: 40.00% | H179: $8,970.00 | I179: 52.00% | J179: 52.00% | K179: $1,121.25 | L179: 6.50% | M179: 6.50% | N179: $258.75 | O179: 1.50% | P179: 1.50% | R179: $17,250.00 | S179: 15.00% | T179: $0.00 | U179: $19,837.50 | V179: $20,000.00 | W179: $0
A180: 705906 | B180: MH 205b Type B Riser (Replacement) | D180: EA | E180: $7,010.00 | F180: 40.00% | G180: 40.00% | H180: $9,288.25 | I180: 53.00% | J180: 53.00% | K180: $963.88 | L180: 5.50% | M180: 5.50% | N180: $262.88 | O180: 1.50% | P180: 1.50% | R180: $17,525.00 | S180: 15.00% | T180: $0.00 | U180: $20,153.75 | V180: $20,250.00 | W180: $0
A181: 705907 | B181: INLET TYPE 250 A.1 | D181: EA | E181: $1,002.09 | F181: 45.38% | G181: 45.38% | H181: $954.10 | I181: 43.20% | J181: 43.20% | K181: $177.24 | L181: 8.03% | M181: 8.03% | N181: $75.00 | O181: 3.40% | P181: 3.40% | R181: $2,208.43 | S181: 20.00% | T181: $0.00 | U181: =(R181*S181)+R181-0.12 -> $2,650.00 | V181: $2,650.00 | W181: $0
A182: 705908 | B182: INLET TYPE 250 A.2 | D182: EA | E182: $1,002.09 | F182: 45.38% | G182: 45.38% | H182: $954.10 | I182: 43.20% | J182: 43.20% | K182: $177.24 | L182: 8.03% | M182: 8.03% | N182: $75.00 | O182: 3.40% | P182: 3.40% | R182: $2,208.43 | S182: 20.00% | T182: $0.00 | U182: =(R182*S182)+R182-0.12 -> $2,650.00 | V182: $2,650.00 | W182: $0
A183: 705909 | B183: MAINTENANCE HOLE RISER RECONSTRUCTION TYPE D | D183: EA | E183: $12,331.13 | F183: 70.19% | G183: 70.19% | H183: $2,999.59 | I183: 17.08% | J183: 17.08% | K183: $1,991.35 | L183: 11.34% | M183: 11.34% | N183: $245.00 | O183: 1.39% | P183: 1.39% | R183: $17,567.07 | S183: 20.00% | T183: $0.00 | U183: =(R183*S183)+R183-0.49 -> $21,079.99 | V183: =IF(U183=0, 0, IF(U183<10, _xlfn.CEILING.MATH(U183,1), IF(U183<100, _xlfn.CEILING.MATH(U183,1),IF(U183<1000, _xlfn.CEILING.MATH(U183,5), IF(U183<10000, _xlfn.CEILING.MATH(U183, 25), IF(U183<100000, _xlfn.CEILING.MATH(U183,20), IF(U183<1000000, _xlfn.CEILING.MATH(U183,500), 0))))))) -> $21,080.00 | W183: $0
A184: 705910 | B184: MAINTENANCE HOLE RISER RECONSTRUCTION TYPE E | D184: EA | E184: $11,140.80 | F184: 69.95% | G184: 69.95% | H184: $2,592.59 | I184: 16.28% | J184: 16.28% | K184: $1,947.30 | L184: 12.23% | M184: 12.23% | N184: $245.00 | O184: 1.54% | P184: 1.54% | R184: $15,925.69 | S184: 20.00% | T184: $0.00 | U184: =(R184*S184)+R184-0.84 -> $19,109.99 | V184: =IF(U184=0, 0, IF(U184<10, _xlfn.CEILING.MATH(U184,1), IF(U184<100, _xlfn.CEILING.MATH(U184,1),IF(U184<1000, _xlfn.CEILING.MATH(U184,5), IF(U184<10000, _xlfn.CEILING.MATH(U184, 25), IF(U184<100000, _xlfn.CEILING.MATH(U184,10), IF(U184<1000000, _xlfn.CEILING.MATH(U184,500), 0))))))) -> $19,110.00 | W184: $0
A185: 705911 | B185: MAINTENANCE HOLE RISER RECONSTRUCTION TYPE H | D185: EA | E185: $6,733.60 | F185: 73.12% | G185: 73.12% | H185: $1,404.15 | I185: 15.25% | J185: 15.25% | K185: $861.33 | L185: 9.35% | M185: 9.35% | N185: $210.00 | O185: 2.28% | P185: 2.28% | R185: $9,209.08 | S185: 20.00% | T185: $0.00 | U185: =(R185*S185)+R185-0.9 -> $11,050.00 | V185: =IF(U185=0, 0, IF(U185<10, _xlfn.CEILING.MATH(U185,1), IF(U185<100, _xlfn.CEILING.MATH(U185,1),IF(U185<1000, _xlfn.CEILING.MATH(U185,5), IF(U185<10000, _xlfn.CEILING.MATH(U185, 25), IF(U185<100000, _xlfn.CEILING.MATH(U185,50), IF(U185<1000000, _xlfn.CEILING.MATH(U185,500), 0))))))) -> $11,050.00 | W185: $0
A186: 705912 | B186: MAINTENANCE HOLE RISER RECONSTRUCTION TYPE J | D186: EA | E186: $12,851.07 | F186: 69.94% | G186: 69.94% | H186: $3,205.13 | I186: 17.44% | J186: 17.44% | K186: $2,043.88 | L186: 11.12% | M186: 11.12% | N186: $275.00 | O186: 1.50% | P186: 1.50% | R186: $18,375.07 | S186: 20.00% | T186: $0.00 | U186: =(R186*S186)+R186-0.09 -> $22,049.99 | V186: =IF(U186=0, 0, IF(U186<10, _xlfn.CEILING.MATH(U186,1), IF(U186<100, _xlfn.CEILING.MATH(U186,1),IF(U186<1000, _xlfn.CEILING.MATH(U186,5), IF(U186<10000, _xlfn.CEILING.MATH(U186, 25), IF(U186<100000, _xlfn.CEILING.MATH(U186,50), IF(U186<1000000, _xlfn.CEILING.MATH(U186,500), 0))))))) -> $22,050.00 | W186: $0
A187: 705913 | B187: MAINTENANCE HOLE RISER RECONSTRUCTION TYPE L | D187: EA | E187: $5,962.91 | F187: 72.64% | G187: 72.64% | H187: $1,221.00 | I187: 14.88% | J187: 14.88% | K187: $814.48 | L187: 9.92% | M187: 9.92% | N187: $210.00 | O187: 2.56% | P187: 2.56% | R187: $8,208.39 | S187: 20.00% | T187: $0.00 | U187: =(R187*S187)+R187-0.07 -> $9,850.00 | V187: =IF(U187=0, 0, IF(U187<10, _xlfn.CEILING.MATH(U187,1), IF(U187<100, _xlfn.CEILING.MATH(U187,1),IF(U187<1000, _xlfn.CEILING.MATH(U187,5), IF(U187<10000, _xlfn.CEILING.MATH(U187, 25), IF(U187<100000, _xlfn.CEILING.MATH(U187,250), IF(U187<1000000, _xlfn.CEILING.MATH(U187,500), 0))))))) -> $9,850.00 | W187: $0
A188: 705914 | B188: MAINTENANCE HOLE RISER RECONSTRUCTION TYPE M | D188: EA | E188: $1,049.09 | F188: 53.11% | G188: 53.11% | H188: $600.33 | I188: 30.39% | J188: 30.39% | K188: $251.00 | L188: 12.71% | M188: 12.71% | N188: $75.00 | O188: 3.80% | P188: 3.80% | R188: $1,975.42 | S188: 20.00% | T188: $0.00 | U188: =(R188*S188)+R188-0.51 -> $2,369.99 | V188: =IF(U188=0, 0, IF(U188<10, _xlfn.CEILING.MATH(U188,1), IF(U188<100, _xlfn.CEILING.MATH(U188,1),IF(U188<1000, _xlfn.CEILING.MATH(U188,5), IF(U188<10000, _xlfn.CEILING.MATH(U188, 10), IF(U188<100000, _xlfn.CEILING.MATH(U188,250), IF(U188<1000000, _xlfn.CEILING.MATH(U188,500), 0))))))) -> $2,370.00 | W188: $0
A189: Sec 7-08 | B189: Miscellaneous Pipe Connections
A190: 708001 | B190: Connect Pipe to Exist MH | D190: EA | E190: =R190*G190 -> $337.50 | F190: 45.00% | G190: =F190 -> 45.00% | H190: =R190*J190 -> $262.50 | I190: 35.00% | J190: =I190 -> 35.00% | K190: =R190*M190 -> $150.00 | L190: 20.00% | M190: =L190 -> 20.00% | N190: =P190*R190 -> $0.00 | P190: =O190 -> 0.00% | R190: $750.00 | S190: 20.00% | T190: =Q190+Q190*S190 -> $0.00 | U190: =(R190*S190)+R190 -> $900.00 | V190: =IF(U190=0, 0, IF(U190<10, _xlfn.CEILING.MATH(U190,1), IF(U190<100, _xlfn.CEILING.MATH(U190,1),IF(U190<1000, _xlfn.CEILING.MATH(U190,1), IF(U190<10000, _xlfn.CEILING.MATH(U190, 25), IF(U190<100000, _xlfn.CEILING.MATH(U190,250), IF(U190<1000000, _xlfn.CEILING.MATH(U190,500), 0))))))) -> $900.00 | W190: =C190*V190 -> $0
A191: 708901 | B191: CORE TAP BRICK SEWER | D191: EA | E191: =R191*G191 -> $1,571.07 | F191: 66.14% | G191: =F191 -> 66.14% | H191: =R191*J191 -> $427.04 | I191: 17.98% | J191: =I191 -> 17.98% | K191: =R191*M191 -> $302.23 | L191: 12.72% | M191: =L191 -> 12.72% | N191: =P191*R191 -> $75.00 | O191: 3.16% | P191: =O191 -> 3.16% | R191: $2,375.34 | S191: 20.00% | T191: =Q191+Q191*S191 -> $0.00 | U191: =(R191*S191)+R191 -> $2,850.41 | V191: =IF(U191=0, 0, IF(U191<10, _xlfn.CEILING.MATH(U191,1), IF(U191<100, _xlfn.CEILING.MATH(U191,1),IF(U191<1000, _xlfn.CEILING.MATH(U191,1), IF(U191<10000, _xlfn.CEILING.MATH(U191, 25), IF(U191<100000, _xlfn.CEILING.MATH(U191,250), IF(U191<1000000, _xlfn.CEILING.MATH(U191,500), 0))))))) -> $2,875.00 | W191: =C191*V191 -> $0
A192: 708902 | B192: TRACK DRAIN CONNECTION | D192: EA | E192: =R192*G192 -> $2,661.41 | F192: 59.14% | G192: =F192 -> 59.14% | H192: =R192*J192 -> $1,221.81 | I192: 27.15% | J192: =I192 -> 27.15% | K192: =R192*M192 -> $517.17 | L192: 11.49% | M192: =L192 -> 11.49% | N192: =P192*R192 -> $100.00 | O192: 2.22% | P192: =O192 -> 2.22% | R192: $4,500.39 | S192: 20.00% | T192: =Q192+Q192*S192 -> $0.00 | U192: =(R192*S192)+R192 -> $5,400.47 | V192: =IF(U192=0, 0, IF(U192<10, _xlfn.CEILING.MATH(U192,1), IF(U192<100, _xlfn.CEILING.MATH(U192,1),IF(U192<1000, _xlfn.CEILING.MATH(U192,1), IF(U192<10000, _xlfn.CEILING.MATH(U192, 25), IF(U192<100000, _xlfn.CEILING.MATH(U192,250), IF(U192<1000000, _xlfn.CEILING.MATH(U192,500), 0))))))) -> $5,425.00 | W192: =C192*V192 -> $0
A193: Sec 7-11 | B193: Pipe Installation For Water Mains
A194: 711024 | B194: PIPE, WM, DI, CL 52, 4 IN, SUSP. INCL. Fitting {QTY <=50 FT} | D194: LF | E194: =R194*G194 -> $59.17 | F194: =59.17/113.5 -> 52.13% | G194: =F194 -> 52.13% | H194: =R194*J194 -> $28.33 | I194: =28.33/113.5 -> 24.96% | J194: =I194 -> 24.96% | K194: =R194*M194 -> $17.50 | L194: =17.5/113.5 -> 15.42% | M194: =L194 -> 15.42% | N194: =P194*R194 -> $8.50 | O194: =8.5/113.5 -> 7.49% | P194: =O194 -> 7.49% | R194: $113.50 | S194: 20.00% | T194: =Q194+Q194*S194 -> $0.00 | U194: =(R194*S194)+R194 -> $136.20 | V194: =IF(U194=0, 0, IF(U194<10, _xlfn.CEILING.MATH(U194,1), IF(U194<100, _xlfn.CEILING.MATH(U194,1),IF(U194<1000, _xlfn.CEILING.MATH(U194,1), IF(U194<10000, _xlfn.CEILING.MATH(U194, 25), IF(U194<100000, _xlfn.CEILING.MATH(U194,250), IF(U194<1000000, _xlfn.CEILING.MATH(U194,500), 0))))))) -> $137.00 | W194: =C194*V194 -> $0
A195: 711024 | B195: PIPE, WM, DI, CL 52, 4 IN, SUSP. INCL. Fitting {QTY >50 FT} | D195: LF | E195: $73.96 | F195: =73.96/133.29 -> 55.49% | G195: 55.49% | H195: $28.33 | I195: =28.33/133.29 -> 21.25% | J195: 21.25% | K195: $22.50 | L195: =22.5/133.29 -> 16.88% | M195: 16.88% | N195: $8.50 | O195: =8.5/133.29 -> 6.38% | P195: 6.38% | R195: $133.29 | S195: 20.00% | T195: $0.00 | U195: $159.95 | V195: $160.00 | W195: $0
A196: 711026 | B196: PIPE, WM, DI, CL 52, 6 IN, SUSP. INCL. Fitting {QTY <=50 FT} | D196: LF | E196: $75.00 | F196: =75/149.92 -> 50.03% | G196: 50.03% | H196: $41.67 | I196: =41.67/149.92 -> 27.79% | J196: 27.79% | K196: $22.50 | L196: =22.5/149.92 -> 15.01% | M196: 15.01% | N196: $10.75 | O196: =10.75/149.92 -> 7.17% | P196: 7.17% | R196: $149.92 | S196: 20.00% | T196: $0.00 | U196: $179.90 | V196: $180.00 | W196: $0
A197: 711026 | B197: PIPE, WM, DI, CL 52, 6 IN, SUSP. INCL. Fitting {QTY >50 FT} | D197: LF | E197: $90.00 | F197: =90/172.57 -> 52.15% | G197: 52.15% | H197: $41.67 | I197: =41.67/172.57 -> 24.15% | J197: 24.15% | K197: $30.15 | L197: =30.15/172.57 -> 17.47% | M197: 17.47% | N197: $10.75 | O197: =10.75/172.57 -> 6.23% | P197: 6.23% | R197: $172.57 | S197: 20.00% | T197: $0.00 | U197: $207.08 | V197: $208.00 | W197: $0
A198: 711028 | B198: PIPE, WM, DI, CL 52, 8 IN, SUSP. INCL. Fitting {QTY <=50 FT} | D198: LF | E198: $82.43 | F198: =82.43/183.33 -> 44.96% | G198: 44.96% | H198: $60.50 | I198: =60.5/183.33 -> 33.00% | J198: 33.00% | K198: $30.15 | L198: =30.15/183.33 -> 16.45% | M198: 16.45% | N198: $10.25 | O198: =10.25/183.33 -> 5.59% | P198: 5.59% | R198: $183.33 | S198: 20.00% | T198: $0.00 | U198: $220.00 | V198: $220.00 | W198: $0
A199: 711028 | B199: PIPE, WM, DI, CL 52, 8 IN, SUSP. INCL. Fitting {QTY >50 FT} | D199: LF | E199: $93.36 | F199: =93.36/204.16 -> 45.73% | G199: 45.73% | H199: $60.50 | I199: =60.5/204.16 -> 29.63% | J199: 29.63% | K199: $40.05 | L199: =40.05/204.16 -> 19.62% | M199: 19.62% | N199: $10.25 | O199: =10.25/204.16 -> 5.02% | P199: 5.02% | R199: $204.16 | S199: 20.00% | T199: $0.00 | U199: $244.99 | V199: $245.00 | W199: $0
A200: 711146 | B200: PIPE, WM, EQRDIP, Zink Coated & Cement Mortar Lined, CL 53, 6 IN, RJ, INCL. Fitt {QTY <=50 LF} | D200: LF | E200: $467.11 | F200: 57.50% | G200: 57.50% | H200: $228.27 | I200: 28.10% | J200: 28.10% | K200: $112.11 | L200: 13.80% | M200: 13.80% | N200: $4.87 | O200: 0.60% | P200: 0.60% | R200: $812.36 | S200: 20.00% | T200: $0.00 | U200: $974.83 | V200: =IF(U200=0, 0, IF(U200<10, _xlfn.CEILING.MATH(U200,1), IF(U200<100, _xlfn.CEILING.MATH(U200,1),IF(U200<1000, _xlfn.CEILING.MATH(U200,5), IF(U200<10000, _xlfn.CEILING.MATH(U200, 25), IF(U200<100000, _xlfn.CEILING.MATH(U200,250), IF(U200<1000000, _xlfn.CEILING.MATH(U200,500), 0))))))) -> $975.00 | W200: $0
... 3576 more rows

Sheet CSI Summary (hidden)
A1: Bid Item | B1: Bid Item Description | C1: Quantity | D1: Unit | E1: Unit Price
A2: 01 00 00 | B2: General Requirements
A3: 01 10 00 | B3: Summary
A4: 01 11 00 | B4: Summary of Work
A5: 01 11 13 | B5: Work Covered by Contract Documents
A6: 01 11 16 | B6: Work by Owner
A7: 01 11 19 | B7: Purchase Contracts
A8: 01 12 00 | B8: Multiple Contract Summary
A9: 01 12 13 | B9: Summary of Contracts
A10: 01 12 16 | B10: Work Sequence
A11: 01 12 19 | B11: Contract Interface
A12: 01 14 00 | B12: Work Restrictions
A13: 01 14 13 | B13: Access to Site
A14: 01 14 16 | B14: Coordination with Occupants
A15: 01 14 19 | B15: Use of Site
A16: 01 18 00 | B16: Project Utility Sources
A17: 01 18 13 | B17: Utility Service Connections
A18: 01 20 00 | B18: Price and Payment Procedures
A19: 01 21 00 | B19: Allowances
A20: 01 21 13 | B20: Cash Allowances
A21: 01 21 16 | B21: Contingency Allowances
A22: 01 21 19 | B22: Testing and Inspecting Allowances
A23: 01 21 23 | B23: Installation Allowances
A24: 01 21 26 | B24: Product Allowances
A25: 01 21 29 | B25: Quantity Allowances
A26: 01 21 43 | B26: Time Allowances
A27: 01 22 00 | B27: Unit Prices
A28: 01 22 13 | B28: Unit Price Measurement
A29: 01 22 16 | B29: Unit Price Payment
A30: 01 23 00 | B30: Alternates
A31: 01 24 00 | B31: Value Analysis
A32: 01 24 13 | B32: Value Engineering
A33: 01 25 00 | B33: Substitution Procedures
A34: 01 25 13 | B34: Product Substitution Procedures
A35: 01 25 16 | B35: Execution Substitution Procedures
A36: 01 26 00 | B36: Contract Modification Procedures
A37: 01 26 13 | B37: Requests for Interpretation
A38: 01 26 19 | B38: Clarification Notices
A39: 01 26 33 | B39: Minor Changes in the Work
A40: 01 26 36 | B40: Supplemental Instructions
A41: 01 26 39 | B41: Field Orders
A42: 01 26 43 | B42: Amendments
A43: 01 26 46 | B43: Construction Change Directives
A44: 01 26 49 | B44: Work Change Directives
A45: 01 26 53 | B45: Proposal Requests
A46: 01 26 54 | B46: Proposal Worksheet Summaries
A47: 01 26 57 | B47: Change Order Requests
A48: 01 26 63 | B48: Change Orders
A49: 01 29 00 | B49: Payment Procedures
A50: 01 29 73 | B50: Schedule of Values
A51: 01 29 76 | B51: Progress Payment Procedures
A52: 01 29 83 | B52: Payment Procedures for Testing Laboratory Services
A53: 01 30 00 | B53: Administrative Requirements
A54: 01 31 00 | B54: Project Management and Coordination
A55: 01 31 13 | B55: Project Coordination
A56: 01 31 14 | B56: Facility Services Coordination
A57: 01 31 16 | B57: Multiple Contract Coordination
A58: 01 31 19 | B58: Project Meetings
A59: 01 31 19 13 | B59: Preconstruction Meetings
A60: 01 31 19 16 | B60: Site Mobilization Meetings
A61: 01 31 19 23 | B61: Progress Meetings
A62: 01 31 19 33 | B62: Preinstallation Meetings
A63: 01 31 23 | B63: Project Web Site
A64: 01 31 26 | B64: Electronic Communication Protocols
A65: 01 32 00 | B65: Construction Progress Documentation
A66: 01 32 13 | B66: Scheduling of Work
A67: 01 32 16 | B67: Construction Progress Schedule
A68: 01 32 16 13 | B68: Network Analysis Schedules
A69: 01 32 19 | B69: Submittals Schedule
A70: 01 32 23 | B70: Survey and Layout Data
A71: 01 32 26 | B71: Construction Progress Reporting
A72: 01 32 29 | B72: Periodic Work Observation
A73: 01 32 33 | B73: Photographic Documentation
A74: 01 32 36 | B74: Video Monitoring and Documentation
A75: 01 32 43 | B75: Purchase Order Tracking
A76: 01 33 00 | B76: Submittal Procedures
A77: 01 33 13 | B77: Certificates
A78: 01 33 16 | B78: Design Data
A79: 01 33 19 | B79: Field Test Reporting
A80: 01 33 23 | B80: Shop Drawings, Product Data, and Samples
A81: 01 33 26 | B81: Source Quality Control Reporting
A82: 01 33 29 | B82: Sustainable Design Reporting
A83: 01 33 29.01 | B83: Material Cost Summary Form
A84: 01 33 29.02 | B84: Wood-Containing Product List
A85: 01 33 29.03 | B85: Metal-Containing Product List
A86: 01 33 29.04 | B86: Material Content Form
A87: 01 33 29.05 | B87: New Product Source Form
A88: 01 33 29.06 | B88: Reused Product Form
A89: 01 33 29.07 | B89: Prohibited Content Installer Certification
A90: 01 35 00 | B90: Special Procedures
A91: 01 35 13 | B91: Special Project Procedures
A92: 01 35 13.13 | B92: Special Project Procedures for Airport Facilities
A93: 01 35 13.16 | B93: Special Project Procedures for Detention Facilities
A94: 01 35 13.19 | B94: Special Project Procedures for Healthcare Facilities
A95: 01 35 13.26 | B95: Special Project Procedures for Clean Rooms
A96: 01 35 13.43 | B96: Special Project Procedures for Contaminated Sites
A97: 01 35 16 | B97: Alteration Project Procedures
A98: 01 35 23 | B98: Owner Safety Requirements
A99: 01 35 26 | B99: Governmental Safety Requirements
A100: 01 35 29 | B100: Health, Safety, and Emergency Response Procedures
A101: 01 35 29.13 | B101: Health, Safety, and Emergency Response Procedures for Contaminated Sites
A102: 01 35 33 | B102: Infection Control Procedures
A103: 01 35 43 | B103: Environmental Procedures
A104: 01 35 43.13 | B104: Environmental Procedures for Hazardous Materials
A105: 01 35 43.16 | B105: Environmental Procedures for Toxic Materials
A106: 01 35 46 | B106: Indoor Air Quality Procedures
A107: 01 35 53 | B107: Security Procedures
A108: 01 35 63 | B108: Sustainability Certification Project Requirements
A109: 01 35 66 | B109: Sustainability Certification Project Procedures
A110: 01 35 91 | B110: Historic Treatment Procedures
A111: 01 40 00 | B111: Quality Requirements
A112: 01 41 00 | B112: Regulatory Requirements
A113: 01 41 13 | B113: Codes
A114: 01 41 16 | B114: Laws
A115: 01 41 19 | B115: Rules
A116: 01 41 23 | B116: Fees
A117: 01 41 26 | B117: Permit Requirements
A118: 01 42 00 | B118: References
A119: 01 42 13 | B119: Abbreviations and Acronyms
A120: 01 42 16 | B120: Definitions
A121: 01 42 19 | B121: Reference Standards
A122: 01 43 00 | B122: Quality Assurance
A123: 01 43 13 | B123: Manufacturer Qualifications
A124: 01 43 16 | B124: Supplier Qualifications
A125: 01 43 19 | B125: Fabricator Qualifications
A126: 01 43 23 | B126: Installer Qualifications
A127: 01 43 26 | B127: Testing and Inspecting Agency Qualifications
A128: 01 43 29 | B128: Code-Required Special Inspector Qualifications
A129: 01 43 33 | B129: Manufacturer's Field Services
A130: 01 43 36 | B130: Field Samples
A131: 01 43 39 | B131: Mockups
A132: 01 45 00 | B132: Quality Control
A133: 01 45 13 | B133: Source Quality Control Procedures
A134: 01 45 16 | B134: Field Quality Control Procedures
A135: 01 45 16 13 | B135: Contractor Quality Control
A136: 01 45 23 | B136: Testing and Inspecting Services
A137: 01 45 26 | B137: Plant Inspection Procedures
A138: 01 45 29 | B138: Testing Laboratory Services
A139: 01 45 33 | B139: Code-Required Special Inspections and Procedures
A140: 01 50 00 | B140: Temporary Facilities and Controls
A141: 01 51 00 | B141: Temporary Utilities
A142: 01 51 13 | B142: Temporary Electricity
A143: 01 51 16 | B143: Temporary Fire Protection
A144: 01 51 19 | B144: Temporary Fuel Oil
A145: 01 51 23 | B145: Temporary Heating, Cooling, and Ventilating
A146: 01 51 26 | B146: Temporary Lighting
A147: 01 51 29 | B147: Temporary Natural-Gas
A148: 01 51 33 | B148: Temporary Telecommunications
A149: 01 51 36 | B149: Temporary Water
A150: 01 52 00 | B150: Construction Facilities
A151: 01 52 13 | B151: Field Offices and Sheds
A152: 01 52 16 | B152: First Aid Facilities
A153: 01 52 19 | B153: Sanitary Facilities
A154: 01 53 00 | B154: Temporary Construction
A155: 01 53 13 | B155: Temporary Bridges
A156: 01 53 16 | B156: Temporary Decking
A157: 01 53 19 | B157: Temporary Overpasses
A158: 01 53 23 | B158: Temporary Ramps
A159: 01 53 26 | B159: Temporary Runarounds
A160: 01 54 00 | B160: Construction Aids
A161: 01 54 13 | B161: Temporary Elevators
A162: 01 54 16 | B162: Temporary Hoists
A163: 01 54 19 | B163: Temporary Cranes
A164: 01 54 23 | B164: Temporary Scaffolding and Platforms
A165: 01 54 26 | B165: Temporary Swing Staging
A166: 01 55 00 | B166: Vehicular Access and Parking
A167: 01 55 13 | B167: Temporary Access Roads
A168: 01 55 16 | B168: Haul Routes
A169: 01 55 19 | B169: Temporary Parking Areas
A170: 01 55 23 | B170: Temporary Roads
A171: 01 55 26 | B171: Traffic Control
A172: 01 55 29 | B172: Staging Areas
A173: 01 56 00 | B173: Temporary Barriers and Enclosures
A174: 01 56 13 | B174: Temporary Air Barriers
A175: 01 56 16 | B175: Temporary Dust Barriers
A176: 01 56 19 | B176: Temporary Noise Barriers
A177: 01 56 23 | B177: Temporary Barricades
A178: 01 56 26 | B178: Temporary Fencing
A179: 01 56 29 | B179: Temporary Protective Walkways
A180: 01 56 33 | B180: Temporary Security Barriers
A181: 01 56 36 | B181: Temporary Security Enclosures
A182: 01 56 39 | B182: Temporary Tree and Plant Protection
A183: 01 57 00 | B183: Temporary Controls
A184: 01 57 13 | B184: Temporary Erosion and Sediment Control
A185: 01 57 16 | B185: Temporary Pest Control
A186: 01 57 19 | B186: Temporary Environmental Controls
A187: 01 57 23 | B187: Temporary Storm Water Pollution Control
A188: 01 58 00 | B188: Project Identification
A189: 01 58 13 | B189: Temporary Project Signage
A190: 01 58 16 | B190: Temporary Interior Signage
A191: 01 60 00 | B191: Product Requirements
A192: 01 61 00 | B192: Common Product Requirements
A193: 01 61 13 | B193: Software Licensing Requirements
A194: 01 62 00 | B194: Product Options
A195: 01 64 00 | B195: Owner-Furnished Products
A196: 01 65 00 | B196: Product Delivery Requirements
A197: 01 66 00 | B197: Product Storage and Handling Requirements
A198: 01 66 13 | B198: Product Storage and Handling Requirements for Hazardous Materials
A199: 01 66 16 | B199: Product Storage and Handling Requirements for Toxic Materials
A200: 01 70 00 | B200: Execution and Closeout Requirements
... 6988 more rows

Sheet lists (hidden)
A1: Project Phase | B1: Planning Phase
A2: <<Select>> | B2: <<Select>>
A3: Project Management Plan | B3: Initiation
A4: 30% Design | B4: Options Analysis
A5: 60% Design
A6: 90% Design
A7: Final Design
